{"text_format":"1","workbook":"xlsx","n_sheets":20,"sheets":["DDLs","VersionControl","Passwords","Summary","1ProjectRecord","2Risks","3CoreTeam","4Advisors","5InterestedStaff","6OtherDivisions","Workload","7Regions","8FinancialServices","9OCO","10OrgServices","11TechServices","12OCE","13LEAD","14Intergovernmental","15CustomParticipants"],"not_rendered":{"charts":0,"images":2,"macros":1,"external_links":0,"defined_names":643,"comments":15,"pivot_tables":0},"unopened":[],"bounds":{"document_bytes":16777216,"sheet_cells":100000,"rows_first":2000,"rows_last":500,"rows_between":2000,"halvings":0,"cell_chars":16384,"cell_head_chars":4096},"cells_cut":0,"cells_raw":0,"read":"whole","date_system":"1900"}

{"sheet":"DDLs","index":0,"n_rows":67,"n_cols":6,"rows_kept":67,"cut":false,"hidden":true,"merged":[]}
[]
[]
["DDLs called from Resources"]
["R.DDL_HighMedLow","VL_HighMedLow"," "]
["does not apply",0]
["very low",2]
["low",4]
["medium",6]
["high",8]
["very high",10]
["Called from Resources"]
[]
[null,"R.VL_DEQResourcesHours"]
["R.DDL_DEQResourcesInvolved","R.VL_DEQResourcesInvolved","Minimum","Max"]
["< 1 hour",0,0,0]
["1 to 8 hrs",1,1,8]
["8 to 40 hrs",2,8,40]
["40  to 80 hrs",3,40,80]
["80 to 170 hrs",4,80,170]
["170 to 340 hrs",5,170,340]
["340 to 680 hrs",6,340,680,null,25]
["680 to 1020 hrs",7,680,1020,null,0.5]
["1020 to 1360 hrs",8,1020,1360]
["1360 to 2080",9,1360,2080]
["over 2080 hrs",10,2080,"~"]
["Called from Resources"]
[]
[]
["R.DDL_DEQStaffRank",null," "]
[" "]
["STAFF"]
["MANAGER"]
["STAFF (CORE TEAM)"]
["MANAGER (CORE TEAM)"]
["ADMINISTRATOR"]
["Called from Resources"]
[]
[]
["R.DDL_ProjectPhase",null," "]
["Development"]
["Implementation"]
["Called from Resources"]
[]
[]
["R.DDL_WorkGroup"]
["3Core Team"]
["4Advisors"]
["5Interested Staff"]
["6OtherDivisions"]
["7Regions"]
["8Financial Services"]
["9OCO"]
["10OrgServices"]
["11TechServices"]
["12OCE"]
["13LEAD"]
["14InterGvmt"]
["15Custom"]
["EMT "]
["Called from Resources"]
[]
["R.DDL_YNNA",null," "]
["Y"]
["N"]
["N/A"]
["?"]
["Called from Resources"]

{"sheet":"VersionControl","index":1,"n_rows":314,"n_cols":35,"rows_kept":314,"cut":false,"hidden":true,"merged":[[0,0,0,6],[0,9,0,30]]}
["Logged",null,null,null,null,null,null,null,null,"Corrected"]
["Version","Error ID","Date","Staff","Worksheet","Cell","Problem","Solution","Staff2","Date2","Base","All","1","2","3","4","5","6","7","8","9","10","11","12","13","14","15","16","17","18","19","20","21","22","23"]
[1,1,"2012-08-23","Nicole","Summary","D22","EMT listed as worksheet and no worksheet. ",null,{"$f":"Table1[[#This Row],[Staff]]","v":"Nicole"},{"$f":"Table1[[#This Row],[Date]]","v":"2012-08-23"}]
[1,2,"2012-08-23","Nicole","Summary","D7:D21","hyperlinks broken","fixed links; defined names for headers",{"$f":"Table1[[#This Row],[Staff]]","v":"Nicole"},{"$f":"Table1[[#This Row],[Date]]","v":"2012-08-23"}]
[1,3,"2012-08-23","Nicole","ProjectRecord","A1","hyperlink broken","defined name for R.0Header",{"$f":"Table1[[#This Row],[Staff]]","v":"Nicole"},{"$f":"Table1[[#This Row],[Date]]","v":"2012-08-23"}]
[1,4,"2012-08-23","Nicole","ProjectRecord","G21","comment box had dep","edited hyperlink and formula to deq",{"$f":"Table1[[#This Row],[Staff]]","v":"Nicole"},{"$f":"Table1[[#This Row],[Date]]","v":"2012-08-23"}]
[1,5,"2012-08-23","Nicole","Risks","A1","hyperlink broken","directed link to R.0Header",{"$f":"Table1[[#This Row],[Staff]]","v":"Nicole"},{"$f":"Table1[[#This Row],[Date]]","v":"2012-08-23"}]
[1,6,"2012-08-23","Nicole","Risks","A21","link directed to B2","redirected link to R.2Header",{"$f":"Table1[[#This Row],[Staff]]","v":"Nicole"},{"$f":"Table1[[#This Row],[Date]]","v":"2012-08-23"}]
[1,7,"2012-08-23","Nicole","CoreTeam","A1","hyperlink broken","directed link to R.0Header",{"$f":"Table1[[#This Row],[Staff]]","v":"Nicole"},{"$f":"Table1[[#This Row],[Date]]","v":"2012-08-23"}]
[1,8,"2012-08-23","Nicole","Advisors","A1","hyperlink broken","directed link to R.0Header",{"$f":"Table1[[#This Row],[Staff]]","v":"Nicole"},{"$f":"Table1[[#This Row],[Date]]","v":"2012-08-23"}]
[1,9,"2012-08-23","Nicole","Advisors","A41","link directed to B2","redirected link to R.4Header",{"$f":"Table1[[#This Row],[Staff]]","v":"Nicole"},{"$f":"Table1[[#This Row],[Date]]","v":"2012-08-23"}]
[1,10,"2012-08-23","Nicole","CoreTeam","A53","link directed to B2","redirected link to R.3Header",{"$f":"Table1[[#This Row],[Staff]]","v":"Nicole"},{"$f":"Table1[[#This Row],[Date]]","v":"2012-08-23"}]
[1,11,"2012-08-23","Nicole","InterestedStaff","A1","hyperlink broken","directed link to R.0Header",{"$f":"Table1[[#This Row],[Staff]]","v":"Nicole"},{"$f":"Table1[[#This Row],[Date]]","v":"2012-08-23"}]
[1,12,"2012-08-23","Nicole","InterestedStaff","A31","link directed to B2","redirected link to R.5Header",{"$f":"Table1[[#This Row],[Staff]]","v":"Nicole"},{"$f":"Table1[[#This Row],[Date]]","v":"2012-08-23"}]
[1,13,"2012-08-23","Nicole","OtherDivisions","A1","hyperlink broken","directed link to R.0Header",{"$f":"Table1[[#This Row],[Staff]]","v":"Nicole"},{"$f":"Table1[[#This Row],[Date]]","v":"2012-08-23"}]
[1,14,"2012-08-23","Nicole","OtherDivisions","A80","link directed to B2","redirected link to R.6Header",{"$f":"Table1[[#This Row],[Staff]]","v":"Nicole"},{"$f":"Table1[[#This Row],[Date]]","v":"2012-08-23"}]
[1,15,"2012-08-23","Nicole","Regions","A1","hyperlink broken","directed link to R.0Header",{"$f":"Table1[[#This Row],[Staff]]","v":"Nicole"},{"$f":"Table1[[#This Row],[Date]]","v":"2012-08-23"}]
[1,16,"2012-08-23","Nicole","Regions","A59","link directed to B2","redirected link to R.7Header",{"$f":"Table1[[#This Row],[Staff]]","v":"Nicole"},{"$f":"Table1[[#This Row],[Date]]","v":"2012-08-23"}]
[1,17,"2012-08-23","Nicole","FinancialServices","A1","hyperlink broken","directed link to R.0Header",{"$f":"Table1[[#This Row],[Staff]]","v":"Nicole"},{"$f":"Table1[[#This Row],[Date]]","v":"2012-08-23"}]
[1,18,"2012-08-23","Nicole","FinancialServices","A61",null,null,{"$f":"Table1[[#This Row],[Staff]]","v":"Nicole"},{"$f":"Table1[[#This Row],[Date]]","v":"2012-08-23"}]
[1,19,"2012-08-23","Nicole","OCO","A43","link went to nonspecific OCO","redirected link to specific Web Rep ",{"$f":"Table1[[#This Row],[Staff]]","v":"Nicole"},{"$f":"Table1[[#This Row],[Date]]","v":"2012-08-23"}]
[1,20,"2012-08-23","Nicole","OCO","A1","hyperlink broken","directed link to R.0Header",{"$f":"Table1[[#This Row],[Staff]]","v":"Nicole"},{"$f":"Table1[[#This Row],[Date]]","v":"2012-08-23"}]
[1,21,"2012-08-23","Nicole","OCO","A61","link directed to B2","redirected link to R.9Header",{"$f":"Table1[[#This Row],[Staff]]","v":"Nicole"},{"$f":"Table1[[#This Row],[Date]]","v":"2012-08-23"}]
[1,22,"2012-08-23","Nicole","OrgServices","A28","link was broken","redirected link to DAS HR Unit",{"$f":"Table1[[#This Row],[Staff]]","v":"Nicole"},{"$f":"Table1[[#This Row],[Date]]","v":"2012-08-23"}]
[1,23,"2012-08-23","Nicole","OrgServices","A1","hyperlink broken","directed link to R.0Header",{"$f":"Table1[[#This Row],[Staff]]","v":"Nicole"},{"$f":"Table1[[#This Row],[Date]]","v":"2012-08-23"}]
[1,24,"2012-08-23","Nicole","OrgServices","A77","link directed to B2","redirected link to R.10Header",{"$f":"Table1[[#This Row],[Staff]]","v":"Nicole"},{"$f":"Table1[[#This Row],[Date]]","v":"2012-08-23"}]
[1,25,"2012-08-23","Nicole","TechServices","A1","hyperlink broken","directed link to R.0Header",{"$f":"Table1[[#This Row],[Staff]]","v":"Nicole"},{"$f":"Table1[[#This Row],[Date]]","v":"2012-08-23"}]
[1,26,"2012-08-23","Nicole","TechServices","A61","link directed to B2","redirected link to R.11Header",{"$f":"Table1[[#This Row],[Staff]]","v":"Nicole"},{"$f":"Table1[[#This Row],[Date]]","v":"2012-08-23"}]
[1,27,"2012-08-23","Nicole","OCE","A1","hyperlink broken","directed link to R.0Header",{"$f":"Table1[[#This Row],[Staff]]","v":"Nicole"},{"$f":"Table1[[#This Row],[Date]]","v":"2012-08-23"}]
[1,28,"2012-08-23","Nicole","OCE","A29","link directed to B2","redirected link to R.12Header",{"$f":"Table1[[#This Row],[Staff]]","v":"Nicole"},{"$f":"Table1[[#This Row],[Date]]","v":"2012-08-23"}]
[1,29,"2012-08-23","Nicole","LEAD","A1","hyperlink broken","directed link to R.0Header",{"$f":"Table1[[#This Row],[Staff]]","v":"Nicole"},{"$f":"Table1[[#This Row],[Date]]","v":"2012-08-23"}]
[1,30,"2012-08-23","Nicole","LEAD","A62","link directed to B2","redirected link to R.13Header",{"$f":"Table1[[#This Row],[Staff]]","v":"Nicole"},{"$f":"Table1[[#This Row],[Date]]","v":"2012-08-23"}]
[1,31,"2012-08-23","Nicole","Intergovernmental","A1","hyperlink broken","directed link to R.0Header",{"$f":"Table1[[#This Row],[Staff]]","v":"Nicole"},{"$f":"Table1[[#This Row],[Date]]","v":"2012-08-23"}]
[1,32,"2012-08-23","Nicole","Intergovernmental","A109","link directed to B2","redirected link to R.14Header",{"$f":"Table1[[#This Row],[Staff]]","v":"Nicole"},{"$f":"Table1[[#This Row],[Date]]","v":"2012-08-23"}]
[1,33,"2012-08-23","Nicole","CustomPartic","A1","hyperlink broken","directed link to R.0Header",{"$f":"Table1[[#This Row],[Staff]]","v":"Nicole"},{"$f":"Table1[[#This Row],[Date]]","v":"2012-08-23"}]
[1,34,"2012-08-23","Nicole","CustomPartic","A75","link directed to B2","redirected link to R.15Header",{"$f":"Table1[[#This Row],[Staff]]","v":"Nicole"},{"$f":"Table1[[#This Row],[Date]]","v":"2012-08-23"}]
[1,35,"2012-08-24","Nicole","ProjectRecord","Y3","Message box didn't have word 'message'","added 'message' to box",{"$f":"Table1[[#This Row],[Staff]]","v":"Nicole"},{"$f":"Table1[[#This Row],[Date]]","v":"2012-08-24"}]
[1,36,"2012-08-24","Nicole","ProjectRecord","PQ6","can't select from drop down","unlocked cell, protected sheet","Maggie","2012-08-27"]
[1,37,"2012-08-24","Nicole","ProjectRecord","Y6","no message by drop down ","added drop down message; moved message box up a few rows",{"$f":"Table1[[#This Row],[Staff]]","v":"Nicole"},{"$f":"Table1[[#This Row],[Date]]","v":"2012-08-24"}]
[1,38,"2012-08-24","Nicole","CoreTeam","V13","no message by drop down ","added drop down message",{"$f":"Table1[[#This Row],[Staff]]","v":"Nicole"},{"$f":"Table1[[#This Row],[Date]]","v":"2012-08-24"}]
[1,39,"2012-08-24","Nicole","CoreTeam","V25","no message by drop down ","added drop down message",{"$f":"Table1[[#This Row],[Staff]]","v":"Nicole"},{"$f":"Table1[[#This Row],[Date]]","v":"2012-08-24"}]
[1,40,"2012-08-24","Nicole","CoreTeam","V31","no message by drop down ","added drop down message",{"$f":"Table1[[#This Row],[Staff]]","v":"Nicole"},{"$f":"Table1[[#This Row],[Date]]","v":"2012-08-24"}]
[1,41,"2012-08-24","Nicole","CoreTeam","V37","no message by drop down ","added drop down message",{"$f":"Table1[[#This Row],[Staff]]","v":"Nicole"},{"$f":"Table1[[#This Row],[Date]]","v":"2012-08-24"}]
[1,42,"2012-08-24","Nicole","CoreTeam","V43","no message by drop down ","added drop down message",{"$f":"Table1[[#This Row],[Staff]]","v":"Nicole"},{"$f":"Table1[[#This Row],[Date]]","v":"2012-08-24"}]
[1,43,"2012-08-24","Nicole","CoreTeam","V49","no message by drop down ","added drop down message",{"$f":"Table1[[#This Row],[Staff]]","v":"Nicole"},{"$f":"Table1[[#This Row],[Date]]","v":"2012-08-24"}]
[1,44,"2012-08-24","Nicole","Advisors","V19","no message by drop down ","added drop down message",{"$f":"Table1[[#This Row],[Staff]]","v":"Nicole"},{"$f":"Table1[[#This Row],[Date]]","v":"2012-08-24"}]
[1,45,"2012-08-24","Nicole","Advisors","V25","no message by drop down ","added drop down message",{"$f":"Table1[[#This Row],[Staff]]","v":"Nicole"},{"$f":"Table1[[#This Row],[Date]]","v":"2012-08-24"}]
[1,46,"2012-08-24","Nicole","Advisors","V31","no message by drop down ","added drop down message",{"$f":"Table1[[#This Row],[Staff]]","v":"Nicole"},{"$f":"Table1[[#This Row],[Date]]","v":"2012-08-24"}]
[1,47,"2012-08-24","Nicole","Advisors","V37","no message by drop down ","added drop down message",{"$f":"Table1[[#This Row],[Staff]]","v":"Nicole"},{"$f":"Table1[[#This Row],[Date]]","v":"2012-08-24"}]
[1,48,"2012-08-24","Nicole","Advisors","V13","no message by drop down ","added drop down message",{"$f":"Table1[[#This Row],[Staff]]","v":"Nicole"},{"$f":"Table1[[#This Row],[Date]]","v":"2012-08-24"}]
[1,49,"2012-08-24","Nicole","Advisors","D31","custom role field inconsistent (blank) than other worksheet","added cr1 name",{"$f":"Table1[[#This Row],[Staff]]","v":"Nicole"},{"$f":"Table1[[#This Row],[Date]]","v":"2012-08-24"}]
[1,50,"2012-08-24","Nicole","Advisors","D37","custom role field inconsistent (blank) than other worksheet","added cr2 name",{"$f":"Table1[[#This Row],[Staff]]","v":"Nicole"},{"$f":"Table1[[#This Row],[Date]]","v":"2012-08-24"}]
[1,51,"2012-08-24","Nicole","InterestedStaff","X13","no message by drop down ","added drop down message",{"$f":"Table1[[#This Row],[Staff]]","v":"Nicole"},{"$f":"Table1[[#This Row],[Date]]","v":"2012-08-24"}]
[1,52,"2012-08-24","Nicole","InterestedStaff","X14","no message by drop down ","added drop down message",{"$f":"Table1[[#This Row],[Staff]]","v":"Nicole"},{"$f":"Table1[[#This Row],[Date]]","v":"2012-08-24"}]
[1,53,"2012-08-24","Nicole","InterestedStaff","X15","no message by drop down ","added drop down message",{"$f":"Table1[[#This Row],[Staff]]","v":"Nicole"},{"$f":"Table1[[#This Row],[Date]]","v":"2012-08-24"}]
[1,54,"2012-08-24","Nicole","InterestedStaff","X16","no message by drop down ","added drop down message",{"$f":"Table1[[#This Row],[Staff]]","v":"Nicole"},{"$f":"Table1[[#This Row],[Date]]","v":"2012-08-24"}]
[1,55,"2012-08-24","Nicole","InterestedStaff","X17","no message by drop down ","added drop down message",{"$f":"Table1[[#This Row],[Staff]]","v":"Nicole"},{"$f":"Table1[[#This Row],[Date]]","v":"2012-08-24"}]
[1,56,"2012-08-24","Nicole","InterestedStaff","X18","no message by drop down ","added drop down message",{"$f":"Table1[[#This Row],[Staff]]","v":"Nicole"},{"$f":"Table1[[#This Row],[Date]]","v":"2012-08-24"}]
[1,57,"2012-08-24","Nicole","InterestedStaff","X24","no message by drop down ","added drop down message",{"$f":"Table1[[#This Row],[Staff]]","v":"Nicole"},{"$f":"Table1[[#This Row],[Date]]","v":"2012-08-24"}]
[1,58,"2012-08-24","Nicole","InterestedStaff","X25","no message by drop down ","added drop down message",{"$f":"Table1[[#This Row],[Staff]]","v":"Nicole"},{"$f":"Table1[[#This Row],[Date]]","v":"2012-08-24"}]
[1,59,"2012-08-24","Nicole","InterestedStaff","X26","no message by drop down ","added drop down message",{"$f":"Table1[[#This Row],[Staff]]","v":"Nicole"},{"$f":"Table1[[#This Row],[Date]]","v":"2012-08-24"}]
[1,60,"2012-08-24","Nicole","InterestedStaff","X27","no message by drop down ","added drop down message",{"$f":"Table1[[#This Row],[Staff]]","v":"Nicole"},{"$f":"Table1[[#This Row],[Date]]","v":"2012-08-24"}]
[1,61,"2012-08-24","Nicole","OtherDivisions","X13","no message by drop down ","added drop down message",{"$f":"Table1[[#This Row],[Staff]]","v":"Nicole"},{"$f":"Table1[[#This Row],[Date]]","v":"2012-08-24"}]
[1,62,"2012-08-24","Nicole","OtherDivisions","X20","no message by drop down ","added drop down message",{"$f":"Table1[[#This Row],[Staff]]","v":"Nicole"},{"$f":"Table1[[#This Row],[Date]]","v":"2012-08-24"}]
[1,63,"2012-08-24","Nicole","OtherDivisions","X30","no message by drop down ","added drop down message",{"$f":"Table1[[#This Row],[Staff]]","v":"Nicole"},{"$f":"Table1[[#This Row],[Date]]","v":"2012-08-24"}]
[1,64,"2012-08-24","Nicole","OtherDivisions","X37","no message by drop down ","added drop down message",{"$f":"Table1[[#This Row],[Staff]]","v":"Nicole"},{"$f":"Table1[[#This Row],[Date]]","v":"2012-08-24"}]
[1,65,"2012-08-24","Nicole","OtherDivisions","X47","no message by drop down ","added drop down message",{"$f":"Table1[[#This Row],[Staff]]","v":"Nicole"},{"$f":"Table1[[#This Row],[Date]]","v":"2012-08-24"}]
[1,66,"2012-08-24","Nicole","OtherDivisions","X54","no message by drop down ","added drop down message",{"$f":"Table1[[#This Row],[Staff]]","v":"Nicole"},{"$f":"Table1[[#This Row],[Date]]","v":"2012-08-24"}]
[1,67,"2012-08-24","Nicole","OtherDivisions","X64","no message by drop down ","added drop down message",{"$f":"Table1[[#This Row],[Staff]]","v":"Nicole"},{"$f":"Table1[[#This Row],[Date]]","v":"2012-08-24"}]
[1,68,"2012-08-24","Nicole","OtherDivisions","X72","no message by drop down ","added drop down message",{"$f":"Table1[[#This Row],[Staff]]","v":"Nicole"},{"$f":"Table1[[#This Row],[Date]]","v":"2012-08-24"}]
[1,69,"2012-08-24","Nicole","InterestedStaff","DE29","\"worksheet.\" was not showing","widened column to show",{"$f":"Table1[[#This Row],[Staff]]","v":"Nicole"},{"$f":"Table1[[#This Row],[Date]]","v":"2012-08-24"}]
[1,70,"2012-08-24","Nicole","Regions","V13","no message by drop down ","added drop down message",{"$f":"Table1[[#This Row],[Staff]]","v":"Nicole"},{"$f":"Table1[[#This Row],[Date]]","v":"2012-08-24"}]
[1,71,"2012-08-24","Nicole","Regions","V20","no message by drop down ","added drop down message",{"$f":"Table1[[#This Row],[Staff]]","v":"Nicole"},{"$f":"Table1[[#This Row],[Date]]","v":"2012-08-24"}]
[1,72,"2012-08-24","Nicole","Regions","V29","no message by drop down ","added drop down message",{"$f":"Table1[[#This Row],[Staff]]","v":"Nicole"},{"$f":"Table1[[#This Row],[Date]]","v":"2012-08-24"}]
[1,73,"2012-08-24","Nicole","Regions","V36","no message by drop down ","added drop down message",{"$f":"Table1[[#This Row],[Staff]]","v":"Nicole"},{"$f":"Table1[[#This Row],[Date]]","v":"2012-08-24"}]
[1,74,"2012-08-24","Nicole","Regions","V45","no message by drop down ","added drop down message",{"$f":"Table1[[#This Row],[Staff]]","v":"Nicole"},{"$f":"Table1[[#This Row],[Date]]","v":"2012-08-24"}]
[1,75,"2012-08-24","Nicole","Regions","V52","no message by drop down ","added drop down message",{"$f":"Table1[[#This Row],[Staff]]","v":"Nicole"},{"$f":"Table1[[#This Row],[Date]]","v":"2012-08-24"}]
[1,76,"2012-08-24","Nicole","FinancialServices","V15","no message by drop down ","added drop down message",{"$f":"Table1[[#This Row],[Staff]]","v":"Nicole"},{"$f":"Table1[[#This Row],[Date]]","v":"2012-08-24"}]
[1,77,"2012-08-24","Nicole","FinancialServices","V22","no message by drop down ","added drop down message",{"$f":"Table1[[#This Row],[Staff]]","v":"Nicole"},{"$f":"Table1[[#This Row],[Date]]","v":"2012-08-24"}]
[1,78,"2012-08-24","Nicole","FinancialServices","V31","no message by drop down ","added drop down message",{"$f":"Table1[[#This Row],[Staff]]","v":"Nicole"},{"$f":"Table1[[#This Row],[Date]]","v":"2012-08-24"}]
[1,79,"2012-08-24","Nicole","FinancialServices","V38","no message by drop down ","added drop down message",{"$f":"Table1[[#This Row],[Staff]]","v":"Nicole"},{"$f":"Table1[[#This Row],[Date]]","v":"2012-08-24"}]
[1,80,"2012-08-24","Nicole","FinancialServices","V47","no message by drop down ","added drop down message",{"$f":"Table1[[#This Row],[Staff]]","v":"Nicole"},{"$f":"Table1[[#This Row],[Date]]","v":"2012-08-24"}]
[1,81,"2012-08-24","Nicole","FinancialServices","V54","no message by drop down ","added drop down message",{"$f":"Table1[[#This Row],[Staff]]","v":"Nicole"},{"$f":"Table1[[#This Row],[Date]]","v":"2012-08-24"}]
[1,82,"2012-08-27","Nicole","OCO","V15","no message by drop down ","added drop down message",{"$f":"Table1[[#This Row],[Staff]]","v":"Nicole"},{"$f":"Table1[[#This Row],[Date]]","v":"2012-08-27"}]
[1,83,"2012-08-27","Nicole","OCO","V16","no message by drop down ","added drop down message",{"$f":"Table1[[#This Row],[Staff]]","v":"Nicole"},{"$f":"Table1[[#This Row],[Date]]","v":"2012-08-27"}]
[1,84,"2012-08-27","Nicole","OCO","V22","no message by drop down ","added drop down message",{"$f":"Table1[[#This Row],[Staff]]","v":"Nicole"},{"$f":"Table1[[#This Row],[Date]]","v":"2012-08-27"}]
[1,85,"2012-08-27","Nicole","OCO","V31","no message by drop down ","added drop down message",{"$f":"Table1[[#This Row],[Staff]]","v":"Nicole"},{"$f":"Table1[[#This Row],[Date]]","v":"2012-08-27"}]
[1,86,"2012-08-27","Nicole","OCO","V38","no message by drop down ","added drop down message",{"$f":"Table1[[#This Row],[Staff]]","v":"Nicole"},{"$f":"Table1[[#This Row],[Date]]","v":"2012-08-27"}]
[1,87,"2012-08-27","Nicole","OCO","V47","no message by drop down ","added drop down message",{"$f":"Table1[[#This Row],[Staff]]","v":"Nicole"},{"$f":"Table1[[#This Row],[Date]]","v":"2012-08-27"}]
[1,88,"2012-08-27","Nicole","OCO","V54","no message by drop down ","added drop down message",{"$f":"Table1[[#This Row],[Staff]]","v":"Nicole"},{"$f":"Table1[[#This Row],[Date]]","v":"2012-08-27"}]
[1,89,"2012-08-27","Nicole","OrgServices","V15","no message by drop down ","added drop down message",{"$f":"Table1[[#This Row],[Staff]]","v":"Nicole"},{"$f":"Table1[[#This Row],[Date]]","v":"2012-08-27"}]
[1,90,"2012-08-27","Nicole","OrgServices","V22","no message by drop down ","added drop down message",{"$f":"Table1[[#This Row],[Staff]]","v":"Nicole"},{"$f":"Table1[[#This Row],[Date]]","v":"2012-08-27"}]
[1,91,"2012-08-27","Nicole","OrgServices","V31","no message by drop down ","added drop down message",{"$f":"Table1[[#This Row],[Staff]]","v":"Nicole"},{"$f":"Table1[[#This Row],[Date]]","v":"2012-08-27"}]
[1,92,"2012-08-27","Nicole","OrgServices","V38","no message by drop down ","added drop down message",{"$f":"Table1[[#This Row],[Staff]]","v":"Nicole"},{"$f":"Table1[[#This Row],[Date]]","v":"2012-08-27"}]
[1,93,"2012-08-27","Nicole","OrgServices","V47","no message by drop down ","added drop down message",{"$f":"Table1[[#This Row],[Staff]]","v":"Nicole"},{"$f":"Table1[[#This Row],[Date]]","v":"2012-08-27"}]
[1,94,"2012-08-27","Nicole","OrgServices","V54","no message by drop down ","added drop down message",{"$f":"Table1[[#This Row],[Staff]]","v":"Nicole"},{"$f":"Table1[[#This Row],[Date]]","v":"2012-08-27"}]
[1,95,"2012-08-27","Nicole","OrgServices","V63","no message by drop down ","added drop down message",{"$f":"Table1[[#This Row],[Staff]]","v":"Nicole"},{"$f":"Table1[[#This Row],[Date]]","v":"2012-08-27"}]
[1,96,"2012-08-27","Nicole","OrgServices","V70","no message by drop down ","added drop down message",{"$f":"Table1[[#This Row],[Staff]]","v":"Nicole"},{"$f":"Table1[[#This Row],[Date]]","v":"2012-08-27"}]
[1,97,"2012-08-27","Nicole","TechServices","V15","no message by drop down ","added drop down message",{"$f":"Table1[[#This Row],[Staff]]","v":"Nicole"},{"$f":"Table1[[#This Row],[Date]]","v":"2012-08-27"}]
[1,98,"2012-08-27","Nicole","TechServices","V22","no message by drop down ","added drop down message",{"$f":"Table1[[#This Row],[Staff]]","v":"Nicole"},{"$f":"Table1[[#This Row],[Date]]","v":"2012-08-27"}]
[1,99,"2012-08-27","Nicole","TechServices","V31","no message by drop down ","added drop down message",{"$f":"Table1[[#This Row],[Staff]]","v":"Nicole"},{"$f":"Table1[[#This Row],[Date]]","v":"2012-08-27"}]
[1,100,"2012-08-27","Nicole","TechServices","V38","no message by drop down ","added drop down message",{"$f":"Table1[[#This Row],[Staff]]","v":"Nicole"},{"$f":"Table1[[#This Row],[Date]]","v":"2012-08-27"}]
[1,101,"2012-08-27","Nicole","TechServices","V47","no message by drop down ","added drop down message",{"$f":"Table1[[#This Row],[Staff]]","v":"Nicole"},{"$f":"Table1[[#This Row],[Date]]","v":"2012-08-27"}]
[1,102,"2012-08-27","Nicole","TechServices","V54","no message by drop down ","added drop down message",{"$f":"Table1[[#This Row],[Staff]]","v":"Nicole"},{"$f":"Table1[[#This Row],[Date]]","v":"2012-08-27"}]
[1,103,"2012-08-27","Nicole","OCE","V15","no message by drop down ","added drop down message",{"$f":"Table1[[#This Row],[Staff]]","v":"Nicole"},{"$f":"Table1[[#This Row],[Date]]","v":"2012-08-27"}]
[1,104,"2012-08-27","Nicole","OCE","V22","no message by drop down ","added drop down message",{"$f":"Table1[[#This Row],[Staff]]","v":"Nicole"},{"$f":"Table1[[#This Row],[Date]]","v":"2012-08-27"}]
[1,105,"2012-08-27","Nicole","LEAD","V16","no message by drop down ","added drop down message",{"$f":"Table1[[#This Row],[Staff]]","v":"Nicole"},{"$f":"Table1[[#This Row],[Date]]","v":"2012-08-27"}]
[1,106,"2012-08-27","Nicole","LEAD","V23","no message by drop down ","added drop down message",{"$f":"Table1[[#This Row],[Staff]]","v":"Nicole"},{"$f":"Table1[[#This Row],[Date]]","v":"2012-08-27"}]
[1,107,"2012-08-27","Nicole","LEAD","V32","no message by drop down ","added drop down message",{"$f":"Table1[[#This Row],[Staff]]","v":"Nicole"},{"$f":"Table1[[#This Row],[Date]]","v":"2012-08-27"}]
[1,108,"2012-08-27","Nicole","LEAD","V39","no message by drop down ","added drop down message",{"$f":"Table1[[#This Row],[Staff]]","v":"Nicole"},{"$f":"Table1[[#This Row],[Date]]","v":"2012-08-27"}]
[1,109,"2012-08-27","Nicole","LEAD","V48","no message by drop down ","added drop down message",{"$f":"Table1[[#This Row],[Staff]]","v":"Nicole"},{"$f":"Table1[[#This Row],[Date]]","v":"2012-08-27"}]
[1,110,"2012-08-27","Nicole","LEAD","V55","no message by drop down ","added drop down message",{"$f":"Table1[[#This Row],[Staff]]","v":"Nicole"},{"$f":"Table1[[#This Row],[Date]]","v":"2012-08-27"}]
[1,111,"2012-08-27","Nicole","Intergovernmental","V15","no message by drop down ","added drop down message",{"$f":"Table1[[#This Row],[Staff]]","v":"Nicole"},{"$f":"Table1[[#This Row],[Date]]","v":"2012-08-27"}]
[1,112,"2012-08-27","Nicole","Intergovernmental","V22","no message by drop down ","added drop down message",{"$f":"Table1[[#This Row],[Staff]]","v":"Nicole"},{"$f":"Table1[[#This Row],[Date]]","v":"2012-08-27"}]
[1,113,"2012-08-27","Nicole","Intergovernmental","V31","no message by drop down ","added drop down message",{"$f":"Table1[[#This Row],[Staff]]","v":"Nicole"},{"$f":"Table1[[#This Row],[Date]]","v":"2012-08-27"}]
[1,114,"2012-08-27","Nicole","Intergovernmental","V38","no message by drop down ","added drop down message",{"$f":"Table1[[#This Row],[Staff]]","v":"Nicole"},{"$f":"Table1[[#This Row],[Date]]","v":"2012-08-27"}]
[1,115,"2012-08-27","Nicole","Intergovernmental","V47","no message by drop down ","added drop down message",{"$f":"Table1[[#This Row],[Staff]]","v":"Nicole"},{"$f":"Table1[[#This Row],[Date]]","v":"2012-08-27"}]
[1,116,"2012-08-27","Nicole","Intergovernmental","V54","no message by drop down ","added drop down message",{"$f":"Table1[[#This Row],[Staff]]","v":"Nicole"},{"$f":"Table1[[#This Row],[Date]]","v":"2012-08-27"}]
[1,117,"2012-08-27","Nicole","Intergovernmental","V63","no message by drop down ","added drop down message",{"$f":"Table1[[#This Row],[Staff]]","v":"Nicole"},{"$f":"Table1[[#This Row],[Date]]","v":"2012-08-27"}]
[1,118,"2012-08-27","Nicole","Intergovernmental","V70","no message by drop down ","added drop down message",{"$f":"Table1[[#This Row],[Staff]]","v":"Nicole"},{"$f":"Table1[[#This Row],[Date]]","v":"2012-08-27"}]
[1,119,"2012-08-27","Nicole","Intergovernmental","V79","no message by drop down ","added drop down message",{"$f":"Table1[[#This Row],[Staff]]","v":"Nicole"},{"$f":"Table1[[#This Row],[Date]]","v":"2012-08-27"}]
[1,120,"2012-08-27","Nicole","Intergovernmental","V86","no message by drop down ","added drop down message",{"$f":"Table1[[#This Row],[Staff]]","v":"Nicole"},{"$f":"Table1[[#This Row],[Date]]","v":"2012-08-27"}]
[1,121,"2012-08-27","Nicole","Intergovernmental","V95","no message by drop down ","added drop down message",{"$f":"Table1[[#This Row],[Staff]]","v":"Nicole"},{"$f":"Table1[[#This Row],[Date]]","v":"2012-08-27"}]
[1,122,"2012-08-27","Nicole","Intergovernmental","V102","no message by drop down ","added drop down message",{"$f":"Table1[[#This Row],[Staff]]","v":"Nicole"},{"$f":"Table1[[#This Row],[Date]]","v":"2012-08-27"}]
[1,123,"2012-08-27","Nicole","CustomPartic","S13","no message by drop down ","added drop down message",{"$f":"Table1[[#This Row],[Staff]]","v":"Nicole"},{"$f":"Table1[[#This Row],[Date]]","v":"2012-08-27"}]
[1,124,"2012-08-27","Nicole","CustomPartic","S20","no message by drop down ","added drop down message",{"$f":"Table1[[#This Row],[Staff]]","v":"Nicole"},{"$f":"Table1[[#This Row],[Date]]","v":"2012-08-27"}]
[1,125,"2012-08-27","Nicole","CustomPartic","S29","no message by drop down ","added drop down message",{"$f":"Table1[[#This Row],[Staff]]","v":"Nicole"},{"$f":"Table1[[#This Row],[Date]]","v":"2012-08-27"}]
[1,126,"2012-08-27","Nicole","CustomPartic","S36","no message by drop down ","added drop down message",{"$f":"Table1[[#This Row],[Staff]]","v":"Nicole"},{"$f":"Table1[[#This Row],[Date]]","v":"2012-08-27"}]
[1,127,"2012-08-27","Nicole","CustomPartic","S45","no message by drop down ","added drop down message",{"$f":"Table1[[#This Row],[Staff]]","v":"Nicole"},{"$f":"Table1[[#This Row],[Date]]","v":"2012-08-27"}]
[1,128,"2012-08-27","Nicole","CustomPartic","S52","no message by drop down ","added drop down message",{"$f":"Table1[[#This Row],[Staff]]","v":"Nicole"},{"$f":"Table1[[#This Row],[Date]]","v":"2012-08-27"}]
[1,129,"2012-08-27","Nicole","CustomPartic","S61","no message by drop down ","added drop down message",{"$f":"Table1[[#This Row],[Staff]]","v":"Nicole"},{"$f":"Table1[[#This Row],[Date]]","v":"2012-08-27"}]
[1,130,"2012-08-27","Nicole","CustomPartic","S68","no message by drop down ","added drop down message",{"$f":"Table1[[#This Row],[Staff]]","v":"Nicole"},{"$f":"Table1[[#This Row],[Date]]","v":"2012-08-27"}]
[1,131,"2012-08-27","Nicole","CustomPartic","X2","message box too far to right","moved to W2",{"$f":"Table1[[#This Row],[Staff]]","v":"Nicole"},{"$f":"Table1[[#This Row],[Date]]","v":"2012-08-27"}]
[1,132,"2012-08-27","Nicole","Intergovernmental","D9","incorrect tense of the word \"describe\"","changed to described",{"$f":"Table1[[#This Row],[Staff]]","v":"Nicole"},{"$f":"Table1[[#This Row],[Date]]","v":"2012-08-27"}]
[1,133,"2012-08-27","Nicole","Intergovernmental","D7","pop up message for enter name for message box","deleted pop up message",{"$f":"Table1[[#This Row],[Staff]]","v":"Nicole"},{"$f":"Table1[[#This Row],[Date]]","v":"2012-08-27"}]
[1,134,"2012-08-27","Nicole","Intergovernmental","W2","message box too far to right","moved to V2",{"$f":"Table1[[#This Row],[Staff]]","v":"Nicole"},{"$f":"Table1[[#This Row],[Date]]","v":"2012-08-27"}]
[1,135,"2012-08-27","Nicole","Intergovernmental","D8","had \"financial services\" capacity","changed to Intergovernmental",{"$f":"Table1[[#This Row],[Staff]]","v":"Nicole"},{"$f":"Table1[[#This Row],[Date]]","v":"2012-08-27"}]
[1,136,"2012-08-27","Nicole","LEAD","D10","incorrect tense of the word \"describe\"","changed to described",{"$f":"Table1[[#This Row],[Staff]]","v":"Nicole"},{"$f":"Table1[[#This Row],[Date]]","v":"2012-08-27"}]
[1,137,"2012-08-27","Nicole","LEAD","D48","ENTER NAME pop up message didn't happen","added ENTER NAME pop up message",{"$f":"Table1[[#This Row],[Staff]]","v":"Nicole"},{"$f":"Table1[[#This Row],[Date]]","v":"2012-08-27"}]
[1,138,"2012-08-27","Nicole","LEAD","D55","ENTER NAME pop up message didn't happen","added ENTER NAME pop up message",{"$f":"Table1[[#This Row],[Staff]]","v":"Nicole"},{"$f":"Table1[[#This Row],[Date]]","v":"2012-08-27"}]
[1,139,"2012-08-27","Nicole","LEAD","D39","ENTER NAME pop up message indicated developing not implementing","changed \"developing\" to \"implementing\"",{"$f":"Table1[[#This Row],[Staff]]","v":"Nicole"},{"$f":"Table1[[#This Row],[Date]]","v":"2012-08-27"}]
[1,140,"2012-08-27","Nicole","OCE","D8","had \"financial services\" capacity","changed to OCE",{"$f":"Table1[[#This Row],[Staff]]","v":"Nicole"},{"$f":"Table1[[#This Row],[Date]]","v":"2012-08-27"}]
[1,141,"2012-08-27","Nicole","OCE","D9","incorrect tense of the word \"describe\"","changed to described",{"$f":"Table1[[#This Row],[Staff]]","v":"Nicole"},{"$f":"Table1[[#This Row],[Date]]","v":"2012-08-27"}]
[1,142,"2012-08-27","Nicole","Intergovernmental","D8","pop up message for enter name for message box","deleted pop up message",{"$f":"Table1[[#This Row],[Staff]]","v":"Nicole"},{"$f":"Table1[[#This Row],[Date]]","v":"2012-08-27"}]
[1,143,"2012-08-27","Nicole","LEAD","D8","pop up message for enter name for message box","deleted pop up message",{"$f":"Table1[[#This Row],[Staff]]","v":"Nicole"},{"$f":"Table1[[#This Row],[Date]]","v":"2012-08-27"}]
[1,144,"2012-08-27","Nicole","LEAD","D9","pop up message for enter name in wrong cell","deleted pop up message",{"$f":"Table1[[#This Row],[Staff]]","v":"Nicole"},{"$f":"Table1[[#This Row],[Date]]","v":"2012-08-27"}]
[1,145,"2012-08-27","Nicole","OCE","D8","pop up message for enter name for message box","deleted pop up message",{"$f":"Table1[[#This Row],[Staff]]","v":"Nicole"},{"$f":"Table1[[#This Row],[Date]]","v":"2012-08-27"}]
[1,146,"2012-08-27","Nicole","OCE","D9","incorrect tense of the word \"describe\"","changed to described",{"$f":"Table1[[#This Row],[Staff]]","v":"Nicole"},{"$f":"Table1[[#This Row],[Date]]","v":"2012-08-27"}]
[1,147,"2012-08-27","Nicole","TechServices","D7","pop up message for enter name for message box","deleted pop up message",{"$f":"Table1[[#This Row],[Staff]]","v":"Nicole"},{"$f":"Table1[[#This Row],[Date]]","v":"2012-08-27"}]
[1,148,"2012-08-27","Nicole","TechServices","D8","pop up message for enter name in wrong cell","deleted pop up message",{"$f":"Table1[[#This Row],[Staff]]","v":"Nicole"},{"$f":"Table1[[#This Row],[Date]]","v":"2012-08-27"}]
[1,149,"2012-08-27","Nicole","TechServices","D8","had \"financial services\" capacity","changed to Technical Services",{"$f":"Table1[[#This Row],[Staff]]","v":"Nicole"},{"$f":"Table1[[#This Row],[Date]]","v":"2012-08-27"}]
[1,150,"2012-08-27","Nicole","TechServices","D9","incorrect tense of the word \"describe\"","changed to described",{"$f":"Table1[[#This Row],[Staff]]","v":"Nicole"},{"$f":"Table1[[#This Row],[Date]]","v":"2012-08-27"}]
[1,151,"2012-08-27","Nicole","TechServices","D13","DESCRIBE INVOLVEMENT pop up message didn't happen","inserted pop up message",{"$f":"Table1[[#This Row],[Staff]]","v":"Nicole"},{"$f":"Table1[[#This Row],[Date]]","v":"2012-08-27"}]
[1,152,"2012-08-27","Nicole","TechServices","D20","DESCRIBE INVOLVEMENT pop up message didn't happen","inserted pop up message",{"$f":"Table1[[#This Row],[Staff]]","v":"Nicole"},{"$f":"Table1[[#This Row],[Date]]","v":"2012-08-27"}]
[1,153,"2012-08-27","Nicole","OrgServices","D8","had \"financial services\" capacity","changed to Organization Services",{"$f":"Table1[[#This Row],[Staff]]","v":"Nicole"},{"$f":"Table1[[#This Row],[Date]]","v":"2012-08-27"}]
[1,154,"2012-08-27","Nicole","OrgServices","D9","incorrect tense of the word \"describe\"","changed to described",{"$f":"Table1[[#This Row],[Staff]]","v":"Nicole"},{"$f":"Table1[[#This Row],[Date]]","v":"2012-08-27"}]
[1,155,"2012-08-27","Nicole","OrgServices","D7","pop up message for enter name in wrong cell","deleted pop up message",{"$f":"Table1[[#This Row],[Staff]]","v":"Nicole"},{"$f":"Table1[[#This Row],[Date]]","v":"2012-08-27"}]
[1,156,"2012-08-27","Nicole","OrgServices","D8","pop up message for enter name in wrong cell","deleted pop up message",{"$f":"Table1[[#This Row],[Staff]]","v":"Nicole"},{"$f":"Table1[[#This Row],[Date]]","v":"2012-08-27"}]
[1,157,"2012-08-27","Nicole","OCO","D7","pop up message for enter name in wrong cell","deleted pop up message",{"$f":"Table1[[#This Row],[Staff]]","v":"Nicole"},{"$f":"Table1[[#This Row],[Date]]","v":"2012-08-27"}]
[1,158,"2012-08-27","Nicole","OCO","D8","had \"financial services\" capacity","changed to OCO",{"$f":"Table1[[#This Row],[Staff]]","v":"Nicole"},{"$f":"Table1[[#This Row],[Date]]","v":"2012-08-27"}]
[1,159,"2012-08-27","Nicole","OCO","D8","pop up message for enter name in wrong cell","deleted pop up message"," ",{"$f":"Table1[[#This Row],[Date]]","v":"2012-08-27"}]
[1,160,"2012-08-27","Nicole","OCO","D9","incorrect tense of the word \"describe\"","changed to described"," ",{"$f":"Table1[[#This Row],[Date]]","v":"2012-08-27"}]
[1,161,"2012-08-27","Nicole","FinancialServices","D7","pop up message for enter name in wrong cell","deleted pop up message"," ",{"$f":"Table1[[#This Row],[Date]]","v":"2012-08-27"}]
[1,162,"2012-08-27","Nicole","FinancialServices","D8","pop up message for enter name in wrong cell","deleted pop up message"," ",{"$f":"Table1[[#This Row],[Date]]","v":"2012-08-27"}]
[1,163,"2012-08-27","Nicole","FinancialServices","D9","incorrect tense of the word \"describe\"","changed to described"," ",{"$f":"Table1[[#This Row],[Date]]","v":"2012-08-27"}]
[1,164,"2012-08-27","Nicole","Regions","D7","pop up message for enter name in wrong cell","deleted pop up message"," ",{"$f":"Table1[[#This Row],[Date]]","v":"2012-08-27"}]
[1,165,"2012-08-27","Nicole","OtherDivisions","D7","pop up message for enter name in wrong cell","deleted pop up message"," ",{"$f":"Table1[[#This Row],[Date]]","v":"2012-08-27"}]
[1,166,"2012-08-27","Nicole","InterestedStaff","D13","pop up message missing","added \"expressed interest\" pop up message"," ",{"$f":"Table1[[#This Row],[Date]]","v":"2012-08-27"}]
[1,167,"2012-08-27","Nicole","InterestedStaff","D14","pop up message missing","added \"expressed interest\" pop up message"," ",{"$f":"Table1[[#This Row],[Date]]","v":"2012-08-27"}]
[1,168,"2012-08-27","Nicole","InterestedStaff","D15","pop up message missing","added \"expressed interest\" pop up message"," ",{"$f":"Table1[[#This Row],[Date]]","v":"2012-08-27"}]
[1,169,"2012-08-27","Nicole","InterestedStaff","D16","pop up message missing","added \"expressed interest\" pop up message"," ",{"$f":"Table1[[#This Row],[Date]]","v":"2012-08-27"}]
[1,170,"2012-08-27","Nicole","InterestedStaff","D17","pop up message missing","added \"expressed interest\" pop up message"," ",{"$f":"Table1[[#This Row],[Date]]","v":"2012-08-27"}]
[1,171,"2012-08-27","Nicole","InterestedStaff","D18","pop up message missing","added \"expressed interest\" pop up message"," ",{"$f":"Table1[[#This Row],[Date]]","v":"2012-08-27"}]
[1,172,"2012-08-27","Nicole","InterestedStaff","D24","pop up message stated for \"developing\" project","changed message to \"expressed interest\"",{"$f":"Table1[[#This Row],[Staff]]","v":"Nicole"},{"$f":"Table1[[#This Row],[Date]]","v":"2012-08-27"}]
[1,173,"2012-08-27","Nicole","InterestedStaff","D25","pop up message stated for \"developing\" project","changed message to \"expressed interest\"",{"$f":"Table1[[#This Row],[Staff]]","v":"Nicole"},{"$f":"Table1[[#This Row],[Date]]","v":"2012-08-27"}]
[1,174,"2012-08-27","Nicole","InterestedStaff","D26","pop up message stated for \"developing\" project","changed message to \"expressed interest\"",{"$f":"Table1[[#This Row],[Staff]]","v":"Nicole"},{"$f":"Table1[[#This Row],[Date]]","v":"2012-08-27"}]
[1,175,"2012-08-27","Nicole","InterestedStaff","D27","pop up message stated for \"developing\" project","changed message to \"expressed interest\"",{"$f":"Table1[[#This Row],[Staff]]","v":"Nicole"},{"$f":"Table1[[#This Row],[Date]]","v":"2012-08-27"}]
[1,176,"2012-08-27","Nicole","CoreTeam","D35","predefine role had pop up message to enter role","deleted pop up message",{"$f":"Table1[[#This Row],[Staff]]","v":"Nicole"},{"$f":"Table1[[#This Row],[Date]]","v":"2012-08-27"}]
[1,177,"2012-08-27","Nicole","CoreTeam","D41","pop up message missing for enter role","added \"enter role\" pop up",{"$f":"Table1[[#This Row],[Staff]]","v":"Nicole"},{"$f":"Table1[[#This Row],[Date]]","v":"2012-08-27"}]
[1,178,"2012-08-27","Nicole","CoreTeam","D49","pop up message missing for enter name","added \"enter name\" pop up",{"$f":"Table1[[#This Row],[Staff]]","v":"Nicole"},{"$f":"Table1[[#This Row],[Date]]","v":"2012-08-27"}]
[1,179,"2012-08-27","Nicole","Risks","D8","no pop up message for optional discussion","added \"TOPIC IDEAS\" pop up message",{"$f":"Table1[[#This Row],[Staff]]","v":"Nicole"},{"$f":"Table1[[#This Row],[Date]]","v":"2012-08-27"}]
[1,180,"2012-08-27","Nicole","Risks","D13","no pop up message for optional discussion","added \"TOPIC IDEAS\" pop up message",{"$f":"Table1[[#This Row],[Staff]]","v":"Nicole"},{"$f":"Table1[[#This Row],[Date]]","v":"2012-08-27"}]
[1,181,"2012-08-27","Nicole","Risks","D18","no pop up message for optional discussion","added \"TOPIC IDEAS\" pop up message",{"$f":"Table1[[#This Row],[Staff]]","v":"Nicole"},{"$f":"Table1[[#This Row],[Date]]","v":"2012-08-27"}]
[1,182,"2012-08-27","Nicole","CoreTeam","D39","couldn't enter custom role D39","unlocked cell, protected sheet",{"$f":"Table1[[#This Row],[Staff]]","v":"Nicole"},{"$f":"Table1[[#This Row],[Date]]","v":"2012-08-27"}]
[1,183,"2012-08-27","Nicole","Risks","F2","long name requested","changed to medium name",{"$f":"Table1[[#This Row],[Staff]]","v":"Nicole"},{"$f":"Table1[[#This Row],[Date]]","v":"2012-08-27"}]
[1,184,"2012-08-27","Nicole","CoreTeam","E2","long name requested","changed to medium name",{"$f":"Table1[[#This Row],[Staff]]","v":"Nicole"},{"$f":"Table1[[#This Row],[Date]]","v":"2012-08-27"}]
[1,185,"2012-08-27","Nicole","Advisors","E2","long name requested","changed to medium name",{"$f":"Table1[[#This Row],[Staff]]","v":"Nicole"},{"$f":"Table1[[#This Row],[Date]]","v":"2012-08-27"}]
[1,186,"2012-08-27","Nicole","InterestedStaff","E2","long name requested","changed to medium name",{"$f":"Table1[[#This Row],[Staff]]","v":"Nicole"},{"$f":"Table1[[#This Row],[Date]]","v":"2012-08-27"}]
[1,187,"2012-08-27","Nicole","OtherDivisions","E2","long name requested","changed to medium name",{"$f":"Table1[[#This Row],[Staff]]","v":"Nicole"},{"$f":"Table1[[#This Row],[Date]]","v":"2012-08-27"}]
[1,188,"2012-08-27","Nicole","Regions","E2","long name requested","changed to medium name",{"$f":"Table1[[#This Row],[Staff]]","v":"Nicole"},{"$f":"Table1[[#This Row],[Date]]","v":"2012-08-27"}]
[1,189,"2012-08-27","Nicole","FinancialServices","E2","long name requested","changed to medium name",{"$f":"Table1[[#This Row],[Staff]]","v":"Nicole"},{"$f":"Table1[[#This Row],[Date]]","v":"2012-08-27"}]
[1,190,"2012-08-27","Nicole","OCO","E2","long name requested","changed to medium name",{"$f":"Table1[[#This Row],[Staff]]","v":"Nicole"},{"$f":"Table1[[#This Row],[Date]]","v":"2012-08-27"}]
[1,191,"2012-08-27","Nicole","OrgServices","E2","long name requested","changed to medium name",{"$f":"Table1[[#This Row],[Staff]]","v":"Nicole"},{"$f":"Table1[[#This Row],[Date]]","v":"2012-08-27"}]
[1,192,"2012-08-27","Nicole","TechServices","E2","long name requested","changed to medium name",{"$f":"Table1[[#This Row],[Staff]]","v":"Nicole"},{"$f":"Table1[[#This Row],[Date]]","v":"2012-08-27"}]
[1,193,"2012-08-27","Nicole","OCE","E2","long name requested","changed to medium name",{"$f":"Table1[[#This Row],[Staff]]","v":"Nicole"},{"$f":"Table1[[#This Row],[Date]]","v":"2012-08-27"}]
[1,194,"2012-08-27","Nicole","LEAD","E2","long name requested","changed to medium name",{"$f":"Table1[[#This Row],[Staff]]","v":"Nicole"},{"$f":"Table1[[#This Row],[Date]]","v":"2012-08-27"}]
[1,195,"2012-08-27","Nicole","Intergovernmental","E2","long name requested","changed to medium name",{"$f":"Table1[[#This Row],[Staff]]","v":"Nicole"},{"$f":"Table1[[#This Row],[Date]]","v":"2012-08-27"}]
[1,196,"2012-08-27","Nicole","CustomPartic","E2","long name requested","changed to medium name",{"$f":"Table1[[#This Row],[Staff]]","v":"Nicole"},{"$f":"Table1[[#This Row],[Date]]","v":"2012-08-27"}]
[1,197,"2012-08-27","Nicole","ProjectRecord","G4","no message for long name","entered pop up message w/ instructions",{"$f":"Table1[[#This Row],[Staff]]","v":"Nicole"},{"$f":"Table1[[#This Row],[Date]]","v":"2012-08-27"}]
[1,198,"2012-08-27","Nicole","ProjectRecord","G15","format pop up message confusing","deleted pop up message",{"$f":"Table1[[#This Row],[Staff]]","v":"Nicole"},{"$f":"Table1[[#This Row],[Date]]","v":"2012-08-27"}]
[1,199,"2012-08-27","Nicole","Risks","A9","link to Q-net not applicable","deleted hyperlink",{"$f":"Table1[[#This Row],[Staff]]","v":"Nicole"},{"$f":"Table1[[#This Row],[Date]]","v":"2012-08-27"}]
[1,200,"2012-08-27","Nicole","Risks","A14","link to Q-net not applicable","deleted hyperlink",{"$f":"Table1[[#This Row],[Staff]]","v":"Nicole"},{"$f":"Table1[[#This Row],[Date]]","v":"2012-08-27"}]
[1,201,"2012-08-27","Nicole","Regions","P13","no option to select staff (core team), etc.","added Staff (Core Team) & Manager (Core Team) to DDL",{"$f":"Table1[[#This Row],[Staff]]","v":"Nicole"},{"$f":"Table1[[#This Row],[Date]]","v":"2012-08-27"}]
[1,202,"2012-08-27","Nicole","InterestedStaff","P13","no pop up message for interest","created \"enter interest\" pop up message",{"$f":"Table1[[#This Row],[Staff]]","v":"Nicole"},{"$f":"Table1[[#This Row],[Date]]","v":"2012-08-27"}]
[1,203,"2012-08-27","Nicole","InterestedStaff","P14","no pop up message for interest","created \"enter interest\" pop up message",{"$f":"Table1[[#This Row],[Staff]]","v":"Nicole"},{"$f":"Table1[[#This Row],[Date]]","v":"2012-08-27"}]
[1,204,"2012-08-27","Nicole","InterestedStaff","P15","no pop up message for interest","created \"enter interest\" pop up message",{"$f":"Table1[[#This Row],[Staff]]","v":"Nicole"},{"$f":"Table1[[#This Row],[Date]]","v":"2012-08-27"}]
[1,205,"2012-08-27","Nicole","InterestedStaff","P16","no pop up message for interest","created \"enter interest\" pop up message",{"$f":"Table1[[#This Row],[Staff]]","v":"Nicole"},{"$f":"Table1[[#This Row],[Date]]","v":"2012-08-27"}]
[1,206,"2012-08-27","Nicole","InterestedStaff","P17","no pop up message for interest","created \"enter interest\" pop up message",{"$f":"Table1[[#This Row],[Staff]]","v":"Nicole"},{"$f":"Table1[[#This Row],[Date]]","v":"2012-08-27"}]
[1,207,"2012-08-27","Nicole","InterestedStaff","P18","no pop up message for interest","created \"enter interest\" pop up message",{"$f":"Table1[[#This Row],[Staff]]","v":"Nicole"},{"$f":"Table1[[#This Row],[Date]]","v":"2012-08-27"}]
[1,208,"2012-08-27","Nicole","InterestedStaff","P24","no pop up message for interest","created \"enter interest\" pop up message",{"$f":"Table1[[#This Row],[Staff]]","v":"Nicole"},{"$f":"Table1[[#This Row],[Date]]","v":"2012-08-27"}]
[1,209,"2012-08-27","Nicole","InterestedStaff","P25","no pop up message for interest","created \"enter interest\" pop up message",{"$f":"Table1[[#This Row],[Staff]]","v":"Nicole"},{"$f":"Table1[[#This Row],[Date]]","v":"2012-08-27"}]
[1,210,"2012-08-27","Nicole","InterestedStaff","P26","no pop up message for interest","created \"enter interest\" pop up message",{"$f":"Table1[[#This Row],[Staff]]","v":"Nicole"},{"$f":"Table1[[#This Row],[Date]]","v":"2012-08-27"}]
[1,211,"2012-08-27","Nicole","InterestedStaff","P27","no pop up message for interest","created \"enter interest\" pop up message",{"$f":"Table1[[#This Row],[Staff]]","v":"Nicole"},{"$f":"Table1[[#This Row],[Date]]","v":"2012-08-27"}]
[1,212,"2012-08-27","Nicole","Summary","Q16","total resources not calculating correctly","Corrected calculation and moved it offsheet to U.16 for additional protection.","Maggie",{"$f":"Table1[[#This Row],[Date]]","v":"2012-08-27"}]
[1,213,"2012-08-27","Maggie","ProjectRecord",null,"Input message in 11 H-Q","Cleared data validation in cells",{"$f":"IF(Table1[[#This Row],[Staff]]=\"\",\"\",Table1[[#This Row],[Staff]])","v":"Maggie"},{"$f":"Table1[[#This Row],[Date]]","v":"2012-08-27"}]
[1,214,"2012-08-28","Nicole","Advisors","V13","drop down message had \"box\"","Deleted box",{"$f":"IF(Table1[[#This Row],[Staff]]=\"\",\"\",Table1[[#This Row],[Staff]])","v":"Nicole"},{"$f":"Table1[[#This Row],[Date]]","v":"2012-08-28"}]
[1,215,"2012-08-28","Nicole","Advisors","V19","drop down message had \"box\"","deleted box",{"$f":"IF(Table1[[#This Row],[Staff]]=\"\",\"\",Table1[[#This Row],[Staff]])","v":"Nicole"},{"$f":"Table1[[#This Row],[Date]]","v":"2012-08-28"}]
[1,216,"2012-08-28","Nicole","Advisors","V25","drop down message had \"box\"","deleted box",{"$f":"IF(Table1[[#This Row],[Staff]]=\"\",\"\",Table1[[#This Row],[Staff]])","v":"Nicole"},{"$f":"Table1[[#This Row],[Date]]","v":"2012-08-28"}]
[1,217,"2012-08-28","Nicole","Advisors","V31","drop down message had \"box\"","deleted box",{"$f":"IF(Table1[[#This Row],[Staff]]=\"\",\"\",Table1[[#This Row],[Staff]])","v":"Nicole"},{"$f":"Table1[[#This Row],[Date]]","v":"2012-08-28"}]
[1,218,"2012-08-28","Nicole","Advisors","V37","drop down message had \"box\"","deleted box",{"$f":"IF(Table1[[#This Row],[Staff]]=\"\",\"\",Table1[[#This Row],[Staff]])","v":"Nicole"},{"$f":"Table1[[#This Row],[Date]]","v":"2012-08-28"}]
[1,219,"2012-08-28","Nicole","InterestedStaff","X13","drop down message had \"box\"","deleted box",{"$f":"IF(Table1[[#This Row],[Staff]]=\"\",\"\",Table1[[#This Row],[Staff]])","v":"Nicole"},{"$f":"Table1[[#This Row],[Date]]","v":"2012-08-28"}]
[1,220,"2012-08-28","Nicole","InterestedStaff","X14","drop down message had \"box\"","deleted box",{"$f":"IF(Table1[[#This Row],[Staff]]=\"\",\"\",Table1[[#This Row],[Staff]])","v":"Nicole"},{"$f":"Table1[[#This Row],[Date]]","v":"2012-08-28"}]
[1,221,"2012-08-28","Nicole","InterestedStaff","X15","drop down message had \"box\"","deleted box",{"$f":"IF(Table1[[#This Row],[Staff]]=\"\",\"\",Table1[[#This Row],[Staff]])","v":"Nicole"},{"$f":"Table1[[#This Row],[Date]]","v":"2012-08-28"}]
[1,222,"2012-08-28","Nicole","InterestedStaff","X16","drop down message had \"box\"","deleted box",{"$f":"IF(Table1[[#This Row],[Staff]]=\"\",\"\",Table1[[#This Row],[Staff]])","v":"Nicole"},{"$f":"Table1[[#This Row],[Date]]","v":"2012-08-28"}]
[1,223,"2012-08-28","Nicole","InterestedStaff","X17","drop down message had \"box\"","deleted box",{"$f":"IF(Table1[[#This Row],[Staff]]=\"\",\"\",Table1[[#This Row],[Staff]])","v":"Nicole"},{"$f":"Table1[[#This Row],[Date]]","v":"2012-08-28"}]
[1,224,"2012-08-28","Nicole","InterestedStaff","X18","drop down message had \"box\"","deleted box",{"$f":"IF(Table1[[#This Row],[Staff]]=\"\",\"\",Table1[[#This Row],[Staff]])","v":"Nicole"},{"$f":"Table1[[#This Row],[Date]]","v":"2012-08-28"}]
[1,225,"2012-08-28","Nicole","InterestedStaff","X24","drop down message had \"box\"","deleted box",{"$f":"IF(Table1[[#This Row],[Staff]]=\"\",\"\",Table1[[#This Row],[Staff]])","v":"Nicole"},{"$f":"Table1[[#This Row],[Date]]","v":"2012-08-28"}]
[1,226,"2012-08-28","Nicole","InterestedStaff","X25","drop down message had \"box\"","deleted box",{"$f":"IF(Table1[[#This Row],[Staff]]=\"\",\"\",Table1[[#This Row],[Staff]])","v":"Nicole"},{"$f":"Table1[[#This Row],[Date]]","v":"2012-08-28"}]
[1,227,"2012-08-28","Nicole","InterestedStaff","X26","drop down message had \"box\"","deleted box",{"$f":"IF(Table1[[#This Row],[Staff]]=\"\",\"\",Table1[[#This Row],[Staff]])","v":"Nicole"},{"$f":"Table1[[#This Row],[Date]]","v":"2012-08-28"}]
[1,228,"2012-08-28","Nicole","InterestedStaff","X27","drop down message had \"box\"","deleted box. THIS VERSION IS RELEASED FOR ALL 2013 RMs",{"$f":"IF(Table1[[#This Row],[Staff]]=\"\",\"\",Table1[[#This Row],[Staff]])","v":"Nicole"},{"$f":"Table1[[#This Row],[Date]]","v":"2012-08-28"}]
[1,229,"2012-08-29","Nicole","InterestedStaff","P24","can't enter info","unlocked cell, protected sheet",{"$f":"IF(Table1[[#This Row],[Staff]]=\"\",\"\",Table1[[#This Row],[Staff]])","v":"Nicole"},{"$f":"Table1[[#This Row],[Date]]","v":"2012-08-29"}]
[1,230,"2012-08-29","Nicole","InterestedStaff","P25","can't enter info","unlocked cell, protected sheet",{"$f":"IF(Table1[[#This Row],[Staff]]=\"\",\"\",Table1[[#This Row],[Staff]])","v":"Nicole"},{"$f":"Table1[[#This Row],[Date]]","v":"2012-08-29"}]
[1,231,"2012-08-29","Nicole","InterestedStaff","P26","can't enter info","unlocked cell, protected sheet",{"$f":"IF(Table1[[#This Row],[Staff]]=\"\",\"\",Table1[[#This Row],[Staff]])","v":"Nicole"},{"$f":"Table1[[#This Row],[Date]]","v":"2012-08-29"}]
[1,232,"2012-08-29","Nicole","InterestedStaff","P27","can't enter info","unlocked cell, protected sheet",{"$f":"IF(Table1[[#This Row],[Staff]]=\"\",\"\",Table1[[#This Row],[Staff]])","v":"Nicole"},{"$f":"Table1[[#This Row],[Date]]","v":"2012-08-29"}]
[1,233,"2012-08-29","Nicole","InterestedStaff","D15","commissioner name misspelled","Changed from O'Keeffee to O'Keeffe. THIS VERSION IS RELEASED FOR ALL 2013 RMs",{"$f":"IF(Table1[[#This Row],[Staff]]=\"\",\"\",Table1[[#This Row],[Staff]])","v":"Nicole"},{"$f":"Table1[[#This Row],[Date]]","v":"2012-08-29"}]
[1,234,null,null,null,null,null,null,{"$f":"IF(Table1[[#This Row],[Staff]]=\"\",\"\",Table1[[#This Row],[Staff]])","v":""},{"$f":"Table1[[#This Row],[Date]]","v":"00:00:00"}]
[1,235,null,null,null,null,null,null,{"$f":"IF(Table1[[#This Row],[Staff]]=\"\",\"\",Table1[[#This Row],[Staff]])","v":""},{"$f":"Table1[[#This Row],[Date]]","v":"00:00:00"}]
[1,236,null,null,null,null,null,null,{"$f":"IF(Table1[[#This Row],[Staff]]=\"\",\"\",Table1[[#This Row],[Staff]])","v":""},{"$f":"Table1[[#This Row],[Date]]","v":"00:00:00"}]
[1,237,null,null,null,null,null,null,{"$f":"IF(Table1[[#This Row],[Staff]]=\"\",\"\",Table1[[#This Row],[Staff]])","v":""},{"$f":"Table1[[#This Row],[Date]]","v":"00:00:00"}]
[null,238,null,null,null,null,null,null,{"$f":"IF(Table1[[#This Row],[Staff]]=\"\",\"\",Table1[[#This Row],[Staff]])","v":""},{"$f":"Table1[[#This Row],[Date]]","v":"00:00:00"}]
[null,239,null,null,null,null,null,null,{"$f":"IF(Table1[[#This Row],[Staff]]=\"\",\"\",Table1[[#This Row],[Staff]])","v":""},{"$f":"Table1[[#This Row],[Date]]","v":"00:00:00"}]
[null,240,null,null,null,null,null,null,{"$f":"IF(Table1[[#This Row],[Staff]]=\"\",\"\",Table1[[#This Row],[Staff]])","v":""},{"$f":"Table1[[#This Row],[Date]]","v":"00:00:00"}]
[null,241,null,null,null,null,null,null,{"$f":"IF(Table1[[#This Row],[Staff]]=\"\",\"\",Table1[[#This Row],[Staff]])","v":""},{"$f":"Table1[[#This Row],[Date]]","v":"00:00:00"}]
[null,242,null,null,null,null,null,null,{"$f":"IF(Table1[[#This Row],[Staff]]=\"\",\"\",Table1[[#This Row],[Staff]])","v":""},{"$f":"Table1[[#This Row],[Date]]","v":"00:00:00"}]
[null,243,null,null,null,null,null,null,{"$f":"IF(Table1[[#This Row],[Staff]]=\"\",\"\",Table1[[#This Row],[Staff]])","v":""},{"$f":"Table1[[#This Row],[Date]]","v":"00:00:00"}]
[null,244,null,null,null,null,null,null,{"$f":"IF(Table1[[#This Row],[Staff]]=\"\",\"\",Table1[[#This Row],[Staff]])","v":""},{"$f":"Table1[[#This Row],[Date]]","v":"00:00:00"}]
[null,245,null,null,null,null,null,null,{"$f":"IF(Table1[[#This Row],[Staff]]=\"\",\"\",Table1[[#This Row],[Staff]])","v":""},{"$f":"Table1[[#This Row],[Date]]","v":"00:00:00"}]
[null,246,null,null,null,null,null,null,{"$f":"IF(Table1[[#This Row],[Staff]]=\"\",\"\",Table1[[#This Row],[Staff]])","v":""},{"$f":"Table1[[#This Row],[Date]]","v":"00:00:00"}]
[null,247,null,null,null,null,null,null,{"$f":"IF(Table1[[#This Row],[Staff]]=\"\",\"\",Table1[[#This Row],[Staff]])","v":""},{"$f":"Table1[[#This Row],[Date]]","v":"00:00:00"}]
[null,248,null,null,null,null,null,null,{"$f":"IF(Table1[[#This Row],[Staff]]=\"\",\"\",Table1[[#This Row],[Staff]])","v":""},{"$f":"Table1[[#This Row],[Date]]","v":"00:00:00"}]
[null,249,null,null,null,null,null,null,{"$f":"IF(Table1[[#This Row],[Staff]]=\"\",\"\",Table1[[#This Row],[Staff]])","v":""},{"$f":"Table1[[#This Row],[Date]]","v":"00:00:00"}]
[null,250,null,null,null,null,null,null,{"$f":"IF(Table1[[#This Row],[Staff]]=\"\",\"\",Table1[[#This Row],[Staff]])","v":""},{"$f":"Table1[[#This Row],[Date]]","v":"00:00:00"}]
[null,251,null,null,null,null,null,null,{"$f":"IF(Table1[[#This Row],[Staff]]=\"\",\"\",Table1[[#This Row],[Staff]])","v":""},{"$f":"Table1[[#This Row],[Date]]","v":"00:00:00"}]
[null,252,null,null,null,null,null,null,{"$f":"IF(Table1[[#This Row],[Staff]]=\"\",\"\",Table1[[#This Row],[Staff]])","v":""},{"$f":"Table1[[#This Row],[Date]]","v":"00:00:00"}]
[null,253,null,null,null,null,null,null,{"$f":"IF(Table1[[#This Row],[Staff]]=\"\",\"\",Table1[[#This Row],[Staff]])","v":""},{"$f":"Table1[[#This Row],[Date]]","v":"00:00:00"}]
[null,254,null,null,null,null,null,null,{"$f":"IF(Table1[[#This Row],[Staff]]=\"\",\"\",Table1[[#This Row],[Staff]])","v":""},{"$f":"Table1[[#This Row],[Date]]","v":"00:00:00"}]
[null,255,null,null,null,null,null,null,{"$f":"IF(Table1[[#This Row],[Staff]]=\"\",\"\",Table1[[#This Row],[Staff]])","v":""},{"$f":"Table1[[#This Row],[Date]]","v":"00:00:00"}]
[null,256,null,null,null,null,null,null,{"$f":"IF(Table1[[#This Row],[Staff]]=\"\",\"\",Table1[[#This Row],[Staff]])","v":""},{"$f":"Table1[[#This Row],[Date]]","v":"00:00:00"}]
[null,257,null,null,null,null,null,null,{"$f":"IF(Table1[[#This Row],[Staff]]=\"\",\"\",Table1[[#This Row],[Staff]])","v":""},{"$f":"Table1[[#This Row],[Date]]","v":"00:00:00"}]
[null,258,null,null,null,null,null,null,{"$f":"IF(Table1[[#This Row],[Staff]]=\"\",\"\",Table1[[#This Row],[Staff]])","v":""},{"$f":"Table1[[#This Row],[Date]]","v":"00:00:00"}]
[null,259,null,null,null,null,null,null,{"$f":"IF(Table1[[#This Row],[Staff]]=\"\",\"\",Table1[[#This Row],[Staff]])","v":""},{"$f":"Table1[[#This Row],[Date]]","v":"00:00:00"}]
[null,260,null,null,null,null,null,null,{"$f":"IF(Table1[[#This Row],[Staff]]=\"\",\"\",Table1[[#This Row],[Staff]])","v":""},{"$f":"Table1[[#This Row],[Date]]","v":"00:00:00"}]
[null,261,null,null,null,null,null,null,{"$f":"IF(Table1[[#This Row],[Staff]]=\"\",\"\",Table1[[#This Row],[Staff]])","v":""},{"$f":"Table1[[#This Row],[Date]]","v":"00:00:00"}]
[null,262,null,null,null,null,null,null,{"$f":"IF(Table1[[#This Row],[Staff]]=\"\",\"\",Table1[[#This Row],[Staff]])","v":""},{"$f":"Table1[[#This Row],[Date]]","v":"00:00:00"}]
[null,263,null,null,null,null,null,null,{"$f":"IF(Table1[[#This Row],[Staff]]=\"\",\"\",Table1[[#This Row],[Staff]])","v":""},{"$f":"Table1[[#This Row],[Date]]","v":"00:00:00"}]
[null,264,null,null,null,null,null,null,{"$f":"IF(Table1[[#This Row],[Staff]]=\"\",\"\",Table1[[#This Row],[Staff]])","v":""},{"$f":"Table1[[#This Row],[Date]]","v":"00:00:00"}]
[null,265,null,null,null,null,null,null,{"$f":"IF(Table1[[#This Row],[Staff]]=\"\",\"\",Table1[[#This Row],[Staff]])","v":""},{"$f":"Table1[[#This Row],[Date]]","v":"00:00:00"}]
[null,266,null,null,null,null,null,null,{"$f":"IF(Table1[[#This Row],[Staff]]=\"\",\"\",Table1[[#This Row],[Staff]])","v":""},{"$f":"Table1[[#This Row],[Date]]","v":"00:00:00"}]
[null,267,null,null,null,null,null,null,{"$f":"IF(Table1[[#This Row],[Staff]]=\"\",\"\",Table1[[#This Row],[Staff]])","v":""},{"$f":"Table1[[#This Row],[Date]]","v":"00:00:00"}]
[null,268,null,null,null,null,null,null,{"$f":"IF(Table1[[#This Row],[Staff]]=\"\",\"\",Table1[[#This Row],[Staff]])","v":""},{"$f":"Table1[[#This Row],[Date]]","v":"00:00:00"}]
[null,269,null,null,null,null,null,null,{"$f":"IF(Table1[[#This Row],[Staff]]=\"\",\"\",Table1[[#This Row],[Staff]])","v":""},{"$f":"Table1[[#This Row],[Date]]","v":"00:00:00"}]
[null,270,null,null,null,null,null,null,{"$f":"IF(Table1[[#This Row],[Staff]]=\"\",\"\",Table1[[#This Row],[Staff]])","v":""},{"$f":"Table1[[#This Row],[Date]]","v":"00:00:00"}]
[null,271,null,null,null,null,null,null,{"$f":"IF(Table1[[#This Row],[Staff]]=\"\",\"\",Table1[[#This Row],[Staff]])","v":""},{"$f":"Table1[[#This Row],[Date]]","v":"00:00:00"}]
[null,272,null,null,null,null,null,null,{"$f":"IF(Table1[[#This Row],[Staff]]=\"\",\"\",Table1[[#This Row],[Staff]])","v":""},{"$f":"Table1[[#This Row],[Date]]","v":"00:00:00"}]
[null,273,null,null,null,null,null,null,{"$f":"IF(Table1[[#This Row],[Staff]]=\"\",\"\",Table1[[#This Row],[Staff]])","v":""},{"$f":"Table1[[#This Row],[Date]]","v":"00:00:00"}]
[null,274,null,null,null,null,null,null,{"$f":"IF(Table1[[#This Row],[Staff]]=\"\",\"\",Table1[[#This Row],[Staff]])","v":""},{"$f":"Table1[[#This Row],[Date]]","v":"00:00:00"}]
[null,275,null,null,null,null,null,null,{"$f":"IF(Table1[[#This Row],[Staff]]=\"\",\"\",Table1[[#This Row],[Staff]])","v":""},{"$f":"Table1[[#This Row],[Date]]","v":"00:00:00"}]
[null,276,null,null,null,null,null,null,{"$f":"IF(Table1[[#This Row],[Staff]]=\"\",\"\",Table1[[#This Row],[Staff]])","v":""},{"$f":"Table1[[#This Row],[Date]]","v":"00:00:00"}]
[null,277,null,null,null,null,null,null,{"$f":"IF(Table1[[#This Row],[Staff]]=\"\",\"\",Table1[[#This Row],[Staff]])","v":""},{"$f":"Table1[[#This Row],[Date]]","v":"00:00:00"}]
[null,278,null,null,null,null,null,null,{"$f":"IF(Table1[[#This Row],[Staff]]=\"\",\"\",Table1[[#This Row],[Staff]])","v":""},{"$f":"Table1[[#This Row],[Date]]","v":"00:00:00"}]
[null,279,null,null,null,null,null,null,{"$f":"IF(Table1[[#This Row],[Staff]]=\"\",\"\",Table1[[#This Row],[Staff]])","v":""},{"$f":"Table1[[#This Row],[Date]]","v":"00:00:00"}]
[null,280,null,null,null,null,null,null,{"$f":"IF(Table1[[#This Row],[Staff]]=\"\",\"\",Table1[[#This Row],[Staff]])","v":""},{"$f":"Table1[[#This Row],[Date]]","v":"00:00:00"}]
[null,281,null,null,null,null,null,null,{"$f":"IF(Table1[[#This Row],[Staff]]=\"\",\"\",Table1[[#This Row],[Staff]])","v":""},{"$f":"Table1[[#This Row],[Date]]","v":"00:00:00"}]
[null,282,null,null,null,null,null,null,{"$f":"IF(Table1[[#This Row],[Staff]]=\"\",\"\",Table1[[#This Row],[Staff]])","v":""},{"$f":"Table1[[#This Row],[Date]]","v":"00:00:00"}]
[null,283,null,null,null,null,null,null,{"$f":"IF(Table1[[#This Row],[Staff]]=\"\",\"\",Table1[[#This Row],[Staff]])","v":""},{"$f":"Table1[[#This Row],[Date]]","v":"00:00:00"}]
[null,284,null,null,null,null,null,null,{"$f":"IF(Table1[[#This Row],[Staff]]=\"\",\"\",Table1[[#This Row],[Staff]])","v":""},{"$f":"Table1[[#This Row],[Date]]","v":"00:00:00"}]
[null,285,null,null,null,null,null,null,{"$f":"IF(Table1[[#This Row],[Staff]]=\"\",\"\",Table1[[#This Row],[Staff]])","v":""},{"$f":"Table1[[#This Row],[Date]]","v":"00:00:00"}]
[null,286,null,null,null,null,null,null,{"$f":"IF(Table1[[#This Row],[Staff]]=\"\",\"\",Table1[[#This Row],[Staff]])","v":""},{"$f":"Table1[[#This Row],[Date]]","v":"00:00:00"}]
[null,287,null,null,null,null,null,null,{"$f":"IF(Table1[[#This Row],[Staff]]=\"\",\"\",Table1[[#This Row],[Staff]])","v":""},{"$f":"Table1[[#This Row],[Date]]","v":"00:00:00"}]
[null,288,null,null,null,null,null,null,{"$f":"IF(Table1[[#This Row],[Staff]]=\"\",\"\",Table1[[#This Row],[Staff]])","v":""},{"$f":"Table1[[#This Row],[Date]]","v":"00:00:00"}]
[null,289,null,null,null,null,null,null,{"$f":"IF(Table1[[#This Row],[Staff]]=\"\",\"\",Table1[[#This Row],[Staff]])","v":""},{"$f":"Table1[[#This Row],[Date]]","v":"00:00:00"}]
[null,290,null,null,null,null,null,null,{"$f":"IF(Table1[[#This Row],[Staff]]=\"\",\"\",Table1[[#This Row],[Staff]])","v":""},{"$f":"Table1[[#This Row],[Date]]","v":"00:00:00"}]
[null,291,null,null,null,null,null,null,{"$f":"IF(Table1[[#This Row],[Staff]]=\"\",\"\",Table1[[#This Row],[Staff]])","v":""},{"$f":"Table1[[#This Row],[Date]]","v":"00:00:00"}]
[null,292,null,null,null,null,null,null,{"$f":"IF(Table1[[#This Row],[Staff]]=\"\",\"\",Table1[[#This Row],[Staff]])","v":""},{"$f":"Table1[[#This Row],[Date]]","v":"00:00:00"}]
[null,293,null,null,null,null,null,null,{"$f":"IF(Table1[[#This Row],[Staff]]=\"\",\"\",Table1[[#This Row],[Staff]])","v":""},{"$f":"Table1[[#This Row],[Date]]","v":"00:00:00"}]
[null,294,null,null,null,null,null,null,{"$f":"IF(Table1[[#This Row],[Staff]]=\"\",\"\",Table1[[#This Row],[Staff]])","v":""},{"$f":"Table1[[#This Row],[Date]]","v":"00:00:00"}]
[null,295,null,null,null,null,null,null,{"$f":"IF(Table1[[#This Row],[Staff]]=\"\",\"\",Table1[[#This Row],[Staff]])","v":""},{"$f":"Table1[[#This Row],[Date]]","v":"00:00:00"}]
[null,296,null,null,null,null,null,null,{"$f":"IF(Table1[[#This Row],[Staff]]=\"\",\"\",Table1[[#This Row],[Staff]])","v":""},{"$f":"Table1[[#This Row],[Date]]","v":"00:00:00"}]
[null,297,null,null,null,null,null,null,{"$f":"IF(Table1[[#This Row],[Staff]]=\"\",\"\",Table1[[#This Row],[Staff]])","v":""},{"$f":"Table1[[#This Row],[Date]]","v":"00:00:00"}]
[null,298,null,null,null,null,null,null,{"$f":"IF(Table1[[#This Row],[Staff]]=\"\",\"\",Table1[[#This Row],[Staff]])","v":""},{"$f":"Table1[[#This Row],[Date]]","v":"00:00:00"}]
[null,299,null,null,null,null,null,null,{"$f":"IF(Table1[[#This Row],[Staff]]=\"\",\"\",Table1[[#This Row],[Staff]])","v":""},{"$f":"Table1[[#This Row],[Date]]","v":"00:00:00"}]
[null,300,null,null,null,null,null,null,{"$f":"IF(Table1[[#This Row],[Staff]]=\"\",\"\",Table1[[#This Row],[Staff]])","v":""},{"$f":"Table1[[#This Row],[Date]]","v":"00:00:00"}]
[null,301,null,null,null,null,null,null,{"$f":"IF(Table1[[#This Row],[Staff]]=\"\",\"\",Table1[[#This Row],[Staff]])","v":""},{"$f":"Table1[[#This Row],[Date]]","v":"00:00:00"}]
[null,302,null,null,null,null,null,null,{"$f":"IF(Table1[[#This Row],[Staff]]=\"\",\"\",Table1[[#This Row],[Staff]])","v":""},{"$f":"Table1[[#This Row],[Date]]","v":"00:00:00"}]
[null,303,null,null,null,null,null,null,{"$f":"IF(Table1[[#This Row],[Staff]]=\"\",\"\",Table1[[#This Row],[Staff]])","v":""},{"$f":"Table1[[#This Row],[Date]]","v":"00:00:00"}]
[null,304,null,null,null,null,null,null,{"$f":"IF(Table1[[#This Row],[Staff]]=\"\",\"\",Table1[[#This Row],[Staff]])","v":""},{"$f":"Table1[[#This Row],[Date]]","v":"00:00:00"}]
[null,305,null,null,null,null,null,null,{"$f":"IF(Table1[[#This Row],[Staff]]=\"\",\"\",Table1[[#This Row],[Staff]])","v":""},{"$f":"Table1[[#This Row],[Date]]","v":"00:00:00"}]
[null,306,null,null,null,null,null,null,{"$f":"IF(Table1[[#This Row],[Staff]]=\"\",\"\",Table1[[#This Row],[Staff]])","v":""},{"$f":"Table1[[#This Row],[Date]]","v":"00:00:00"}]
[null,307,null,null,null,null,null,null,{"$f":"IF(Table1[[#This Row],[Staff]]=\"\",\"\",Table1[[#This Row],[Staff]])","v":""},{"$f":"Table1[[#This Row],[Date]]","v":"00:00:00"}]
[null,308,null,null,null,null,null,null,{"$f":"IF(Table1[[#This Row],[Staff]]=\"\",\"\",Table1[[#This Row],[Staff]])","v":""},{"$f":"Table1[[#This Row],[Date]]","v":"00:00:00"}]
[null,309,null,null,null,null,null,null,{"$f":"IF(Table1[[#This Row],[Staff]]=\"\",\"\",Table1[[#This Row],[Staff]])","v":""},{"$f":"Table1[[#This Row],[Date]]","v":"00:00:00"}]
[null,310," ",null,null,null,null,null,{"$f":"IF(Table1[[#This Row],[Staff]]=\"\",\"\",Table1[[#This Row],[Staff]])","v":""},{"$f":"Table1[[#This Row],[Date]]","v":" "}]
[null,311," ",null,null,null,null,null,{"$f":"IF(Table1[[#This Row],[Staff]]=\"\",\"\",Table1[[#This Row],[Staff]])","v":""},{"$f":"Table1[[#This Row],[Date]]","v":" "}]
[null,312," ",null,null,null,null,null,{"$f":"IF(Table1[[#This Row],[Staff]]=\"\",\"\",Table1[[#This Row],[Staff]])","v":""},{"$f":"Table1[[#This Row],[Date]]","v":" "}]

{"sheet":"Passwords","index":2,"n_rows":15,"n_cols":3,"rows_kept":15,"cut":false,"hidden":true,"merged":[]}
["Program","Rule name","Password"]
["AQ","ACDP Fee Increase (Division 216)","PDCA"]
["AQ","NESHAP & NSPS","HSEN"]
["AQ","GHG Reporting (Division 215)","RGHG"]
["AQ","Regional Haze Update - Mgr 14","igeR"]
["AQ","Regional Haze Update - Mgr 15","igeR"]
["AQ","Oregon Smoke Management Plan Review","gerO"]
["AQ","Infrastructure SIP - SO2, NO2 & Lead","rfnI"]
["AQ","Infrastructure SIP - PM2.5 - Mgr 14","rfnI"]
["AQ","Infrastructure SIP - PM2.5 - Mgr 15","rfnI"]
["AQ","Oregon LEV Update","gerO"]
["AQ","LRAPA - 2008 Industrial Streamlining","PARL"]
["AQ","LRAPA - 2010 Industrial Streamlining","PARL"]
["AQ","LRAPA PM2.5 & GHG","PARL"]
["AQ","LRAPA - Open Burning","PARL"]

{"sheet":"Summary","index":3,"n_rows":27,"n_cols":23,"rows_kept":27,"cut":false,"hidden":false,"merged":[[1,3,1,6],[4,2,4,14],[8,11,8,15],[9,11,9,15],[8,7,8,9],[9,7,9,9],[3,3,3,16],[7,14,7,17],[6,4,6,9],[7,4,7,6],[9,4,9,6],[1,7,1,16],[16,7,16,9],[17,7,17,9],[10,11,10,15],[15,11,15,15],[10,7,10,9],[11,7,11,9],[12,7,12,9],[11,4,11,6],[12,4,12,6],[13,4,13,6],[25,2,25,3],[14,4,14,6],[15,4,15,6],[16,4,16,6],[17,4,17,6],[18,4,18,6],[19,4,19,6],[25,4,25,6],[22,4,22,6],[26,4,26,6],[7,7,7,9],[18,7,18,9],[19,7,19,9],[20,7,20,9],[22,7,22,9],[25,7,25,9],[21,4,21,6],[21,7,21,9],[13,7,13,9],[14,7,14,9],[15,7,15,9],[20,4,20,6],[26,7,26,9],[8,4,8,6],[10,4,10,6],[19,10,19,14],[23,4,23,6],[23,7,23,9],[24,4,24,6],[24,7,24,9]]}
[]
[null,null,null,"DEQ Rulemaking",null,null,null,{"$f":"TODAY()","v":"2012-09-07"},null,null,null,null,null,null,null,null,null,null,null," "]
[null,null,null,null,null,null,null,null,null,null,null,null,null,null,null,null,null," ",null,null,null,null," "]
[null,null,null,{"$f":"R.1ProjectName","v":"Enter long project name on 1ProjectRecord, row 4"}]
[null,null,"Workbook summary"]
[]
[null,null,1,{"$f":"'1ProjectRecord'!D2","v":"Project record"},"Estimated hours              "]
[null,null,2,"Risks","Low",null,null,"High",null,null,null,null,null,null,"Resource risks"]
[null,null,3,{"$f":"'3CoreTeam'!D2","v":"Core Team"},{"$f":"R.3LowHrs","v":0},null,null,{"$f":"R.3HighHrs","v":0},null,null,null,"Organizational",null,null,null,null,{"$f":"V9","v":"Low"},null,null,null,{"$f":"R.2aOrgRisk","v":1},{"$f":"IF(U9=1,\"Low\",IF(U9=2,\"Low/Medium\",IF(U9=3,\"Medium\",IF(U9=4,\"Medium/High\",\"High\"))))","v":"Low"}]
[null,null,4,{"$f":"'4Advisors'!D2","v":"Advisors"},{"$f":"R.4LowHrs","v":0},null,null,{"$f":"R.4HighHrs","v":0},null,null,null,"Capability",null,null,null,null,{"$f":"V10","v":"Low"},null,null,null,{"$f":"R.2bOrgRisk","v":1},{"$f":"IF(U10=1,\"Low\",IF(U10=2,\"Low/Medium\",IF(U10=3,\"Medium\",IF(U10=4,\"Medium/High\",\"High\"))))","v":"Low"}]
[null,null,5,{"$f":"'5InterestedStaff'!D2","v":"Interested Staff and EQC"},{"$f":"R.5LowHrs","v":0},null,null,{"$f":"R.5HighHrs","v":0},null,null,null,"Skills and Experience",null,null,null,null,{"$f":"V11","v":"Low"},null,null,null,{"$f":"R.2cOrgRisk","v":1},{"$f":"IF(U11=1,\"Low\",IF(U11=2,\"Low/Medium\",IF(U11=3,\"Medium\",IF(U11=4,\"Medium/High\",\"High\"))))","v":"Low"}]
[null,null,6,{"$f":"'6OtherDivisions'!D2","v":"Other Divisions"},{"$f":"R.6LowHrs","v":0},null,null,{"$f":"R.6HighHrs","v":0}]
[null,null,7,{"$f":"'7Regions'!D2","v":"Regions"},{"$f":"R.7LowHrs","v":0},null,null,{"$f":"R.7HighHrs","v":0}]
[null,null,8,{"$f":"'8FinancialServices'!D2","v":"Financial Services"},{"$f":"R.8LowHrs","v":0},null,null,{"$f":"R.8HighHrs","v":0}]
[null,null,9,{"$f":"'9OCO'!D2","v":"Communications and Outreach"},{"$f":"R.9LowHrs","v":0},null,null,{"$f":"R.9HighHrs","v":0}]
[null,null,10,{"$f":"'10OrgServices'!D2","v":"Organizational Services"},{"$f":"R.10LowHrs","v":0},null,null,{"$f":"R.10HighHrs","v":0},null,null,null,"Resources identified",null,null,null,null,{"$f":"U16","v":0},null,null,null,{"$f":"SUM(R.3StaffCount,R.4StaffCount,R.5StaffCount,R.6StaffCount,R.7StaffCount,R.8StaffCount,R.9StaffCount,R.10StaffCount,R.11StaffCount,R.12StaffCount,R.13StaffCount,R.15StaffCount)","v":0}]
[null,null,11,{"$f":"'11TechServices'!D2","v":"Technical Services"},{"$f":"R.11LowHrs","v":0},null,null,{"$f":"R.11HighHrs","v":0}]
[null,null,12,"Compliance and Enforcement",{"$f":"R.12LowHrs","v":0},null,null,{"$f":"R.12HighHrs","v":0}]
[null,null,13,{"$f":"'13LEAD'!D2","v":"LEAD"},{"$f":"R.13LowHrs","v":0},null,null,{"$f":"R.13HighHrs","v":0}]
[null,null,14,{"$f":"'14Intergovernmental'!D2","v":"Intergovernmental"},{"$f":"R.14LowHrs","v":0},null,null,{"$f":"R.14HighHrs","v":0},null,null," "]
[null,null,15,{"$f":"'15CustomParticipants'!D2","v":"Custom Participants"},{"$f":"R.15LowHrs","v":0},null,null,{"$f":"R.15HighHrs","v":0}]
[null,null,16,"EMT ",{"$f":"14*1","v":14},null,null,{"$f":"14*4","v":56}]
[null,null,null,"Total hours",{"$f":"SUM(E9:E22)","v":14},null,null,{"$f":"SUM(H9:H22)","v":56}]
[null,null,null,"Intergovernmental",{"$f":"-R.14LowHrs","v":0},null,null,{"$f":"-R.14HighHrs","v":0}]
[null,null,null,null,{"$f":"SUM(E23:E24)","v":14},null,null,{"$f":"SUM(H23:H24)","v":56}]
[null,null,"2012 DEQ avg. staff cost per hour",null,{"$f":"\"X    $\"&R.AvgHrDEQCost","v":"X    $58"},null,null,{"$f":"\"X    $\"&R.AvgHrDEQCost","v":"X    $58"}]
[null,null,null,"Estimated cost                                                                                      ",{"$f":"E25*R.AvgHrDEQCost","v":812},null,null,{"$f":"H25*R.AvgHrDEQCost","v":3248}]

{"sheet":"1ProjectRecord","index":4,"n_rows":23,"n_cols":25,"rows_kept":23,"cut":false,"hidden":false,"merged":[[18,7,18,17],[6,7,6,17],[1,3,1,5],[3,6,3,17],[4,3,4,5],[7,7,7,17],[8,7,8,17],[9,7,9,17],[19,6,19,17],[20,6,20,17],[22,3,22,17],[21,3,21,12],[1,6,1,17],[17,6,17,17],[11,6,11,17],[12,6,12,17],[13,6,13,17],[14,6,14,17],[15,6,15,17],[16,6,16,17],[4,7,4,17],[5,8,5,14],[5,15,5,16],[3,3,3,5]]}
["⧀ Go to Content"]
[null,null,1,"Project record",null,null,{"$f":"R.1MediaAndLongName","v":"AQ LRAPA - Open Burning"},null,null,null,null,null,null,null,null,null,null,null,null,null,null,"2012 - Average DEQ hourly cost",58]
[null,null,null,null,null,null,null,null,null,null,null,null,null,null,null,null,null,null,null,null,null,null,null,null," "]
[null,null,null,"Project name",null,null,"Enter long project name on 1ProjectRecord, row 4",null,null,null,null,null,null,null,null,null,null,null,null,null,null,{"$f":"P6&\" \"&H5","v":"AQ LRAPA - Open Burning"}]
[null,null,null,"Shortened names",null,null,"LROpnBrn","LRAPA - Open Burning"]
[null,null,null,"Annual DEQ Rulemaking Plan year",null,null,2013,null,"Division",null,null,null,null,null,null,"AQ",null,null,null,null,null,{"$f":"P6","v":"AQ"},null,null,"ï drop down to select Division"]
["Go to Q-Time",null,null,"Q-time for devloping this plan",null,null,43007,{"$f":"P.1PlanYear& \" Rulemaking: \"&$P$6&\" \"&$H$5","v":"2013 Rulemaking: AQ LRAPA - Open Burning"},null,null,null,null,null,null,null,null,null,null,null,null,null,null,null,null," "]
[null,null,null,"Q-time for NAME PURPOSE",null,null,"##### ",{"$f":"P.1PlanYear& \" Rules \"&$P$6&\" \"&$G$5","v":"2013 Rules AQ LROpnBrn"}]
[null,null,null,"Q-time for NAME PURPOSE",null,null,"##### ",{"$f":"P.1PlanYear& \" Rules \"&$P$6&\" \"&$G$5","v":"2013 Rules AQ LROpnBrn"}]
[null,null,null,"Q-time for NAME PURPOSE",null,null,"##### ",{"$f":"P.1PlanYear& \" Rules \"&$P$6&\" \"&$G$5","v":"2013 Rules AQ LROpnBrn"}]
[null,null,null,"Best practices: maintaining rulemaking record",null,null,null,null,null,null,null,null,null,null,null,null,null,null,null,null,null,null,null,null," "]
[null,null,null,"Start each email Subject line with",null,null,{"$f":"\"RM-\"&G5","v":"RM-LROpnBrn"},null,null,null,null,null,null,null,null,null,null,null,null,null,null," "]
[null,null,null,"Email folder",null,null,{"$f":"\"RM-\"&G5&\" \"&P.1PlanYear","v":"RM-LROpnBrn 2013"}]
[null,null,null,"Electronic record: SharePoint",null,null,{"$f":"G5","v":"LROpnBrn"}]
[null,null,null,"Electronic record: Rules Development",null,null,{"$f":"\"\\\\deqhq1\\Rule_Development\\2013 Plan\"&\"\\\"&G5","v":"\\\\deqhq1\\Rule_Development\\2013 Plan\\LROpnBrn"}]
[null,null,null,"Physical record",null,"Pre filing","Enter location of record"]
[null,null,null,null,null,"Post filing","Central rulemaking file, then offsite Archives "]
[null,null,null,"Rule design team email group ",null,null,{"$f":"G13&\" Design Team\"","v":"RM-LROpnBrn 2013 Design Team"}]
[null,null,null,"Project number",null,null,"######",{"$f":"P.1PlanYear& \" Rules \"&$P$6&\" \"&$G$5","v":"2013 Rules AQ LROpnBrn"}]
[null,null,null,"Advisory Committee email group",null,null,{"$f":"\"AdvisoryCommittee_\"&P6&\"_\"&P.1PlanYear&\"_\"&G5","v":"AdvisoryCommittee_AQ_2013_LROpnBrn"}]
[null,null,null,"Public comment email box ",null,null,{"$f":"\"Comment-\"&SUBSTITUTE(H5,\" \",\"\")&\"@deq.state.or.us\"","v":"Comment-LRAPA-OpenBurning@deq.state.or.us"},null,null,null,null,null,null,null,null,null,null,null,null,null,null,null,null,null," "]
[null,null,null,{"$f":"\"Please suggest process improvements to the \"&D2&\" worksheet.\"","v":"Please suggest process improvements to the Project record worksheet."}]
[null,null,null," "]

{"sheet":"2Risks","index":5,"n_rows":21,"n_cols":23,"rows_kept":21,"cut":false,"hidden":false,"merged":[[1,5,1,7],[10,3,10,4],[15,3,15,4],[10,5,10,6],[15,5,15,6],[7,3,7,7],[12,3,12,7],[19,3,19,7],[5,3,5,4],[5,5,5,6],[18,3,18,7],[17,3,17,7]]}
["⧀ Go to Content"]
["Risk Management",null,2,"DEQ resource risks",null,{"$f":"R.1MediaAndLongName","v":"AQ LRAPA - Open Burning"}]
[]
["on Q-net",null,null,"a. Organizational",null,null,null,null,null,null,null," ",null,null,null,null,null,null,null,null,null,null,"Days Added to schedule"]
[null,null,null,"Limited impact on operations or staff",null,"Some impact on operations, retraining, transfer or reassigning staff",null,"Significant impact on operations, restructuring, potential for high profile failure",null,null,null,"R.2aOrgRisk"]
[null,null,null,"  ",null,null,null,null,null,null,null,1]
[null,null,null,"Optional discussion"]
[]
[null,null,null,"b. Capability",null,null,null,null,null,null,null," ",null,null,null,null,null,null,null,null,null,null,"Days Added to schedule"]
[null,null,null,"Program/DEQ has extensive experience with previous comparable outputs",null,"Program/DEQ has experience with comparable projects but this project has new complexities",null,"No previous experience with this type of proposal",null,null,null,"R.2bOrgRisk"]
[null,null,null,"  ",null,null,null,null,null,null,null,1]
[null,null,null,"Optional discussion"]
[]
[null,null,null,"c. Skills and experience",null,null,null,null,null,null,null," ",null,null,null,null,null,null,null,null,null,null,"Days Added to schedule"]
[null,null,null,"Fully resourced, skilled management and team, no recruitment or specialist training",null,"Key skills and experience in place but recruitment or training required",null,"Key skills or experience not in place, recruitment or extensive training required ",null,null,null,"R.2cOrgRisk",null,null,null,null," "]
[null,null,null,"  ",null,null,null,null,null,null,null,1,null,null,null,null," "]
[null,null,null,"Optional discussion"]
[]
[null,null,null,{"$f":"\"Please suggest process improvements to the \"&D2&\" worksheet.\"","v":"Please suggest process improvements to the DEQ resource risks worksheet."}]
[]
["Go to Top"]

{"sheet":"3CoreTeam","index":6,"n_rows":53,"n_cols":23,"rows_kept":53,"cut":false,"hidden":false,"merged":[[6,3,6,15],[11,5,11,14],[1,4,1,15],[2,12,2,15],[3,5,3,11],[3,12,3,15],[4,5,4,11],[4,12,4,15],[10,3,10,15],[51,3,51,15],[16,3,16,15],[28,3,28,15],[34,3,34,15],[22,3,22,15],[31,4,31,15],[40,3,40,15],[46,3,46,15],[50,3,50,4]]}
["⧀ Go to Content"]
[null,null,3,"Core Team",{"$f":"R.1MediaAndLongName","v":"AQ LRAPA - Open Burning"},null,null,null,null,null,null,null,null,null,null,null,null,null,{"$f":"\"R.\"&$C$2&\"StaffCount\"","v":"R.3StaffCount"},{"$f":"\"R.\"&$C$2&\"LowHrs\"","v":"R.3LowHrs"},{"$f":"\"R.\"&$C$2&\"HighHrs\"","v":"R.3HighHrs"}," "]
[null,null,null,null,null,null,null,null,null,null,null,null,"Estimated range",null,null,null,null,null,{"$f":"COUNTIFS(S13:S49,\">0\")","v":0},{"$f":"SUM(T13:T49)","v":0},{"$f":"SUM(U13:U49)","v":0}]
[null,null,null,"Number of staff involved",{"$f":"S3","v":0},"Hours",null,null,null,null,null,null,{"$f":"S4","v":"0"},null,null,null,null,null,{"$f":"IF(R.3StaffCount=0,\"0\",IF(R.3LowHrs=0,\"0-\"&TEXT(R.3HighHrs,\"#,###\"),TEXT(R.3LowHrs,\"#,###\")&\"-\"&TEXT(R.3HighHrs,\"#,###\")))","v":"0"},{"$f":"\"R.\"&$C$2&\"LowDollars\"","v":"R.3LowDollars"},{"$f":"\"R.\"&$C$2&\"HighDollars\"","v":"R.3HighDollars"}]
[null,null,null,"DEQ 2012 average hourly  $",{"$f":"R.AvgHrDEQCost","v":58},"Staff cost ",null,null,null,null,null,null,{"$f":"S5","v":"$0"},null,null,null,null,null,{"$f":"IF(R.3StaffCount=0,\"$0\",IF(R.3LowDollars=0,\"$0-\"&TEXT(R.3HighDollars,\"#,###\"),TEXT(R.3LowDollars,\"$#,###\")&\"-\"&TEXT(R.3HighDollars,\"#,###\")))","v":"$0"},{"$f":"T3*E5","v":0},{"$f":"U3*E5","v":0}]
[null,null,null,"MESSAGE",null,null,null,null,null,null,null,null,null,null,null,null,null,null,{"$f":"SUM(S13:S49)/R.3StaffCount","v":{"$error":"#DIV/0!"}}]
[null,null,null,null,null,null,null,null,null,null,null,null,null,null,null,null,null,null," ",null,null,null," "]
[]
[null,null," ","Subject Expert (SE)"]
[null,null,null,"Role and Responsibilities"]
[null,null,null,"The subject expert works with the lead manager and rules coordinator (team) to develop the concept in the Considerations and Resources workbooks by:\n    • Working with the rules coordinator to meet shared responsibilities listed under Rule Coordinator section below\n    • Developing the rough draft using what she or he:\n        - Knows now, or \n        - Can readily find out\n   • Participating in the team work session to refine the draft\n   • Participating in briefing the lead administrator \n   • Reconciling the lead administrator’s comments with the draft workbooks"]
[null,null,null,"Name","Select hours","Workload indicator"]
[null,null,null,"SE name","< 1 hour",1,2,3,4,5,6,7,8,9,10,null,null,null,{"$f":"VLOOKUP($E13,R.VL_DEQResourcesInvolved,2,FALSE)","v":0},{"$f":"VLOOKUP($E13,R.VL_DEQResourcesInvolved,3,FALSE)","v":0},{"$f":"IF(S13=10,T13,VLOOKUP($E13,R.VL_DEQResourcesInvolved,4,FALSE))","v":0},"ï drop down to Select hours"]
[]
[null,null,null,"Lead Manager (LM)"]
[null,null,null,"Role and Responsibilities"]
[null,null,null,"The lead manager is a contributing member on the team who will be:  \n   • Consulting with the lead administrator and approving the initial work on the Considerations and Resources workbooks\n   • Notifying the subject expert to develop the workbooks in rough draft\n   • Stopping/delaying work if the rough draft is out of sync with current section or program priorities\n   • Raising potential issues to the lead administrator \n   • Participating in team work sessions to refine the workbooks   \n   • Reviewing and approving the release of the workbooks to the lead administrator  \n   • Participating in briefing the lead administrator \n   • Reviews the 2013 DEQ Rulemaking Plan to ensure concept accuracy \n   • Participates in the EMT’s 2013 DEQ Annual Plan review "]
[null,null,null,"Name","Select hours","Workload indicator",null,null,null,null,null,null,null,null,null," "]
[null,null,null,"LM name","< 1 hour",1,2,3,4,5,6,7,8,9,10,null,null,null,{"$f":"VLOOKUP($E19,R.VL_DEQResourcesInvolved,2,FALSE)","v":0},{"$f":"VLOOKUP($E19,R.VL_DEQResourcesInvolved,3,FALSE)","v":0},{"$f":"IF(S19=10,T19,VLOOKUP($E19,R.VL_DEQResourcesInvolved,4,FALSE))","v":0},"ï drop down to Select hours"]
[]
["on Q-net",null,null,"Lead Administrator (LA)"]
[null,null,null,"Role and Responsibilities"]
[null,null,null,"The lead administrator: \n    • In consultation with the lead manager, approves initial work on the Considerations and Resources worksheets.  \n    • Ensures the program manager and the team has adequate and appropriate resources\n    • Advises the team as needed \n    • Reviews, approves, denies or delays concept for consistency with cross-program and divisional priorities\n    • Leads the EMT presentation for this concept during the plan review"]
[null,null,null,"Name","Select hours","Workload indicator",null,null,null,null,null,null,null,null,null," "]
[null,null,null,"LA name","< 1 hour",1,2,3,4,5,6,7,8,9,10,null,null,null,{"$f":"VLOOKUP($E25,R.VL_DEQResourcesInvolved,2,FALSE)","v":0},{"$f":"VLOOKUP($E25,R.VL_DEQResourcesInvolved,3,FALSE)","v":0},{"$f":"IF(S25=10,T25,VLOOKUP($E25,R.VL_DEQResourcesInvolved,4,FALSE))","v":0},"ï drop down to Select hours"]
[]
["on Q-net",null,null,"Process Expert (PE)"]
[null,null,null,"Role and Responsibilities"]
[null,null,null,"The rules coordinator is the expert on the rulemaking process. The RC is responsible for helping the subject expert in:\n     •  Developing and maintaining the:\n          - Blueprint and SharePoint site\n          - Schedule \n     •  Engaging DEQ resources\n     •  Reviewing all written materials and editing for:\n         - plain English\n         - DEQ Style Guide \n     • Ensuring that each plan has all required reviews and approvals before:  \n         - Submitting to the regional or division administrator\n         - Checking in workbooks for adding to the consolidated DEQ plan  "]
[null,null,null,"Name","Select hours","Workload indicator",null,null,null,null,null,null,null,null,null," "]
[null,null,null,"PE name","< 1 hour",1,2,3,4,5,6,7,8,9,10,null,null,null,{"$f":"VLOOKUP($E31,R.VL_DEQResourcesInvolved,2,FALSE)","v":0},{"$f":"VLOOKUP($E31,R.VL_DEQResourcesInvolved,3,FALSE)","v":0},{"$f":"IF(S31=10,T31,VLOOKUP($E31,R.VL_DEQResourcesInvolved,4,FALSE))","v":0},"ï drop down to Select hours"]
[]
[null,null,null,"Project Assistant (PA)"]
[null,null,null,"Role and Responsibilities"]
[null,null,null,"The Project Assistant is responsible for helping the rulemaking team in:\n• Helping team maintain advisory committee list, minutes and agendas\n• Scheduling meeting rooms and equipment\n• Managing iLinc, conference call-in numbers, mailings and GovDelivery\n• Working with team to maintain physical and electronic records"]
[null,null,null,"Name","Select hours","Workload indicator",null,null,null,null,null,null,null,null,null," "]
[null,null,null,"PA name","< 1 hour",1,2,3,4,5,6,7,8,9,10,null,null,null,{"$f":"VLOOKUP($E37,R.VL_DEQResourcesInvolved,2,FALSE)","v":0},{"$f":"VLOOKUP($E37,R.VL_DEQResourcesInvolved,3,FALSE)","v":0},{"$f":"IF(S37=10,T37,VLOOKUP($E37,R.VL_DEQResourcesInvolved,4,FALSE))","v":0},"ï drop down to Select hours"]
[]
[null,null,null,"Custom Role 1"]
[null,null,null,"Role and Responsibilities"]
[null,null,null," "]
[null,null,null,"Name","Select hours","Workload indicator",null,null,null,null,null,null,null,null,null," "]
[null,null,null,"CR1 name","< 1 hour",1,2,3,4,5,6,7,8,9,10,null,null,null,{"$f":"VLOOKUP($E43,R.VL_DEQResourcesInvolved,2,FALSE)","v":0},{"$f":"VLOOKUP($E43,R.VL_DEQResourcesInvolved,3,FALSE)","v":0},{"$f":"IF(S43=10,T43,VLOOKUP($E43,R.VL_DEQResourcesInvolved,4,FALSE))","v":0},"ï drop down to Select hours"]
[]
[null,null,null,"Custom Role 2"]
[null,null,null,"Role and Responsibilities"]
[]
[null,null,null,"Name","Select hours","Workload indicator",null,null,null,null,null,null,null,null,null," "]
[null,null,null,"Cr2 name","< 1 hour",1,2,3,4,5,6,7,8,9,10,null,null,null,{"$f":"VLOOKUP($E49,R.VL_DEQResourcesInvolved,2,FALSE)","v":0},{"$f":"VLOOKUP($E49,R.VL_DEQResourcesInvolved,3,FALSE)","v":0},{"$f":"IF(S49=10,T49,VLOOKUP($E49,R.VL_DEQResourcesInvolved,4,FALSE))","v":0},"ï drop down to Select hours"]
[]
[null,null,null,{"$f":"\"Please suggest process improvements to the \"&D2&\" worksheet.\"","v":"Please suggest process improvements to the Core Team worksheet."}]
[]
["Go to Top"]

{"sheet":"4Advisors","index":7,"n_rows":41,"n_cols":23,"rows_kept":41,"cut":false,"hidden":false,"merged":[[6,3,6,15],[6,18,6,20],[1,4,1,15],[2,12,2,15],[3,5,3,11],[3,12,3,15],[4,5,4,11],[4,12,4,15],[10,3,10,15],[16,3,16,15],[22,3,22,15],[39,3,39,15],[34,3,34,15],[28,3,28,15],[38,3,38,4]]}
["⧀ Go to Content"]
["Go to DEQ",null,4,"Advisors",{"$f":"R.1MediaAndLongName","v":"AQ LRAPA - Open Burning"},null,null,null,null,null,null,null,null,null,null,null,null,null,{"$f":"\"R.\"&$C$2&\"StaffCount\"","v":"R.4StaffCount"},{"$f":"\"R.\"&$C$2&\"LowHrs\"","v":"R.4LowHrs"},{"$f":"\"R.\"&$C$2&\"HighHrs\"","v":"R.4HighHrs"}," "]
[null,null,null,null,null,null,null,null,null,null,null,null,"Estimated range",null,null,null,null,null,{"$f":"COUNTIFS(S9:S37,\">0\")","v":0},{"$f":"SUM(T9:T37)","v":0},{"$f":"SUM(U9:U37)","v":0}]
[null,null,null,"Number of staff involved",{"$f":"S3","v":0},"Hours",null,null,null,null,null,null,{"$f":"S4","v":"0"},null,null,null,null,null,{"$f":"IF(R.4StaffCount=0,\"0\",IF(R.4LowHrs=0,\"0-\"&TEXT(R.4HighHrs,\"#,###\"),TEXT(R.4LowHrs,\"#,###\")&\"-\"&TEXT(R.4HighHrs,\"#,###\")))","v":"0"},{"$f":"\"R.\"&$C$2&\"LowDollars\"","v":"R.4LowDollars"},{"$f":"\"R.\"&$C$2&\"HighDollars\"","v":"R.4HighDollars"}]
[null,null,null,"DEQ 2012 average hourly  $",{"$f":"R.AvgHrDEQCost","v":58},"Staff cost ",null,null,null,null,null,null,{"$f":"S5","v":"$0"},null,null,null,null,null,{"$f":"IF(R.4StaffCount=0,\"$0\",IF(R.4LowDollars=0,\"$0-\"&TEXT(R.4HighDollars,\"#,###\"),TEXT(R.4LowDollars,\"$#,###\")&\"-\"&TEXT(R.4HighDollars,\"#,###\")))","v":"$0"},{"$f":"T3*E5","v":0},{"$f":"U3*E5","v":0}]
[null,null,null,"MESSAGE",null,null,null,null,null,null,null,null,null,null,null,null,null,null," "]
[null,null,null,null,null,null,null,null,null,null,null,null,null,null,null,null,null,null," ",null,null,null," "]
[]
["Go to DOJ",null,null,"Assistant AG"]
[null,null,null,"Role and Responsibilities"]
[null,null,null,"If needed, DOJ provides legal advice to ensure legal sufficiency, defensibility and enforceability and to determine if we are within our authority and consistent with statute.",null,null,null,null,null,null,null,null,null,null,null,null,null,null," "]
[null,null,null,"Name","Select hours","Workload indicator",null,null,null,null,null,null,null,null,null," "]
[null,null,null,"Larry Knudsen","< 1 hour",1,2,3,4,5,6,7,8,9,10,null,null,null,{"$f":"VLOOKUP($E13,R.VL_DEQResourcesInvolved,2,FALSE)","v":0},{"$f":"VLOOKUP($E13,R.VL_DEQResourcesInvolved,3,FALSE)","v":0},{"$f":"IF(S13=10,T13,VLOOKUP($E13,R.VL_DEQResourcesInvolved,4,FALSE))","v":0},"ï drop down to Select hours"]
[]
["on SOS",null,null,"Agency Rules Coordinator"]
[null,null,null,"Role and Responsibilities"]
[null,null,null,"Shares information about DEQ best practices; ensures documents meet rulemaking procedural requirements; reviews DAS fee submittals; reviews, approves and submits SOS notice and filing. Participates in some team meetings and training. Backup for division rules coordinator.",null,null,null,null,null,null,null,null,null,null,null,null,null,null," "]
[null,null,null,"Name","Select hours","Workload indicator",null,null,null,null,null,null,null,null,null," "]
[null,null,null,"Maggie Vandehey","< 1 hour",1,2,3,4,5,6,7,8,9,10,null,null,null,{"$f":"VLOOKUP($E19,R.VL_DEQResourcesInvolved,2,FALSE)","v":0},{"$f":"VLOOKUP($E19,R.VL_DEQResourcesInvolved,3,FALSE)","v":0},{"$f":"IF(S19=10,T19,VLOOKUP($E19,R.VL_DEQResourcesInvolved,4,FALSE))","v":0},"ï drop down to Select hours"]
[]
["on Q-net",null,null,"State Implementation Plan Coordinator"]
[null,null,null,"Role and Responsibilities"]
[null,null,null,"The SIP coordinator is responsible for helping the subject expert meet federal requirements that include timelines, EPA review, public notice process, SIP numbering and submissions.",null,null,null,null,null,null,null,null,null,null,null,null,null,null," "]
[null,null,null,"Name","Select hours","Workload indicator",null,null,null,null,null,null,null,null,null," "]
[null,null,null,"Nicole Vick","< 1 hour",1,2,3,4,5,6,7,8,9,10,null,null,null,{"$f":"VLOOKUP($E25,R.VL_DEQResourcesInvolved,2,FALSE)","v":0},{"$f":"VLOOKUP($E25,R.VL_DEQResourcesInvolved,3,FALSE)","v":0},{"$f":"IF(S25=10,T25,VLOOKUP($E25,R.VL_DEQResourcesInvolved,4,FALSE))","v":0},"ï drop down to Select hours"]
[]
[null,null,null,"Custom Role 1"]
[null,null,null,"Role and Responsibilities"]
[null,null,null," ",null,null,null,null,null,null,null,null,null,null,null,null,null,null," "]
[null,null,null,"Name","Select hours","Workload indicator",null,null,null,null,null,null,null,null,null," "]
[null,null,null,"CR1 name","< 1 hour",1,2,3,4,5,6,7,8,9,10,null,null,null,{"$f":"VLOOKUP($E31,R.VL_DEQResourcesInvolved,2,FALSE)","v":0},{"$f":"VLOOKUP($E31,R.VL_DEQResourcesInvolved,3,FALSE)","v":0},{"$f":"IF(S31=10,T31,VLOOKUP($E31,R.VL_DEQResourcesInvolved,4,FALSE))","v":0},"ï drop down to Select hours"]
[]
[null,null,null,"Custom Role 2"]
[null,null,null,"Role and Responsibilities"]
[null,null,null," ",null,null,null,null,null,null,null,null,null,null,null,null,null,null," "]
[null,null,null,"Name","Select hours","Workload indicator",null,null,null,null,null,null,null,null,null," "]
[null,null,null,"CR2 name","< 1 hour",1,2,3,4,5,6,7,8,9,10,null,null,null,{"$f":"VLOOKUP($E37,R.VL_DEQResourcesInvolved,2,FALSE)","v":0},{"$f":"VLOOKUP($E37,R.VL_DEQResourcesInvolved,3,FALSE)","v":0},{"$f":"IF(S37=10,T37,VLOOKUP($E37,R.VL_DEQResourcesInvolved,4,FALSE))","v":0},"ï drop down to Select hours"]
[]
[null,null,null,{"$f":"\"Please suggest process improvements to the \"&D2&\" worksheet.\"","v":"Please suggest process improvements to the Advisors worksheet."}]
[]
["Go to Top"]

{"sheet":"5InterestedStaff","index":8,"n_rows":31,"n_cols":25,"rows_kept":31,"cut":false,"hidden":false,"merged":[[1,4,1,15],[2,12,2,15],[3,5,3,11],[3,12,3,15],[4,5,4,11],[4,12,4,15],[29,3,29,15],[6,3,6,15],[28,3,28,4],[6,18,6,20],[10,3,10,15],[21,3,21,15]]}
["⧀ Go to Content"]
[null,null,5,"Interested Staff and EQC",{"$f":"R.1MediaAndLongName","v":"AQ LRAPA - Open Burning"},null,null,null,null,null,null,null,null,null,null,null,null,null,{"$f":"\"R.\"&$C$2&\"StaffCount\"","v":"R.5StaffCount"},{"$f":"\"R.\"&$C$2&\"LowHrs\"","v":"R.5LowHrs"},{"$f":"\"R.\"&$C$2&\"HighHrs\"","v":"R.5HighHrs"},null,null," "]
[null,null,null,null,null,null,null,null,null,null,null,null,"Estimated range",null,null,null,null,null,{"$f":"COUNTIFS(S9:S27,\">0\")","v":0},{"$f":"SUM(T9:T27)","v":0},{"$f":"SUM(U9:U27)","v":0}]
[null,null,null,"Number of staff involved",{"$f":"S3","v":0},"Hours",null,null,null,null,null,null,{"$f":"S4","v":"0"},null,null,null,null,null,{"$f":"IF(R.5StaffCount=0,\"0\",IF(R.5LowHrs=0,\"0-\"&TEXT(R.5HighHrs,\"#,###\"),TEXT(R.5LowHrs,\"#,###\")&\"-\"&TEXT(R.5HighHrs,\"#,###\")))","v":"0"},{"$f":"\"R.\"&$C$2&\"LowDollars\"","v":"R.5LowDollars"},{"$f":"\"R.\"&$C$2&\"HighDollars\"","v":"R.5HighDollars"}]
[null,null,null,"DEQ 2012 average hourly  $",58,"Staff cost ",null,null,null,null,null,null,{"$f":"S5","v":"$0"},null,null,null,null,null,{"$f":"IF(R.5StaffCount=0,\"$0\",IF(R.5LowDollars=0,\"$0-\"&TEXT(R.5HighDollars,\"#,###\"),TEXT(R.5LowDollars,\"$#,###\")&\"-\"&TEXT(R.5HighDollars,\"#,###\")))","v":"$0"},{"$f":"T3*E5","v":0},{"$f":"U3*E5","v":0}]
[null,null,null,"MESSAGE"]
[null,null,null,null,null,null,null,null,null,null,null,null,null,null,null,null,null,null," ",null,null,null,null,null," "]
[]
["on Q-net",null,null,"Environmental Quality Commission"]
[null,null,null,"Discussion"]
[null,null,null,null,null,null,null,null,null,null,null,null,null,null,null,null,null,null," "]
[null,null,null,"Name","Select hours","Workload indicator",null,null,null,null,null,null,null,null,null,"Area of interest"]
[null,null,null,"EQC - all members","< 1 hour",1,2,3,4,5,6,7,8,9,10,null,null,null,{"$f":"VLOOKUP($E13,R.VL_DEQResourcesInvolved,2,FALSE)","v":0},{"$f":"VLOOKUP($E13,R.VL_DEQResourcesInvolved,3,FALSE)","v":0},{"$f":"IF(S13=10,T13,VLOOKUP($E13,R.VL_DEQResourcesInvolved,4,FALSE))","v":0},{"$f":"T13&\"-\"&U13","v":"0-0"},null,"ï drop down to Select hours"]
[null,null,null,"Bill Blosser","< 1 hour",1,2,3,4,5,6,7,8,9,10,null,null,null,0,0,0,"0-0",null,"ï drop down to Select hours"]
[null,null,null,"Jane O'Keeffe","< 1 hour",1,2,3,4,5,6,7,8,9,10,null,null,null,0,0,0,"0-0",null,"ï drop down to Select hours"]
[null,null,null,"Ed Armstrong","< 1 hour",1,2,3,4,5,6,7,8,9,10,null,null,null,0,0,0,"0-0",null,"ï drop down to Select hours"]
[null,null,null,"Morgan Rider","< 1 hour",1,2,3,4,5,6,7,8,9,10,null,null,null,0,0,0,"0-0",null,"ï drop down to Select hours"]
[null,null,null,"Pending appointment","< 1 hour",1,2,3,4,5,6,7,8,9,10,null,null,null,0,0,0,"0-0",null,"ï drop down to Select hours"]
[null,null,null,null,null,null,null,null,null,null,null,null,null,null,null,null,null,null,null,null,null,{"$f":"SUM(T13:T18)&\"-\"&SUM(U13:U18)","v":"0-0"}]
[null,null,null,"Interested Staff "]
[null,null,null,"Discussion"]
[null,null,null,null,null,null,null,null,null,null,null,null,null,null,null,null,null,null," "]
[null,null,null,"Name","Select hours","Workload indicator",null,null,null,null,null,null,null,null,null,"Area of interest"]
[null,null,"A"," ","< 1 hour",1,2,3,4,5,6,7,8,9,10,null,null,null,{"$f":"VLOOKUP($E24,R.VL_DEQResourcesInvolved,2,FALSE)","v":0},{"$f":"VLOOKUP($E24,R.VL_DEQResourcesInvolved,3,FALSE)","v":0},{"$f":"IF(S24=10,T24,VLOOKUP($E24,R.VL_DEQResourcesInvolved,4,FALSE))","v":0},{"$f":"T24&\"-\"&U24","v":"0-0"},null,"ï drop down to Select hours"]
[null,null,"B",null,"< 1 hour",1,2,3,4,5,6,7,8,9,10,null,null,null,{"$f":"VLOOKUP($E25,R.VL_DEQResourcesInvolved,2,FALSE)","v":0},{"$f":"VLOOKUP($E25,R.VL_DEQResourcesInvolved,3,FALSE)","v":0},{"$f":"IF(S25=10,T25,VLOOKUP($E25,R.VL_DEQResourcesInvolved,4,FALSE))","v":0},{"$f":"T25&\"-\"&U25","v":"0-0"},null,"ï drop down to Select hours"]
[null,null,"C"," ","< 1 hour",1,2,3,4,5,6,7,8,9,10,null,null,null,{"$f":"VLOOKUP($E26,R.VL_DEQResourcesInvolved,2,FALSE)","v":0},{"$f":"VLOOKUP($E26,R.VL_DEQResourcesInvolved,3,FALSE)","v":0},{"$f":"IF(S26=10,T26,VLOOKUP($E26,R.VL_DEQResourcesInvolved,4,FALSE))","v":0},{"$f":"T26&\"-\"&U26","v":"0-0"},null,"ï drop down to Select hours"]
[null,null,"D"," ","< 1 hour",1,2,3,4,5,6,7,8,9,10,null,null,null,{"$f":"VLOOKUP($E27,R.VL_DEQResourcesInvolved,2,FALSE)","v":0},{"$f":"VLOOKUP($E27,R.VL_DEQResourcesInvolved,3,FALSE)","v":0},{"$f":"IF(S27=10,T27,VLOOKUP($E27,R.VL_DEQResourcesInvolved,4,FALSE))","v":0},{"$f":"T27&\"-\"&U27","v":"0-0"},null,"ï drop down to Select hours"]
[null,null,null,null,null,null,null,null,null,null,null,null,null,null,null,null,null,null,null,null,null,{"$f":"SUM(T23:T27)&\"-\"&SUM(U23:U27)","v":"0-0"}]
[null,null,null,{"$f":"\"Please suggest process improvements to the \"&D2&\" worksheet.\"","v":"Please suggest process improvements to the Interested Staff and EQC worksheet."}]
[]
["Go to Top"]

{"sheet":"6OtherDivisions","index":9,"n_rows":80,"n_cols":26,"rows_kept":80,"cut":false,"hidden":false,"merged":[[81,13,81,26],[1,4,1,15],[2,12,2,15],[3,5,3,11],[3,12,3,15],[4,5,4,11],[4,12,4,15],[51,3,51,15],[6,3,6,15],[10,3,10,15],[11,5,11,14],[17,3,17,15],[23,4,23,15],[27,3,27,15],[34,3,34,15],[40,4,40,15],[78,3,78,15],[61,3,61,15],[69,3,69,15],[77,3,77,5],[75,4,75,15],[59,4,59,15],[41,4,41,15],[44,3,44,15],[45,5,45,14],[57,4,57,15]]}
["⧀ Go to Content"]
["on Q-net",null,6,"Other Divisions",{"$f":"R.1MediaAndLongName","v":"AQ LRAPA - Open Burning"},null,null,null,null,null,null,null,null,null,null,null,null,null,{"$f":"\"R.\"&$C$2&\"StaffCount\"","v":"R.6StaffCount"},{"$f":"\"R.\"&$C$2&\"LowHrs\"","v":"R.6LowHrs"},{"$f":"\"R.\"&$C$2&\"HighHrs\"","v":"R.6HighHrs"},null,null," "]
[null,null,null,null,null,null,null,null,null,null,null,null,"Estimated range",null,null,null,null,null,{"$f":"COUNTIFS(S13:S75,\">0\")","v":0},{"$f":"SUM(T13:T75)","v":0},{"$f":"SUM(U13:U75)","v":0}]
[null,null,null,"Number of staff involved",{"$f":"S3","v":0},"Hours",null,null,null,null,null,null,{"$f":"S4","v":"0"},null,null,null,null,null,{"$f":"IF(R.6StaffCount=0,\"0\",IF(R.6LowHrs=0,\"0-\"&TEXT(R.6HighHrs,\"#,###\"),TEXT(R.6LowHrs,\"#,###\")&\"-\"&TEXT(R.6HighHrs,\"#,###\")))","v":"0"},{"$f":"\"R.\"&$C$2&\"LowDollars\"","v":"R.6LowDollars"},{"$f":"\"R.\"&$C$2&\"HighDollars\"","v":"R.6HighDollars"}]
[null,null,null,"DEQ 2012 average hourly                                      $",{"$f":"R.AvgHrDEQCost","v":58},"Staff cost ",null,null,null,null,null,null,{"$f":"S5","v":"$0"},null,null,null,null,null,{"$f":"IF(R.6StaffCount=0,\"$0\",IF(R.6LowDollars=0,\"$0-\"&TEXT(R.6HighDollars,\"#,###\"),TEXT(R.6LowDollars,\"$#,###\")&\"-\"&TEXT(R.6HighDollars,\"#,###\")))","v":"$0"},{"$f":"T3*E5","v":0},{"$f":"U3*E5","v":0},null,null,null,null,"`"]
[null,null,null," "]
[null,null,null,"For estimated hour ranges that are 170 hours or more, talk with the manager about:\n   • The estimate,\n   • The group's capacity to complete the potential work, and\n   • The estimated quarterly schedule. \nIf the EMT approves the proposal on the annual DEQ rulemaking plan, the team would refine this information as they learn more about the proposed rule. The team would involve other divisions at the appropriate time. ",null,null,null,null,null,null,null,null,null,null,null,null,null,null,{"$f":"AVERAGEIF(S14:S56,\">0\")","v":{"$error":"#DIV/0!"}}]
[]
["on Q-net",null," ","Land Quality"]
[null,null,null,"Development"]
[]
[null,null,null,"Name","Select hours","Workload indicator",null,null,null,null,null,null,null,null,null,"Level involved"]
[null,null," ",null,"< 1 hour",1,2,3,4,5,6,7,8,9,10,null,null,null,{"$f":"VLOOKUP($E13,R.VL_DEQResourcesInvolved,2,FALSE)","v":0},{"$f":"VLOOKUP($E13,R.VL_DEQResourcesInvolved,3,FALSE)","v":0},{"$f":"IF(S13=10,T13,VLOOKUP($E13,R.VL_DEQResourcesInvolved,4,FALSE))","v":0},null,null,"ï drop down to Select hours/Level involved"]
[null,null," "," ","< 1 hour",1,2,3,4,5,6,7,8,9,10,null,null,null,{"$f":"VLOOKUP($E14,R.VL_DEQResourcesInvolved,2,FALSE)","v":0},{"$f":"VLOOKUP($E14,R.VL_DEQResourcesInvolved,3,FALSE)","v":0},{"$f":"IF(S14=10,T14,VLOOKUP($E14,R.VL_DEQResourcesInvolved,4,FALSE))","v":0}]
[null,null," "," ","< 1 hour",1,2,3,4,5,6,7,8,9,10,null,null,null,{"$f":"VLOOKUP($E15,R.VL_DEQResourcesInvolved,2,FALSE)","v":0},{"$f":"VLOOKUP($E15,R.VL_DEQResourcesInvolved,3,FALSE)","v":0},{"$f":"IF(S15=10,T15,VLOOKUP($E15,R.VL_DEQResourcesInvolved,4,FALSE))","v":0}]
[null,null," "," ","< 1 hour",1,2,3,4,5,6,7,8,9,10,null,null,null,{"$f":"VLOOKUP($E16,R.VL_DEQResourcesInvolved,2,FALSE)","v":0},{"$f":"VLOOKUP($E16,R.VL_DEQResourcesInvolved,3,FALSE)","v":0},{"$f":"IF(S16=10,T16,VLOOKUP($E16,R.VL_DEQResourcesInvolved,4,FALSE))","v":0}]
[null,null,null,"Implementation",null,null,null,null,null,null,null,null,null,null,null,null,null,null,null,null,null,{"$f":"SUM(T13:T16)&\"-\"&SUM(U13:U16)","v":"0-0"}]
[null,null,null,null,null,null,null,null,null,null,null,null,null,null,null,null,null,null," "]
[null,null,null,"Name","Select hours","Workload indicator",null,null,null,null,null,null,null,null,null,"Level involved"]
[null,null," "," ","< 1 hour",1,2,3,4,5,6,7,8,9,10,null,null,null,{"$f":"VLOOKUP($E20,R.VL_DEQResourcesInvolved,2,FALSE)","v":0},{"$f":"VLOOKUP($E20,R.VL_DEQResourcesInvolved,3,FALSE)","v":0},{"$f":"IF(S20=10,T20,VLOOKUP($E20,R.VL_DEQResourcesInvolved,4,FALSE))","v":0},null,null,"ï drop down to Select hours/Level involved"]
[null,null," "," ","< 1 hour",1,2,3,4,5,6,7,8,9,10,null,null,null,{"$f":"VLOOKUP($E21,R.VL_DEQResourcesInvolved,2,FALSE)","v":0},{"$f":"VLOOKUP($E21,R.VL_DEQResourcesInvolved,3,FALSE)","v":0},{"$f":"IF(S21=10,T21,VLOOKUP($E21,R.VL_DEQResourcesInvolved,4,FALSE))","v":0}]
[null,null," "," ","< 1 hour",1,2,3,4,5,6,7,8,9,10,null,null,null,{"$f":"VLOOKUP($E22,R.VL_DEQResourcesInvolved,2,FALSE)","v":0},{"$f":"VLOOKUP($E22,R.VL_DEQResourcesInvolved,3,FALSE)","v":0},{"$f":"IF(S22=10,T22,VLOOKUP($E22,R.VL_DEQResourcesInvolved,4,FALSE))","v":0}]
[null,null," "," ","< 1 hour",1,2,3,4,5,6,7,8,9,10,null,null,null,{"$f":"VLOOKUP($E23,R.VL_DEQResourcesInvolved,2,FALSE)","v":0},{"$f":"VLOOKUP($E23,R.VL_DEQResourcesInvolved,3,FALSE)","v":0},{"$f":"IF(S23=10,T23,VLOOKUP($E23,R.VL_DEQResourcesInvolved,4,FALSE))","v":0},{"$f":"SUM(T20:T23)&\"-\"&SUM(U20:U23)","v":"0-0"},{"$f":"SUM(T13:T23)&\"-\"&SUM(U13:U23)","v":"0-0"}]
[]
[]
["on Q-net",null,null,"Water Quality"]
[null,null,null,"Development"]
[null,null,null,null,null,null,null,null,null,null,null,null,null,null,null,null,null,null," "]
[null,null,null,"Name","Select hours","Workload indicator",null,null,null,null,null,null,null,null,null,"Level involved"]
[null,null,null,null,"< 1 hour",1,2,3,4,5,6,7,8,9,10," ",null,null,{"$f":"VLOOKUP($E30,R.VL_DEQResourcesInvolved,2,FALSE)","v":0},{"$f":"VLOOKUP($E30,R.VL_DEQResourcesInvolved,3,FALSE)","v":0},{"$f":"IF(S30=10,T30,VLOOKUP($E30,R.VL_DEQResourcesInvolved,4,FALSE))","v":0},null,null,"ï drop down to Select hours/Level involved"]
[null,null,null,null,"< 1 hour",1,2,3,4,5,6,7,8,9,10," ",null,null,{"$f":"VLOOKUP($E31,R.VL_DEQResourcesInvolved,2,FALSE)","v":0},{"$f":"VLOOKUP($E31,R.VL_DEQResourcesInvolved,3,FALSE)","v":0},{"$f":"IF(S31=10,T31,VLOOKUP($E31,R.VL_DEQResourcesInvolved,4,FALSE))","v":0}]
[null,null,null,null,"< 1 hour",1,2,3,4,5,6,7,8,9,10," ",null,null,{"$f":"VLOOKUP($E32,R.VL_DEQResourcesInvolved,2,FALSE)","v":0},{"$f":"VLOOKUP($E32,R.VL_DEQResourcesInvolved,3,FALSE)","v":0},{"$f":"IF(S32=10,T32,VLOOKUP($E32,R.VL_DEQResourcesInvolved,4,FALSE))","v":0}]
[null,null,null,null,"< 1 hour",1,2,3,4,5,6,7,8,9,10," ",null,null,{"$f":"VLOOKUP($E33,R.VL_DEQResourcesInvolved,2,FALSE)","v":0},{"$f":"VLOOKUP($E33,R.VL_DEQResourcesInvolved,3,FALSE)","v":0},{"$f":"IF(S33=10,T33,VLOOKUP($E33,R.VL_DEQResourcesInvolved,4,FALSE))","v":0},{"$f":"SUM(T30:T33)&\"-\"&SUM(U30:U33)","v":"0-0"}]
[null,null,null,"Implementation"]
[null,null,null,null,null,null,null,null,null,null,null,null,null,null,null,null,null,null," "]
[null,null,null,"Name","Select hours","Workload indicator",null,null,null,null,null,null,null,null,null,"Level involved"]
[null,null,null," ","< 1 hour",1,2,3,4,5,6,7,8,9,10," ",null,null,{"$f":"VLOOKUP($E37,R.VL_DEQResourcesInvolved,2,FALSE)","v":0},{"$f":"VLOOKUP($E37,R.VL_DEQResourcesInvolved,3,FALSE)","v":0},{"$f":"IF(S37=10,T37,VLOOKUP($E37,R.VL_DEQResourcesInvolved,4,FALSE))","v":0},null,null,"ï drop down to Select hours/Level involved"]
[null,null,null," ","< 1 hour",1,2,3,4,5,6,7,8,9,10," ",null,null,{"$f":"VLOOKUP($E38,R.VL_DEQResourcesInvolved,2,FALSE)","v":0},{"$f":"VLOOKUP($E38,R.VL_DEQResourcesInvolved,3,FALSE)","v":0},{"$f":"IF(S38=10,T38,VLOOKUP($E38,R.VL_DEQResourcesInvolved,4,FALSE))","v":0}]
[null,null,null," ","< 1 hour",1,2,3,4,5,6,7,8,9,10," ",null,null,{"$f":"VLOOKUP($E39,R.VL_DEQResourcesInvolved,2,FALSE)","v":0},{"$f":"VLOOKUP($E39,R.VL_DEQResourcesInvolved,3,FALSE)","v":0},{"$f":"IF(S39=10,T39,VLOOKUP($E39,R.VL_DEQResourcesInvolved,4,FALSE))","v":0}]
[null,null,null," ","< 1 hour",1,2,3,4,5,6,7,8,9,10," ",null,null,{"$f":"VLOOKUP($E40,R.VL_DEQResourcesInvolved,2,FALSE)","v":0},{"$f":"VLOOKUP($E40,R.VL_DEQResourcesInvolved,3,FALSE)","v":0},{"$f":"IF(S40=10,T40,VLOOKUP($E40,R.VL_DEQResourcesInvolved,4,FALSE))","v":0},{"$f":"SUM(T37:T40)&\"-\"&SUM(U37:U40)","v":"0-0"},{"$f":"SUM(T30:T40)&\"-\"&SUM(U30:U40)","v":"0-0"}]
[]
[]
["on Q-net",null," ","Air Quality",null,null,null,null,null,null,null,null,null,null,null,null,null,null,null," "]
[null,null,null,"Development"]
[null,null,null,null,null,null,null,null,null,null,null,null,null,null,null,null,null,null," "]
[null,null,null,"Name","Select hours","Workload indicator",null,null,null,null,null,null,null,null,null,"Level involved"]
[null,null,null," ","< 1 hour",1,2,3,4,5,6,7,8,9,10," ",null,null,{"$f":"VLOOKUP($E47,R.VL_DEQResourcesInvolved,2,FALSE)","v":0},{"$f":"VLOOKUP($E47,R.VL_DEQResourcesInvolved,3,FALSE)","v":0},{"$f":"IF(S47=10,T47,VLOOKUP($E47,R.VL_DEQResourcesInvolved,4,FALSE))","v":0},null,null,"ï drop down to Select hours/Level involved"]
[null,null,null," ","< 1 hour",1,2,3,4,5,6,7,8,9,10," ",null,null,{"$f":"VLOOKUP($E48,R.VL_DEQResourcesInvolved,2,FALSE)","v":0},{"$f":"VLOOKUP($E48,R.VL_DEQResourcesInvolved,3,FALSE)","v":0},{"$f":"IF(S48=10,T48,VLOOKUP($E48,R.VL_DEQResourcesInvolved,4,FALSE))","v":0}]
[null,null,null," ","< 1 hour",1,2,3,4,5,6,7,8,9,10," ",null,null,{"$f":"VLOOKUP($E49,R.VL_DEQResourcesInvolved,2,FALSE)","v":0},{"$f":"VLOOKUP($E49,R.VL_DEQResourcesInvolved,3,FALSE)","v":0},{"$f":"IF(S49=10,T49,VLOOKUP($E49,R.VL_DEQResourcesInvolved,4,FALSE))","v":0}]
[null,null,null,null,"< 1 hour",1,2,3,4,5,6,7,8,9,10," ",null,null,{"$f":"VLOOKUP($E50,R.VL_DEQResourcesInvolved,2,FALSE)","v":0},{"$f":"VLOOKUP($E50,R.VL_DEQResourcesInvolved,3,FALSE)","v":0},{"$f":"IF(S50=10,T50,VLOOKUP($E50,R.VL_DEQResourcesInvolved,4,FALSE))","v":0},{"$f":"SUM(T47:T50)&\"-\"&SUM(U47:U50)","v":"0-0"}]
[null,null,null,"Implementation"]
[null,null,null,null,null,null,null,null,null,null,null,null,null,null,null,null,null,null," "]
[null,null,null,"Name","Select hours","Workload indicator",null,null,null,null,null,null,null,null,null,"Level involved"]
[null,null,null," ","< 1 hour",1,2,3,4,5,6,7,8,9,10," ",null,null,{"$f":"VLOOKUP($E54,R.VL_DEQResourcesInvolved,2,FALSE)","v":0},{"$f":"VLOOKUP($E54,R.VL_DEQResourcesInvolved,3,FALSE)","v":0},{"$f":"IF(S54=10,T54,VLOOKUP($E54,R.VL_DEQResourcesInvolved,4,FALSE))","v":0},null,null,"ï drop down to Select hours/Level involved"]
[null,null,null," ","< 1 hour",1,2,3,4,5,6,7,8,9,10," ",null,null,{"$f":"VLOOKUP($E55,R.VL_DEQResourcesInvolved,2,FALSE)","v":0},{"$f":"VLOOKUP($E55,R.VL_DEQResourcesInvolved,3,FALSE)","v":0},{"$f":"IF(S55=10,T55,VLOOKUP($E55,R.VL_DEQResourcesInvolved,4,FALSE))","v":0}]
[null,null,null," ","< 1 hour",1,2,3,4,5,6,7,8,9,10," ",null,null,{"$f":"VLOOKUP($E56,R.VL_DEQResourcesInvolved,2,FALSE)","v":0},{"$f":"VLOOKUP($E56,R.VL_DEQResourcesInvolved,3,FALSE)","v":0},{"$f":"IF(S56=10,T56,VLOOKUP($E56,R.VL_DEQResourcesInvolved,4,FALSE))","v":0}]
[null,null,null," ","< 1 hour",1,2,3,4,5,6,7,8,9,10," ",null,null,{"$f":"VLOOKUP($E57,R.VL_DEQResourcesInvolved,2,FALSE)","v":0},{"$f":"VLOOKUP($E57,R.VL_DEQResourcesInvolved,3,FALSE)","v":0},{"$f":"IF(S57=10,T57,VLOOKUP($E57,R.VL_DEQResourcesInvolved,4,FALSE))","v":0},{"$f":"SUM(T54:T57)&\"-\"&SUM(U54:U57)","v":"0-0"},{"$f":"SUM(T47:T57)&\"-\"&SUM(U47:U57)","v":"0-0"}]
[]
[]
["on Q-net",null,null,"Management Service ","if not on other worksheets"]
[null,null,null,"Development"]
[null,null,null," ",null,null,null,null,null,null,null,null,null,null,null,null,null,null," "]
[null,null,null,"Name","Select hours","Workload indicator",null,null,null,null,null,null,null,null,null,"Level involved"]
[null,null,null," ","< 1 hour",1,2,3,4,5,6,7,8,9,10," ",null,null,{"$f":"VLOOKUP($E64,R.VL_DEQResourcesInvolved,2,FALSE)","v":0},{"$f":"VLOOKUP($E64,R.VL_DEQResourcesInvolved,3,FALSE)","v":0},{"$f":"IF(S64=10,T64,VLOOKUP($E64,R.VL_DEQResourcesInvolved,4,FALSE))","v":0},null,null,"ï drop down to Select hours/Level involved"]
[null,null,null," ","< 1 hour",1,2,3,4,5,6,7,8,9,10," ",null,null,{"$f":"VLOOKUP($E65,R.VL_DEQResourcesInvolved,2,FALSE)","v":0},{"$f":"VLOOKUP($E65,R.VL_DEQResourcesInvolved,3,FALSE)","v":0},{"$f":"IF(S65=10,T65,VLOOKUP($E65,R.VL_DEQResourcesInvolved,4,FALSE))","v":0}]
[null,null,null," ","< 1 hour",1,2,3,4,5,6,7,8,9,10," ",null,null,{"$f":"VLOOKUP($E66,R.VL_DEQResourcesInvolved,2,FALSE)","v":0},{"$f":"VLOOKUP($E66,R.VL_DEQResourcesInvolved,3,FALSE)","v":0},{"$f":"IF(S66=10,T66,VLOOKUP($E66,R.VL_DEQResourcesInvolved,4,FALSE))","v":0}]
[null,null,null," ","< 1 hour",1,2,3,4,5,6,7,8,9,10," ",null,null,{"$f":"VLOOKUP($E67,R.VL_DEQResourcesInvolved,2,FALSE)","v":0},{"$f":"VLOOKUP($E67,R.VL_DEQResourcesInvolved,3,FALSE)","v":0},{"$f":"IF(S67=10,T67,VLOOKUP($E67,R.VL_DEQResourcesInvolved,4,FALSE))","v":0},{"$f":"SUM(T64:T67)&\"-\"&SUM(U64:U67)","v":"0-0"}]
[]
[null,null,null,"Implementation"]
[null,null,null,null,null,null,null,null,null,null,null,null,null,null,null,null,null,null," "]
[null,null,null,"Name","Select hours","Workload indicator",null,null,null,null,null,null,null,null,null,"Level involved"]
[null,null,null," ","< 1 hour",1,2,3,4,5,6,7,8,9,10," ",null,null,{"$f":"VLOOKUP($E72,R.VL_DEQResourcesInvolved,2,FALSE)","v":0},{"$f":"VLOOKUP($E72,R.VL_DEQResourcesInvolved,3,FALSE)","v":0},{"$f":"IF(S72=10,T72,VLOOKUP($E72,R.VL_DEQResourcesInvolved,4,FALSE))","v":0},{"$f":"COUNTIF(S64:S75,\">0\")","v":0},null,"ï drop down to Select hours/Level involved"]
[null,null,null," ","< 1 hour",1,2,3,4,5,6,7,8,9,10," ",null,null,{"$f":"VLOOKUP($E73,R.VL_DEQResourcesInvolved,2,FALSE)","v":0},{"$f":"VLOOKUP($E73,R.VL_DEQResourcesInvolved,3,FALSE)","v":0},{"$f":"IF(S73=10,T73,VLOOKUP($E73,R.VL_DEQResourcesInvolved,4,FALSE))","v":0}]
[null,null,null," ","< 1 hour",1,2,3,4,5,6,7,8,9,10," ",null,null,{"$f":"VLOOKUP($E74,R.VL_DEQResourcesInvolved,2,FALSE)","v":0},{"$f":"VLOOKUP($E74,R.VL_DEQResourcesInvolved,3,FALSE)","v":0},{"$f":"IF(S74=10,T74,VLOOKUP($E74,R.VL_DEQResourcesInvolved,4,FALSE))","v":0}]
[null,null,null," ","< 1 hour",1,2,3,4,5,6,7,8,9,10," ",null,null,{"$f":"VLOOKUP($E75,R.VL_DEQResourcesInvolved,2,FALSE)","v":0},{"$f":"VLOOKUP($E75,R.VL_DEQResourcesInvolved,3,FALSE)","v":0},{"$f":"IF(S75=10,T75,VLOOKUP($E75,R.VL_DEQResourcesInvolved,4,FALSE))","v":0},{"$f":"SUM(T72:T75)&\"-\"&SUM(U72:U75)","v":"0-0"},{"$f":"SUM(T64:T75)&\"-\"&SUM(U64:U75)","v":"0-0"}]
[]
[]
[null,null,null,{"$f":"\"Please suggest process improvements to the \"&D2&\" worksheet.\"","v":"Please suggest process improvements to the Other Divisions worksheet."}]
[]
["Go to Top"]

{"sheet":"Workload","index":10,"n_rows":296,"n_cols":55,"rows_kept":296,"cut":false,"hidden":true,"merged":[[0,1,0,4]]}
[null,"2013 Rulemaking Plan Workload "]
["Media","RM Name2","Worksheet","Role/Group","Phase","Staff","Hrs Rank","Hrs","Minimum Hrs","Maximum Hrs","Competing projects","Work off plate","In PD","In Work Plan","2012.11","2012.12","2013.01","2013.02","2013.03","2013.04","2013.05","2013.06","2013.07","2013.08","2013.09","2013.10","2013.11","2013.12","2014.01","2014.02","2014.03","2014.04","2014.05","2014.06","2014.07","2014.08","2014.09","2014.10","2014.11","2014.12","2015.01","2015.02","2015.03","2015.04","2015.05","2015.06","2015.07","2015.08","2015.09","2015.10","2015.11","2015.12","2016.01","2016.02","2016.03"]
[{"$f":"R.1Division","v":"AQ"},{"$f":"R.1CodeName","v":"LROpnBrn"},"3Core Team","Subject Expert","Development",{"$f":"R.3SEname","v":"SE name"},{"$f":"R.3SEhrs","v":0},{"$f":"Table3[[#This Row],[Hrs Rank]]","v":0},{"$f":"IF(ISNA(VLOOKUP($H3,R.VL_DEQResourceHours,2,FALSE)),0,VLOOKUP($H3,R.VL_DEQResourceHours,2,FALSE))","v":0},{"$f":"IF(ISNA(VLOOKUP($H3,R.VL_DEQResourceHours,3,FALSE)),0,VLOOKUP($H3,R.VL_DEQResourceHours,3,FALSE))","v":0},null,null,"?","?"]
["AQ","LROpnBrn","3Core Team","Lead Manager","Development",{"$f":"R.3LMname","v":"LM name"},{"$f":"R.3LMHrs","v":0},{"$f":"Table3[[#This Row],[Hrs Rank]]","v":0},0,0,null,null,"?","?"]
["AQ","LROpnBrn","3Core Team","Lead Administrator","Development",{"$f":"R.3LAname","v":"LA name"},{"$f":"R.3LAHrs","v":0},{"$f":"Table3[[#This Row],[Hrs Rank]]","v":0},0,0,null,null,"?","?"," "]
["AQ","LROpnBrn","3Core Team","Process Expert","Development",{"$f":"R.3PEname","v":"PE name"},{"$f":"R.3PEHrs","v":0},{"$f":"Table3[[#This Row],[Hrs Rank]]","v":0},0,0,null,null,"?","?"]
["AQ","LROpnBrn","3Core Team","Project Assistant","Development",{"$f":"R.3PAname","v":"PA name"},{"$f":"R.3PAHrs","v":0},{"$f":"Table3[[#This Row],[Hrs Rank]]","v":0},0,0,null,null,"?","?"]
["AQ","LROpnBrn","3Core Team",{"$f":"R.3CustomRole1","v":"Custom Role 1"},"Development",{"$f":"R.3CustomName1","v":"CR1 name"},{"$f":"R.3CustomHrs1","v":0},{"$f":"Table3[[#This Row],[Hrs Rank]]","v":0},0,0,null,null,"?","?"]
["AQ","LROpnBrn","3Core Team",{"$f":"R.3CustomRole2","v":"Custom Role 2"},"Development",{"$f":"R.3CustomName2","v":"Cr2 name"},{"$f":"R.3CustomHrs2","v":0},{"$f":"Table3[[#This Row],[Hrs Rank]]","v":0},0,0,null,null,"?","?"]
["AQ","LROpnBrn","4Advisors","Assistant AG","Development",{"$f":"R.4AGName","v":"Larry Knudsen"},{"$f":"R.4AGHrs","v":0},{"$f":"Table3[[#This Row],[Hrs Rank]]","v":0},0,0,null,null,"?","?"]
["AQ","LROpnBrn","4Advisors","Agency Rules Coordinator","Development",{"$f":"R.4ARCName","v":"Maggie Vandehey"},{"$f":"R.4ARCHrs","v":0},{"$f":"Table3[[#This Row],[Hrs Rank]]","v":0},0,0,null,null,"?","?"]
["AQ","LROpnBrn","4Advisors","SIP Coordinator","Development",{"$f":"R.4SIPCoName","v":"Nicole Vick"},{"$f":"R.4ASIPCoHrs","v":0},{"$f":"Table3[[#This Row],[Hrs Rank]]","v":0},0,0,null,null,"?","?"]
["AQ","LROpnBrn","4Advisors",{"$f":"R.4CustomRole1","v":"Custom Role 1"},"Development",{"$f":"R.4CustomRole2","v":"Custom Role 2"},{"$f":"R.4CustomHrs1","v":0},{"$f":"Table3[[#This Row],[Hrs Rank]]","v":0},0,0,null,null,"?","?"]
["AQ","LROpnBrn","4Advisors",{"$f":"R.4CustomRole2","v":"Custom Role 2"},"Development",{"$f":"R.4CustomRole1","v":"Custom Role 1"},{"$f":"R.4CustomHrs2","v":0},{"$f":"Table3[[#This Row],[Hrs Rank]]","v":0},0,0,null,null,"?","?"]
["AQ","LROpnBrn","5Interested Staff","EQC","Development",{"$f":"R.5EQCName1","v":"EQC - all members"},{"$f":"R.5EQCHrs1","v":0},{"$f":"Table3[[#This Row],[Hrs Rank]]","v":0},0,0,null,null,"?","?"]
["AQ","LROpnBrn","5Interested Staff","Chair","Development",{"$f":"R.5EQCName2","v":"Bill Blosser"},{"$f":"R.5EQCHrs2","v":0},{"$f":"Table3[[#This Row],[Hrs Rank]]","v":0},0,0,null,null,"?","?"]
["AQ","LROpnBrn","5Interested Staff","Vice Chair","Development",{"$f":"R.5EQCName3","v":"Jane O'Keeffe"},{"$f":"R.5EQCHrs3","v":0},{"$f":"Table3[[#This Row],[Hrs Rank]]","v":0},0,0,null,null,"?","?"]
["AQ","LROpnBrn","5Interested Staff","Commissioner","Development",{"$f":"R.5EQCName4","v":"Ed Armstrong"},{"$f":"R.5EQCHrs4","v":0},{"$f":"Table3[[#This Row],[Hrs Rank]]","v":0},0,0,null,null,"?","?"]
["AQ","LROpnBrn","5Interested Staff","Commissioner","Development",{"$f":"R.5EQCName5","v":"Morgan Rider"},{"$f":"R.5EQCHrs5","v":0},{"$f":"Table3[[#This Row],[Hrs Rank]]","v":0},0,0,null,null,"?","?"]
["AQ","LROpnBrn","5Interested Staff","Commissioner","Development",{"$f":"R.5EQCName6","v":"Pending appointment"},{"$f":"R.5EQCHrs6","v":0},{"$f":"Table3[[#This Row],[Hrs Rank]]","v":0},0,0,null,null,"?","?"]
["AQ","LROpnBrn","5Interested Staff","Interested staff","Development",{"$f":"R.5InterestedStaffNameA","v":" "},{"$f":"R.5InterestedStaffHrsA","v":0},{"$f":"Table3[[#This Row],[Hrs Rank]]","v":0},0,0,null,null,"?","?"]
["AQ","LROpnBrn","5Interested Staff","Interested staff","Development",{"$f":"R.5InterestedStaffNameB","v":0},{"$f":"R.5InterestedStaffHrsB","v":0},{"$f":"Table3[[#This Row],[Hrs Rank]]","v":0},0,0,null,null,"?","?"]
["AQ","LROpnBrn","5Interested Staff","Interested staff","Development",{"$f":"R.5InterestedStaffNameC","v":" "},{"$f":"R.5InterestedStaffHrsC","v":0},{"$f":"Table3[[#This Row],[Hrs Rank]]","v":0},0,0,null,null,"?","?"]
["AQ","LROpnBrn","5Interested Staff","Interested staff","Development",{"$f":"R.5InterestedStaffNameD","v":" "},{"$f":"R.5InterestedStaffHrsD","v":0},{"$f":"Table3[[#This Row],[Hrs Rank]]","v":0},0,0,null,null,"?","?"]
["AQ","LROpnBrn","6OtherDivisions","Land Quality","Development",{"$f":"R.6LQDevName1","v":"00:00:00"},{"$f":"R.6LQDevHrs1","v":0},{"$f":"Table3[[#This Row],[Hrs Rank]]","v":0},0,0,null,null,"?","?"]
["AQ","LROpnBrn","6OtherDivisions","Land Quality","Development",{"$f":"R.6LQDevName2","v":" "},{"$f":"R.6LQDevHrs2","v":0},{"$f":"Table3[[#This Row],[Hrs Rank]]","v":0},0,0,null,null,"?","?"]
["AQ","LROpnBrn","6OtherDivisions","Land Quality","Development",{"$f":"R.6LQDevName3","v":" "},{"$f":"R.6LQDevHrs3","v":0},{"$f":"Table3[[#This Row],[Hrs Rank]]","v":0},0,0,null,null,"?","?"]
["AQ","LROpnBrn","6OtherDivisions","Land Quality","Development",{"$f":"R.6LQDevName4","v":" "},{"$f":"R.6LQDevHrs4","v":0},{"$f":"Table3[[#This Row],[Hrs Rank]]","v":0},0,0,null,null,"?","?"]
["AQ","LROpnBrn","6OtherDivisions","Land Quality","Implementation",{"$f":"R.6LQImpName1","v":" "},{"$f":"R.6LQImpHrs1","v":0},{"$f":"Table3[[#This Row],[Hrs Rank]]","v":0},0,0,null,null,"?","?"]
["AQ","LROpnBrn","6OtherDivisions","Land Quality","Implementation",{"$f":"R.6LQImpName2","v":" "},{"$f":"R.6LQImpHrs2","v":0},{"$f":"Table3[[#This Row],[Hrs Rank]]","v":0},0,0,null,null,"?","?"]
["AQ","LROpnBrn","6OtherDivisions","Land Quality","Implementation",{"$f":"R.6LQImpName3","v":" "},{"$f":"R.6LQImpHrs3","v":0},{"$f":"Table3[[#This Row],[Hrs Rank]]","v":0},0,0,null,null,"?","?"]
["AQ","LROpnBrn","6OtherDivisions","Land Quality","Implementation",{"$f":"R.6LQImpName4","v":" "},{"$f":"R.6LQImpHrs4","v":0},{"$f":"Table3[[#This Row],[Hrs Rank]]","v":0},0,0,null,null,"?","?"]
["AQ","LROpnBrn","6OtherDivisions","Water Quality","Development",{"$f":"R.6WQDevName1","v":0},{"$f":"R.6WQDevHrs1","v":0},{"$f":"Table3[[#This Row],[Hrs Rank]]","v":0},0,0,null,null,"?","?"]
["AQ","LROpnBrn","6OtherDivisions","Water Quality","Development",{"$f":"R.6WQDevName2","v":0},{"$f":"R.6WQDevHrs2","v":0},{"$f":"Table3[[#This Row],[Hrs Rank]]","v":0},0,0,null,null,"?","?"]
[{"$f":"R.1Division","v":"AQ"},{"$f":"R.1CodeName","v":"LROpnBrn"},"6OtherDivisions","Water Quality","Development",{"$f":"R.6WQDevName3","v":0},{"$f":"R.6WQDevHrs3","v":0},{"$f":"Table3[[#This Row],[Hrs Rank]]","v":0},0,0,null,null,"?","?"]
["AQ","LROpnBrn","6OtherDivisions","Water Quality","Development",{"$f":"R.6WQDevName4","v":0},{"$f":"R.6WQDevHrs4","v":0},{"$f":"Table3[[#This Row],[Hrs Rank]]","v":0},0,0,null,null,"?","?"]
["AQ","LROpnBrn","6OtherDivisions","Water Quality","Implementation",{"$f":"R.6WQImpName1","v":" "},{"$f":"R.6WQImpHrs1","v":0},{"$f":"Table3[[#This Row],[Hrs Rank]]","v":0},0,0,null,null,"?","?"]
["AQ","LROpnBrn","6OtherDivisions","Water Quality","Implementation",{"$f":"R.6WQImpName2","v":" "},{"$f":"R.6WQImpHrs2","v":0},{"$f":"Table3[[#This Row],[Hrs Rank]]","v":0},0,0,null,null,"?","?"]
["AQ","LROpnBrn","6OtherDivisions","Water Quality","Implementation",{"$f":"R.6WQImpName3","v":" "},{"$f":"R.6WQImpHrs3","v":0},{"$f":"Table3[[#This Row],[Hrs Rank]]","v":0},0,0,null,null,"?","?"]
["AQ","LROpnBrn","6OtherDivisions","Water Quality","Implementation",{"$f":"R.6WQImpName4","v":" "},{"$f":"R.6WQImpHrs4","v":0},{"$f":"Table3[[#This Row],[Hrs Rank]]","v":0},0,0,null,null,"?","?"]
["AQ","LROpnBrn","6OtherDivisions","Air Quality","Development",{"$f":"R.6AQDevName1","v":" "},{"$f":"R.6AQDevHrs1","v":0},{"$f":"Table3[[#This Row],[Hrs Rank]]","v":0},0,0,null,null,"?","?"]
["AQ","LROpnBrn","6OtherDivisions","Air Quality","Development",{"$f":"R.6AQDevName2","v":" "},{"$f":"R.6AQDevHrs2","v":0},{"$f":"Table3[[#This Row],[Hrs Rank]]","v":0},0,0,null,null,"?","?"]
["AQ","LROpnBrn","6OtherDivisions","Air Quality","Development",{"$f":"R.6AQDevName3","v":" "},{"$f":"R.6AQDevHrs3","v":0},{"$f":"Table3[[#This Row],[Hrs Rank]]","v":0},0,0,null,null,"?","?"]
["AQ","LROpnBrn","6OtherDivisions","Air Quality","Development",{"$f":"R.6AQDevName4","v":0},{"$f":"R.6AQDevHrs4","v":0},{"$f":"Table3[[#This Row],[Hrs Rank]]","v":0},0,0,null,null,"?","?"]
["AQ","LROpnBrn","6OtherDivisions","Air Quality","Implementation",{"$f":"R.6AQImpName1","v":" "},{"$f":"R.6AQImpHrs1","v":0},{"$f":"Table3[[#This Row],[Hrs Rank]]","v":0},0,0,null,null,"?","?"]
["AQ","LROpnBrn","6OtherDivisions","Air Quality","Implementation",{"$f":"R.6AQImpName2","v":" "},{"$f":"R.6AQImpHrs2","v":0},{"$f":"Table3[[#This Row],[Hrs Rank]]","v":0},0,0,null,null,"?","?"]
["AQ","LROpnBrn","6OtherDivisions","Air Quality","Implementation",{"$f":"R.6AQImpName3","v":" "},{"$f":"R.6AQImpHrs3","v":0},{"$f":"Table3[[#This Row],[Hrs Rank]]","v":0},0,0,null,null,"?","?"]
["AQ","LROpnBrn","6OtherDivisions","Air Quality","Implementation",{"$f":"R.6AQImpName4","v":" "},{"$f":"R.6AQImpHrs4","v":0},{"$f":"Table3[[#This Row],[Hrs Rank]]","v":0},0,0,null,null,"?","?"]
["AQ","LROpnBrn","6OtherDivisions","MSD","Development",{"$f":"R.6MSDDevName1","v":" "},{"$f":"R.6MSDDevHrs1","v":0},{"$f":"Table3[[#This Row],[Hrs Rank]]","v":0},0,0,null,null,"?","?"]
["AQ","LROpnBrn","6OtherDivisions","MSD","Development",{"$f":"R.6MSDDevName2","v":" "},{"$f":"R.6MSDDevHrs2","v":0},{"$f":"Table3[[#This Row],[Hrs Rank]]","v":0},0,0,null,null,"?","?"]
["AQ","LROpnBrn","6OtherDivisions","MSD","Development",{"$f":"R.6MSDDevName3","v":" "},{"$f":"R.6MSDDevHrs3","v":0},{"$f":"Table3[[#This Row],[Hrs Rank]]","v":0},0,0,null,null,"?","?"]
["AQ","LROpnBrn","6OtherDivisions","MSD","Development",{"$f":"R.6MSDDevName4","v":" "},{"$f":"R.6MSDDevHrs4","v":0},{"$f":"Table3[[#This Row],[Hrs Rank]]","v":0},0,0,null,null,"?","?"]
["AQ","LROpnBrn","6OtherDivisions","MSD","Implementation",{"$f":"R.6MSDImpName1","v":" "},{"$f":"R.6MSDImpHrs1","v":0},{"$f":"Table3[[#This Row],[Hrs Rank]]","v":0},0,0,null,null,"?","?"]
["AQ","LROpnBrn","6OtherDivisions","MSD","Implementation",{"$f":"R.6MSDImpName2","v":" "},{"$f":"R.6MSDImpHrs2","v":0},{"$f":"Table3[[#This Row],[Hrs Rank]]","v":0},0,0,null,null,"?","?"]
["AQ","LROpnBrn","6OtherDivisions","MSD","Implementation",{"$f":"R.6MSDImpName3","v":" "},{"$f":"R.6MSDImpHrs3","v":0},{"$f":"Table3[[#This Row],[Hrs Rank]]","v":0},0,0,null,null,"?","?"]
["AQ","LROpnBrn","6OtherDivisions","MSD","Implementation",{"$f":"R.6MSDImpName4","v":" "},{"$f":"R.6MSDImpHrs4","v":0},{"$f":"Table3[[#This Row],[Hrs Rank]]","v":0},0,0,null,null,"?","?"]
["AQ","LROpnBrn","7Regions","Eastern","Development",{"$f":"R.7EastDevName1","v":0},{"$f":"R.7EastDevHrs1","v":0},{"$f":"Table3[[#This Row],[Hrs Rank]]","v":0},0,0,null,null,"?","?"]
["AQ","LROpnBrn","7Regions","Eastern","Development",{"$f":"R.7EastDevName2","v":" "},{"$f":"R.7EastDevHrs2","v":0},{"$f":"Table3[[#This Row],[Hrs Rank]]","v":0},0,0,null,null,"?","?"]
["AQ","LROpnBrn","7Regions","Eastern","Development",{"$f":"R.7EastDevName3","v":" "},{"$f":"R.7EastDevHrs3","v":0},{"$f":"Table3[[#This Row],[Hrs Rank]]","v":0},0,0,null,null,"?","?"]
["AQ","LROpnBrn","7Regions","Eastern","Development",{"$f":"R.7EastDevName4","v":0},{"$f":"R.7EastDevHrs4","v":0},{"$f":"Table3[[#This Row],[Hrs Rank]]","v":0},0,0,null,null,"?","?"]
["AQ","LROpnBrn","7Regions","Eastern","Implementation",{"$f":"R.7EastImpName1","v":0},{"$f":"R.7EastImpHrs1","v":0},{"$f":"Table3[[#This Row],[Hrs Rank]]","v":0},0,0,null,null,"?","?"]
["AQ","LROpnBrn","7Regions","Eastern","Implementation",{"$f":"R.7EastImpName2","v":0},{"$f":"R.7EastImpHrs2","v":0},{"$f":"Table3[[#This Row],[Hrs Rank]]","v":0},0,0,null,null,"?","?"]
["AQ","LROpnBrn","7Regions","Eastern","Implementation",{"$f":"R.7EastImpName3","v":0},{"$f":"R.7EastImpHrs3","v":0},{"$f":"Table3[[#This Row],[Hrs Rank]]","v":0},0,0,null,null,"?","?"]
["AQ","LROpnBrn","7Regions","Eastern","Implementation",{"$f":"R.7EastImpName4","v":0},{"$f":"R.7EastImpHrs4","v":0},{"$f":"Table3[[#This Row],[Hrs Rank]]","v":0},0,0,null,null,"?","?"]
["AQ","LROpnBrn","7Regions","Western","Development",{"$f":"R.7WestDevName1","v":0},{"$f":"R.7WestDevHrs1","v":0},{"$f":"Table3[[#This Row],[Hrs Rank]]","v":0},0,0,null,null,"?","?"]
["AQ","LROpnBrn","7Regions","Western","Development",{"$f":"R.7WestDevName2","v":0},{"$f":"R.7WestDevHrs2","v":0},{"$f":"Table3[[#This Row],[Hrs Rank]]","v":0},0,0,null,null,"?","?"]
[{"$f":"R.1Division","v":"AQ"},{"$f":"R.1CodeName","v":"LROpnBrn"},"7Regions","Western","Development",{"$f":"R.7WestDevName3","v":0},{"$f":"R.7WestDevHrs3","v":0},{"$f":"Table3[[#This Row],[Hrs Rank]]","v":0},{"$f":"IF(ISNA(VLOOKUP($H67,R.VL_DEQResourceHours,2,FALSE)),0,VLOOKUP($H67,R.VL_DEQResourceHours,2,FALSE))","v":0},{"$f":"IF(ISNA(VLOOKUP($H67,R.VL_DEQResourceHours,3,FALSE)),0,VLOOKUP($H67,R.VL_DEQResourceHours,3,FALSE))","v":0},null,null,"?","?"]
["AQ","LROpnBrn","7Regions","Western","Development",{"$f":"R.7WestDevName4","v":0},{"$f":"R.7WestDevHrs4","v":0},{"$f":"Table3[[#This Row],[Hrs Rank]]","v":0},0,0,null,null,"?","?"]
["AQ","LROpnBrn","7Regions","Western","Implementation",{"$f":"R.7WestImpName1","v":" "},{"$f":"R.7WestImpHrs1","v":0},{"$f":"Table3[[#This Row],[Hrs Rank]]","v":0},0,0,null,null,"?","?"]
["AQ","LROpnBrn","7Regions","Western","Implementation",{"$f":"R.7WestImpName2","v":0},{"$f":"R.7WestDevHrs2","v":0},{"$f":"Table3[[#This Row],[Hrs Rank]]","v":0},0,0,null,null,"?","?"]
["AQ","LROpnBrn","7Regions","Western","Implementation",{"$f":"R.7WestImpName3","v":0},{"$f":"R.7WestDevHrs3","v":0},{"$f":"Table3[[#This Row],[Hrs Rank]]","v":0},0,0,null,null,"?","?"]
["AQ","LROpnBrn","7Regions","Western","Implementation",{"$f":"R.7WestImpName4","v":0},{"$f":"R.7WestDevHrs4","v":0},{"$f":"Table3[[#This Row],[Hrs Rank]]","v":0},0,0,null,null,"?","?"]
["AQ","LROpnBrn","7Regions","NW","Development",{"$f":"R.7NWRegionDevName1","v":" "},{"$f":"R.7NWRegionDevHrs1","v":0},{"$f":"Table3[[#This Row],[Hrs Rank]]","v":0},0,0,null,null,"?","?"]
["AQ","LROpnBrn","7Regions","NW","Development",{"$f":"R.7NWRegionDevName2","v":" "},{"$f":"R.7NWRegionDevHrs2","v":0},{"$f":"Table3[[#This Row],[Hrs Rank]]","v":0},0,0,null,null,"?","?"]
["AQ","LROpnBrn","7Regions","NW","Development",{"$f":"R.7NWRegionDevName3","v":" "},{"$f":"R.7NWRegionDevHrs3","v":0},{"$f":"Table3[[#This Row],[Hrs Rank]]","v":0},0,0,null,null,"?","?"]
["AQ","LROpnBrn","7Regions","NW","Development",{"$f":"R.7NWRegionDevName4","v":" "},{"$f":"R.7NWRegionDevHrs4","v":0},{"$f":"Table3[[#This Row],[Hrs Rank]]","v":0},0,0,null,null,"?","?"]
["AQ","LROpnBrn","7Regions","NW","Implementation",{"$f":"R.7NWRegionImpName1","v":" "},{"$f":"R.7NWRegionImpHrs1","v":0},{"$f":"Table3[[#This Row],[Hrs Rank]]","v":0},0,0,null,null,"?","?"]
["AQ","LROpnBrn","7Regions","NW","Implementation",{"$f":"R.7NWRegionImpName2","v":" "},{"$f":"R.7NWRegionImpHrs2","v":0},{"$f":"Table3[[#This Row],[Hrs Rank]]","v":0},0,0,null,null,"?","?"]
["AQ","LROpnBrn","7Regions","NW","Implementation",{"$f":"R.7NWRegionImpName3","v":" "},{"$f":"R.7NWRegionImpHrs3","v":0},{"$f":"Table3[[#This Row],[Hrs Rank]]","v":0},0,0,null,null,"?","?"]
["AQ","LROpnBrn","7Regions","NW","Implementation",{"$f":"R.7NWRegionImpName4","v":" "},{"$f":"R.7NWRegionImpHrs4","v":0},{"$f":"Table3[[#This Row],[Hrs Rank]]","v":0},0,0,null,null,"?","?"]
["AQ","LROpnBrn","8Financial Services","Budget","Development",{"$f":"R.8BudDevName1","v":"Budget analyst"},{"$f":"R.8BudDevHrs1","v":0},{"$f":"Table3[[#This Row],[Hrs Rank]]","v":0},0,0,null,null,"?","?"]
["AQ","LROpnBrn","8Financial Services","Budget","Development",{"$f":"R.8BudDevName2","v":" "},{"$f":"R.8BudDevHrs2","v":0},{"$f":"Table3[[#This Row],[Hrs Rank]]","v":0},0,0,null,null,"?","?"]
["AQ","LROpnBrn","8Financial Services","Budget","Development",{"$f":"R.8BudDevName3","v":" "},{"$f":"R.8BudDevHrs3","v":0},{"$f":"Table3[[#This Row],[Hrs Rank]]","v":0},0,0,null,null,"?","?"]
["AQ","LROpnBrn","8Financial Services","Budget","Development",{"$f":"R.8BudDevName4","v":" "},{"$f":"R.8BudDevHrs4","v":0},{"$f":"Table3[[#This Row],[Hrs Rank]]","v":0},0,0,null,null,"?","?"]
["AQ","LROpnBrn","8Financial Services","Budget","Implementation",{"$f":"R.8BudImpName1","v":" "},{"$f":"R.8BudImpHrs1","v":0},{"$f":"Table3[[#This Row],[Hrs Rank]]","v":0},0,0,null,null,"?","?"]
["AQ","LROpnBrn","8Financial Services","Budget","Implementation",{"$f":"R.8BudImpName2","v":" "},{"$f":"R.8BudImpHrs2","v":0},{"$f":"Table3[[#This Row],[Hrs Rank]]","v":0},0,0,null,null,"?","?"]
["AQ","LROpnBrn","8Financial Services","Budget","Implementation",{"$f":"R.8BudImpName3","v":" "},{"$f":"R.8BudImpHrs3","v":0},{"$f":"Table3[[#This Row],[Hrs Rank]]","v":0},0,0,null,null,"?","?"]
["AQ","LROpnBrn","8Financial Services","Budget","Implementation",{"$f":"R.8BudImpName4","v":" "},{"$f":"R.8BudImpHrs4","v":0},{"$f":"Table3[[#This Row],[Hrs Rank]]","v":0},0,0,null,null,"?","?"]
["AQ","LROpnBrn","8Financial Services","Accounting","Development",{"$f":"R.8AcctDevName1","v":" "},{"$f":"R.8AcctDevHrs1","v":0},{"$f":"Table3[[#This Row],[Hrs Rank]]","v":0},0,0,null,null,"?","?"]
["AQ","LROpnBrn","8Financial Services","Accounting","Development",{"$f":"R.8AcctDevName2","v":" "},{"$f":"R.8AcctDevHrs2","v":0},{"$f":"Table3[[#This Row],[Hrs Rank]]","v":0},0,0,null,null,"?","?"]
["AQ","LROpnBrn","8Financial Services","Accounting","Development",{"$f":"R.8AcctDevName3","v":" "},{"$f":"R.8AcctDevHrs3","v":0},{"$f":"Table3[[#This Row],[Hrs Rank]]","v":0},0,0,null,null,"?","?"]
["AQ","LROpnBrn","8Financial Services","Accounting","Development",{"$f":"R.8AcctDevName4","v":" "},{"$f":"R.8AcctDevHrs4","v":0},{"$f":"Table3[[#This Row],[Hrs Rank]]","v":0},0,0,null,null,"?","?"]
["AQ","LROpnBrn","8Financial Services","Accounting","Implementation",{"$f":"R.8AcctImpName1","v":0},{"$f":"R.8AcctImpHrs1","v":0},{"$f":"Table3[[#This Row],[Hrs Rank]]","v":0},0,0,null,null,"?","?"]
["AQ","LROpnBrn","8Financial Services","Accounting","Implementation",{"$f":"R.8AcctImpName2","v":" "},{"$f":"R.8AcctImpHrs2","v":0},{"$f":"Table3[[#This Row],[Hrs Rank]]","v":0},0,0,null,null,"?","?"]
["AQ","LROpnBrn","8Financial Services","Accounting","Implementation",{"$f":"R.8AcctImpName3","v":" "},{"$f":"R.8AcctImpHrs3","v":0},{"$f":"Table3[[#This Row],[Hrs Rank]]","v":0},0,0,null,null,"?","?"]
["AQ","LROpnBrn","8Financial Services","Accounting","Implementation",{"$f":"R.8AcctImpName4","v":" "},{"$f":"R.8AcctImpHrs4","v":0},{"$f":"Table3[[#This Row],[Hrs Rank]]","v":0},0,0,null,null,"?","?"]
["AQ","LROpnBrn","8Financial Services","Contracts","Development",{"$f":"R.8DContractDevName1","v":0},{"$f":"R.8DContractDevHrs1","v":0},{"$f":"Table3[[#This Row],[Hrs Rank]]","v":0},0,0,null,null,"?","?"]
["AQ","LROpnBrn","8Financial Services","Contracts","Development",{"$f":"R.8DContractDevName2","v":" "},{"$f":"R.8DContractDevHrs2","v":0},{"$f":"Table3[[#This Row],[Hrs Rank]]","v":0},0,0,null,null,"?","?"]
[{"$f":"R.1Division","v":"AQ"},{"$f":"R.1CodeName","v":"LROpnBrn"},"8Financial Services","Contracts","Development",{"$f":"R.8DContractDevName3","v":" "},{"$f":"R.8DContractDevHrs3","v":0},{"$f":"Table3[[#This Row],[Hrs Rank]]","v":0},0,0,null,null,"?","?"]
["AQ","LROpnBrn","8Financial Services","Contracts","Development",{"$f":"R.8DContractDevName4","v":" "},{"$f":"R.8DContractDevHrs4","v":0},{"$f":"Table3[[#This Row],[Hrs Rank]]","v":0},0,0,null,null,"?","?"]
["AQ","LROpnBrn","8Financial Services","Contracts","Implementation",{"$f":"R.8DContractImpName1","v":0},{"$f":"R.8DContractImpHrs1","v":0},{"$f":"Table3[[#This Row],[Hrs Rank]]","v":0},0,0,null,null,"?","?"]
["AQ","LROpnBrn","8Financial Services","Contracts","Implementation",{"$f":"R.8DContractImpName2","v":0},{"$f":"R.8DContractImpHrs2","v":0},{"$f":"Table3[[#This Row],[Hrs Rank]]","v":0},0,0,null,null,"?","?"]
["AQ","LROpnBrn","8Financial Services","Contracts","Implementation",{"$f":"R.8DContractImpName3","v":" "},{"$f":"R.8DContractImpHrs3","v":0},{"$f":"Table3[[#This Row],[Hrs Rank]]","v":0},0,0,null,null,"?","?"]
["AQ","LROpnBrn","8Financial Services","Contracts","Implementation",{"$f":"R.8DContractImpName4","v":" "},{"$f":"R.8DContractImpHrs4","v":0},{"$f":"Table3[[#This Row],[Hrs Rank]]","v":0},0,0,null,null,"?","?"]
["AQ","LROpnBrn","9OCO","Communications","Development",{"$f":"R.9ComStrategyDevName1","v":"William Knight"},{"$f":"R.9ComStrategyDevHrs1","v":0},{"$f":"Table3[[#This Row],[Hrs Rank]]","v":0},0,0,null,null,"?","?"]
["AQ","LROpnBrn","9OCO","Communications","Development",{"$f":"R.9ComStrategyDevName2","v":"Joanie Stevens-Schwenger (editor)"},{"$f":"R.9ComStrategyDevHrs2","v":0},{"$f":"Table3[[#This Row],[Hrs Rank]]","v":0},0,0,null,null,"?","?"]
["AQ","LROpnBrn","9OCO","Communications","Development",{"$f":"R.9ComStrategyDevName3","v":" "},{"$f":"R.9ComStrategyDevHrs3","v":0},{"$f":"Table3[[#This Row],[Hrs Rank]]","v":0},0,0,null,null,"?","?"]
["AQ","LROpnBrn","9OCO","Communications","Development",{"$f":"R.9ComStrategyDevName4","v":" "},{"$f":"R.9ComStrategyDevHrs4","v":0},{"$f":"Table3[[#This Row],[Hrs Rank]]","v":0},0,0,null,null,"?","?"]
["AQ","LROpnBrn","9OCO","Communications","Implementation",{"$f":"R.9ComStrategyImpName1","v":" "},{"$f":"R.9ComStrategyImpHrs1","v":0},{"$f":"Table3[[#This Row],[Hrs Rank]]","v":0},0,0,null,null,"?","?"]
["AQ","LROpnBrn","9OCO","Communications","Implementation",{"$f":"R.9ComStrategyImpName2","v":0},{"$f":"R.9ComStrategyImpHrs2","v":0},{"$f":"Table3[[#This Row],[Hrs Rank]]","v":0},0,0,null,null,"?","?"]
["AQ","LROpnBrn","9OCO","Communications","Implementation",{"$f":"R.9ComStrategyImpName3","v":0},{"$f":"R.9ComStrategyImpHrs3","v":0},{"$f":"Table3[[#This Row],[Hrs Rank]]","v":0},0,0,null,null,"?","?"]
["AQ","LROpnBrn","9OCO","Communications","Implementation",{"$f":"R.9ComStrategyImpName4","v":" "},{"$f":"R.9ComStrategyImpHrs4","v":0},{"$f":"Table3[[#This Row],[Hrs Rank]]","v":0},0,0,null,null,"?","?"]
[{"$f":"R.1Division","v":"AQ"},{"$f":"R.1CodeName","v":"LROpnBrn"},"9OCO","Public Information Rep.","Development",{"$f":"R.9PRDevName1","v":0},{"$f":"R.9PRDevHrs1","v":0},{"$f":"Table3[[#This Row],[Hrs Rank]]","v":0},0,0,null,null,"?","?"]
["AQ","LROpnBrn","9OCO","Public Information Rep.","Development",{"$f":"R.9PRDevName2","v":" "},{"$f":"R.9PRDevHrs2","v":0},{"$f":"Table3[[#This Row],[Hrs Rank]]","v":0},0,0,null,null,"?","?"]
["AQ","LROpnBrn","9OCO","Public Information Rep.","Development",{"$f":"R.9PRDevName3","v":" "},{"$f":"R.9PRDevHrs3","v":0},{"$f":"Table3[[#This Row],[Hrs Rank]]","v":0},0,0,null,null,"?","?"]
["AQ","LROpnBrn","9OCO","Public Information Rep.","Development",{"$f":"R.9PRDevName4","v":" "},{"$f":"R.9PRDevHrs4","v":0},{"$f":"Table3[[#This Row],[Hrs Rank]]","v":0},0,0,null,null,"?","?"]
["AQ","LROpnBrn","9OCO","Public Information Rep.","Implementation",{"$f":"R.9PRImpName1","v":"William Knight"},{"$f":"R.9PRImpHrs1","v":0},{"$f":"Table3[[#This Row],[Hrs Rank]]","v":0},0,0,null,null,"?","?"]
["AQ","LROpnBrn","9OCO","Public Information Rep.","Implementation",{"$f":"R.9PRImpName2","v":" "},{"$f":"R.9PRImpHrs2","v":0},{"$f":"Table3[[#This Row],[Hrs Rank]]","v":0},0,0,null,null,"?","?"]
["AQ","LROpnBrn","9OCO","Public Information Rep.","Implementation",{"$f":"R.9PRImpName3","v":" "},{"$f":"R.9PRImpHrs3","v":0},{"$f":"Table3[[#This Row],[Hrs Rank]]","v":0},0,0,null,null,"?","?"]
["AQ","LROpnBrn","9OCO","Public Information Rep.","Implementation",{"$f":"R.9PRImpName4","v":" "},{"$f":"R.9PRImpHrs4","v":0},{"$f":"Table3[[#This Row],[Hrs Rank]]","v":0},0,0,null,null,"?","?"]
["AQ","LROpnBrn","9OCO","Web Communications","Development",{"$f":"R.9WebDevName1","v":"Elle Kozlowski"},{"$f":"R.9WebDevHrs1","v":0},{"$f":"Table3[[#This Row],[Hrs Rank]]","v":0},0,0,null,null,"?","?"]
["AQ","LROpnBrn","9OCO","Web Communications","Development",{"$f":"R.9WebDevName2","v":" "},{"$f":"R.9WebDevHrs2","v":0},{"$f":"Table3[[#This Row],[Hrs Rank]]","v":0},0,0,null,null,"?","?"]
["AQ","LROpnBrn","9OCO","Web Communications","Development",{"$f":"R.9WebDevName3","v":" "},{"$f":"R.9WebDevHrs3","v":0},{"$f":"Table3[[#This Row],[Hrs Rank]]","v":0},0,0,null,null,"?","?"]
["AQ","LROpnBrn","9OCO","Web Communications","Development",{"$f":"R.9WebDevName4","v":" "},{"$f":"R.9WebDevHrs4","v":0},{"$f":"Table3[[#This Row],[Hrs Rank]]","v":0},0,0,null,null,"?","?"]
["AQ","LROpnBrn","9OCO","Web Communications","Implementation",{"$f":"R.9WebImpName1","v":"Elle Kozlowski"},{"$f":"R.9WebImpHrs1","v":0},{"$f":"Table3[[#This Row],[Hrs Rank]]","v":0},0,0,null,null,"?","?"]
["AQ","LROpnBrn","9OCO","Web Communications","Implementation",{"$f":"R.9WebImpName2","v":" "},{"$f":"R.9WebImpHrs2","v":0},{"$f":"Table3[[#This Row],[Hrs Rank]]","v":0},0,0,null,null,"?","?"]
["AQ","LROpnBrn","9OCO","Web Communications","Implementation",{"$f":"R.9WebImpName3","v":" "},{"$f":"R.9WebImpHrs3","v":0},{"$f":"Table3[[#This Row],[Hrs Rank]]","v":0},0,0,null,null,"?","?"]
["AQ","LROpnBrn","9OCO","Web Communications","Implementation",{"$f":"R.9WebImpName4","v":" "},{"$f":"R.9WebImpHrs4","v":0},{"$f":"Table3[[#This Row],[Hrs Rank]]","v":0},0,0,null,null,"?","?"]
["AQ","LROpnBrn","10OrgServices","Human Resources","Development",{"$f":"R.10HRDevName1","v":0},{"$f":"R.10HRDevHrs1","v":0},{"$f":"Table3[[#This Row],[Hrs Rank]]","v":0},0,0,null,null,"?","?"]
["AQ","LROpnBrn","10OrgServices","Human Resources","Development",{"$f":"R.10HRDevName2","v":0},{"$f":"R.10HRDevHrs2","v":0},{"$f":"Table3[[#This Row],[Hrs Rank]]","v":0},0,0,null,null,"?","?"]
["AQ","LROpnBrn","10OrgServices","Human Resources","Development",{"$f":"R.10HRDevName3","v":0},{"$f":"R.10HRDevHrs3","v":0},{"$f":"Table3[[#This Row],[Hrs Rank]]","v":0},{"$f":"IF(ISNA(VLOOKUP($H131,R.VL_DEQResourceHours,2,FALSE)),0,VLOOKUP($H131,R.VL_DEQResourceHours,2,FALSE))","v":0},{"$f":"IF(ISNA(VLOOKUP($H131,R.VL_DEQResourceHours,3,FALSE)),0,VLOOKUP($H131,R.VL_DEQResourceHours,3,FALSE))","v":0},null,null,"?","?"]
["AQ","LROpnBrn","10OrgServices","Human Resources","Development",{"$f":"R.10HRDevName4","v":" "},{"$f":"R.10HRDevHrs4","v":0},{"$f":"Table3[[#This Row],[Hrs Rank]]","v":0},0,0,null,null,"?","?"]
["AQ","LROpnBrn","10OrgServices","Human Resources","Implementation",{"$f":"R.10HRImpName1","v":0},{"$f":"R.10HRImpHrs1","v":0},{"$f":"Table3[[#This Row],[Hrs Rank]]","v":0},0,0,null,null,"?","?"]
["AQ","LROpnBrn","10OrgServices","Human Resources","Implementation",{"$f":"R.10HRImpName2","v":" "},{"$f":"R.10HRImpHrs2","v":0},{"$f":"Table3[[#This Row],[Hrs Rank]]","v":0},0,0,null,null,"?","?"]
["AQ","LROpnBrn","10OrgServices","Human Resources","Implementation",{"$f":"R.10HRImpName3","v":" "},{"$f":"R.10HRImpHrs3","v":0},{"$f":"Table3[[#This Row],[Hrs Rank]]","v":0},0,0,null,null,"?","?"]
["AQ","LROpnBrn","10OrgServices","Human Resources","Implementation",{"$f":"R.10HRImpName4","v":" "},{"$f":"R.10HRImpHrs4","v":0},{"$f":"Table3[[#This Row],[Hrs Rank]]","v":0},0,0,null,null,"?","?"]
["AQ","LROpnBrn","10OrgServices","Policy and Procedures","Development",{"$f":"R.10PolicyDevName1","v":0},{"$f":"R.10PolicyDevHrs1","v":0},{"$f":"Table3[[#This Row],[Hrs Rank]]","v":0},0,0,null,null,"?","?"]
["AQ","LROpnBrn","10OrgServices","Policy and Procedures","Development",{"$f":"R.10PolicyDevName2","v":" "},{"$f":"R.10PolicyDevHrs2","v":0},{"$f":"Table3[[#This Row],[Hrs Rank]]","v":0},0,0,null,null,"?","?"]
["AQ","LROpnBrn","10OrgServices","Policy and Procedures","Development",{"$f":"R.10PolicyDevName3","v":" "},{"$f":"R.10PolicyDevHrs3","v":0},{"$f":"Table3[[#This Row],[Hrs Rank]]","v":0},0,0,null,null,"?","?"]
["AQ","LROpnBrn","10OrgServices","Policy and Procedures","Development",{"$f":"R.10PolicyDevName4","v":" "},{"$f":"R.10PolicyDevHrs4","v":0},{"$f":"Table3[[#This Row],[Hrs Rank]]","v":0},0,0,null,null,"?","?"]
["AQ","LROpnBrn","10OrgServices","Policy and Procedures","Implementation",{"$f":"R.10PolicyImpName1","v":0},{"$f":"R.10PolicyImpHrs1","v":0},{"$f":"Table3[[#This Row],[Hrs Rank]]","v":0},0,0,null,null,"?","?"]
["AQ","LROpnBrn","10OrgServices","Policy and Procedures","Implementation",{"$f":"R.10PolicyImpName2","v":" "},{"$f":"R.10PolicyImpHrs2","v":0},{"$f":"Table3[[#This Row],[Hrs Rank]]","v":0},0,0,null,null,"?","?"]
["AQ","LROpnBrn","10OrgServices","Policy and Procedures","Implementation",{"$f":"R.10PolicyImpName3","v":" "},{"$f":"R.10PolicyImpHrs3","v":0},{"$f":"Table3[[#This Row],[Hrs Rank]]","v":0},0,0,null,null,"?","?"]
["AQ","LROpnBrn","10OrgServices","Policy and Procedures","Implementation",{"$f":"R.10PolicyImpName4","v":" "},{"$f":"R.10PolicyImpHrs4","v":0},{"$f":"Table3[[#This Row],[Hrs Rank]]","v":0},0,0,null,null,"?","?"]
["AQ","LROpnBrn","10OrgServices","Health and Safety","Development",{"$f":"R.10SafetyDevName1","v":" "},{"$f":"R.10SafetyDevHrs1","v":0},{"$f":"Table3[[#This Row],[Hrs Rank]]","v":0},0,0,null,null,"?","?"]
["AQ","LROpnBrn","10OrgServices","Health and Safety","Development",{"$f":"R.10SafetyDevName2","v":" "},{"$f":"R.10SafetyDevHrs2","v":0},{"$f":"Table3[[#This Row],[Hrs Rank]]","v":0},0,0,null,null,"?","?"]
["AQ","LROpnBrn","10OrgServices","Health and Safety","Development",{"$f":"R.10SafetyDevName3","v":" "},{"$f":"R.10SafetyDevHrs3","v":0},{"$f":"Table3[[#This Row],[Hrs Rank]]","v":0},0,0,null,null,"?","?"]
["AQ","LROpnBrn","10OrgServices","Health and Safety","Development",{"$f":"R.10SafetyDevName4","v":" "},{"$f":"R.10SafetyDevHrs4","v":0},{"$f":"Table3[[#This Row],[Hrs Rank]]","v":0},0,0,null,null,"?","?"]
[{"$f":"R.1Division","v":"AQ"},{"$f":"R.1CodeName","v":"LROpnBrn"},"10OrgServices","Health and Safety","Implementation",{"$f":"R.10SafetyImpName1","v":" "},{"$f":"R.10SafetyImpHrs1","v":0},{"$f":"Table3[[#This Row],[Hrs Rank]]","v":0},0,0,null,null,"?","?"]
["AQ","LROpnBrn","10OrgServices","Health and Safety","Implementation",{"$f":"R.10SafetyImpName2","v":" "},{"$f":"R.10SafetyImpHrs2","v":0},{"$f":"Table3[[#This Row],[Hrs Rank]]","v":0},0,0,null,null,"?","?"]
["AQ","LROpnBrn","10OrgServices","Health and Safety","Implementation",{"$f":"R.10SafetyImpName3","v":0},{"$f":"R.10SafetyImpHrs3","v":0},{"$f":"Table3[[#This Row],[Hrs Rank]]","v":0},0,0,null,null,"?","?"]
["AQ","LROpnBrn","10OrgServices","Health and Safety","Implementation",{"$f":"R.10SafetyImpName4","v":" "},{"$f":"R.10SafetyImpHrs4","v":0},{"$f":"Table3[[#This Row],[Hrs Rank]]","v":0},0,0,null,null,"?","?"]
["AQ","LROpnBrn","10OrgServices","Training","Development",{"$f":"R.10TrainingDevName1","v":0},{"$f":"R.10TrainingDevHrs1","v":0},{"$f":"Table3[[#This Row],[Hrs Rank]]","v":0},0,0,null,null,"?","?"]
["AQ","LROpnBrn","10OrgServices","Training","Development",{"$f":"R.10TrainingDevName2","v":0},{"$f":"R.10TrainingDevHrs2","v":0},{"$f":"Table3[[#This Row],[Hrs Rank]]","v":0},0,0,null,null,"?","?"]
["AQ","LROpnBrn","10OrgServices","Training","Development",{"$f":"R.10TrainingDevName3","v":" "},{"$f":"R.10TrainingDevHrs3","v":0},{"$f":"Table3[[#This Row],[Hrs Rank]]","v":0},0,0,null,null,"?","?"]
["AQ","LROpnBrn","10OrgServices","Training","Development",{"$f":"R.10TrainingDevName4","v":" "},{"$f":"R.10TrainingDevHrs4","v":0},{"$f":"Table3[[#This Row],[Hrs Rank]]","v":0},0,0,null,null,"?","?"]
["AQ","LROpnBrn","10OrgServices","Training","Implementation",{"$f":"R.10TrainingImpName1","v":" "},{"$f":"R.10TrainingImpHrs1","v":0},{"$f":"Table3[[#This Row],[Hrs Rank]]","v":0},0,0,null,null,"?","?"]
["AQ","LROpnBrn","10OrgServices","Training","Implementation",{"$f":"R.10TrainingImpName2","v":" "},{"$f":"R.10TrainingImpHrs2","v":0},{"$f":"Table3[[#This Row],[Hrs Rank]]","v":0},0,0,null,null,"?","?"]
[{"$f":"R.1Division","v":"AQ"},{"$f":"R.1CodeName","v":"LROpnBrn"},"10OrgServices","Training","Implementation",{"$f":"R.10TrainingImpName3","v":" "},{"$f":"R.10TrainingImpHrs3","v":0},{"$f":"Table3[[#This Row],[Hrs Rank]]","v":0},0,0,null,null,"?","?"]
["AQ","LROpnBrn","10OrgServices","Training","Implementation",{"$f":"R.10TrainingImpName4","v":" "},{"$f":"R.10TrainingImpHrs4","v":0},{"$f":"Table3[[#This Row],[Hrs Rank]]","v":0},0,0,null,null,"?","?"]
["AQ","LROpnBrn","11TechServices","Division Technical","Development",{"$f":"R.11DivTechDevName1","v":" "},{"$f":"R.11DivTechDevHrs1","v":0},{"$f":"Table3[[#This Row],[Hrs Rank]]","v":0},0,0,null,null,"?","?"]
["AQ","LROpnBrn","11TechServices","Division Technical","Development",{"$f":"R.11DivTechDevName2","v":" "},{"$f":"R.11DivTechDevHrs2","v":0},{"$f":"Table3[[#This Row],[Hrs Rank]]","v":0},0,0,null,null,"?","?"]
["AQ","LROpnBrn","11TechServices","Division Technical","Development",{"$f":"R.11DivTechDevName3","v":" "},{"$f":"R.11DivTechDevHrs3","v":0},{"$f":"Table3[[#This Row],[Hrs Rank]]","v":0},0,0,null,null,"?","?"]
["AQ","LROpnBrn","11TechServices","Division Technical","Development",{"$f":"R.11DivTechDevName4","v":0},{"$f":"R.11DivTechDevHrs4","v":0},{"$f":"Table3[[#This Row],[Hrs Rank]]","v":0},0,0,null,null,"?","?"]
["AQ","LROpnBrn","11TechServices","Division Technical","Implementation",{"$f":"R.11DivTechImpName1","v":" "},{"$f":"R.11DivTechImpHrs1","v":0},{"$f":"Table3[[#This Row],[Hrs Rank]]","v":0},0,0,null,null,"?","?"]
["AQ","LROpnBrn","11TechServices","Division Technical","Implementation",{"$f":"R.11DivTechImpName2","v":0},{"$f":"R.11DivTechImpHrs2","v":0},{"$f":"Table3[[#This Row],[Hrs Rank]]","v":0},0,0,null,null,"?","?"]
["AQ","LROpnBrn","11TechServices","Division Technical","Implementation",{"$f":"R.11DivTechImpName3","v":" "},{"$f":"R.11DivTechImpHrs3","v":0},{"$f":"Table3[[#This Row],[Hrs Rank]]","v":0},0,0,null,null,"?","?"]
["AQ","LROpnBrn","11TechServices","Division Technical","Implementation",{"$f":"R.11DivTechImpName4","v":" "},{"$f":"R.11DivTechImpHrs4","v":0},{"$f":"Table3[[#This Row],[Hrs Rank]]","v":0},0,0,null,null,"?","?"]
["AQ","LROpnBrn","11TechServices","Information Technology","Development",{"$f":"R.11ITDevName1","v":" "},{"$f":"R.11ITDevHrs1","v":0},{"$f":"Table3[[#This Row],[Hrs Rank]]","v":0},0,0,null,null,"?","?"]
["AQ","LROpnBrn","11TechServices","Information Technology","Development",{"$f":"R.11ITDevName2","v":" "},{"$f":"R.11ITDevHrs2","v":0},{"$f":"Table3[[#This Row],[Hrs Rank]]","v":0},0,0,null,null,"?","?"]
["AQ","LROpnBrn","11TechServices","Information Technology","Development",{"$f":"R.11ITDevName3","v":" "},{"$f":"R.11ITDevHrs3","v":0},{"$f":"Table3[[#This Row],[Hrs Rank]]","v":0},0,0,null,null,"?","?"]
["AQ","LROpnBrn","11TechServices","Information Technology","Development",{"$f":"R.11ITDevName4","v":0},{"$f":"R.11ITDevHrs4","v":0},{"$f":"Table3[[#This Row],[Hrs Rank]]","v":0},0,0,null,null,"?","?"]
["AQ","LROpnBrn","11TechServices","Information Technology","Implementation",{"$f":"R.11ITImpName1","v":0},{"$f":"R.11ITImpHrs1","v":0},{"$f":"Table3[[#This Row],[Hrs Rank]]","v":0},0,0,null,null,"?","?"]
["AQ","LROpnBrn","11TechServices","Information Technology","Implementation",{"$f":"R.11ITImpName2","v":" "},{"$f":"R.11ITImpHrs2","v":0},{"$f":"Table3[[#This Row],[Hrs Rank]]","v":0},0,0,null,null,"?","?"]
["AQ","LROpnBrn","11TechServices","Information Technology","Implementation",{"$f":"R.11ITImpName3","v":" "},{"$f":"R.11ITImpHrs3","v":0},{"$f":"Table3[[#This Row],[Hrs Rank]]","v":0},0,0,null,null,"?","?"]
["AQ","LROpnBrn","11TechServices","Information Technology","Implementation",{"$f":"R.11ITImpName4","v":" "},{"$f":"R.11ITImpHrs4","v":0},{"$f":"Table3[[#This Row],[Hrs Rank]]","v":0},0,0,null,null,"?","?"]
["AQ","LROpnBrn","11TechServices","Business System Development","Development",{"$f":"R.11BSDDevName1","v":0},{"$f":"R.11BSDDevHrs1","v":0},{"$f":"Table3[[#This Row],[Hrs Rank]]","v":0},0,0,null,null,"?","?"]
["AQ","LROpnBrn","11TechServices","Business System Development","Development",{"$f":"R.11BSDDevName2","v":" "},{"$f":"R.11BSDDevHrs2","v":0},{"$f":"Table3[[#This Row],[Hrs Rank]]","v":0},0,0,null,null,"?","?"]
["AQ","LROpnBrn","11TechServices","Business System Development","Development",{"$f":"R.11BSDDevName3","v":" "},{"$f":"R.11BSDDevHrs3","v":0},{"$f":"Table3[[#This Row],[Hrs Rank]]","v":0},0,0,null,null,"?","?"]
["AQ","LROpnBrn","11TechServices","Business System Development","Development",{"$f":"R.11BSDDevName4","v":" "},{"$f":"R.11BSDDevHrs4","v":0},{"$f":"Table3[[#This Row],[Hrs Rank]]","v":0},0,0,null,null,"?","?"]
["AQ","LROpnBrn","11TechServices","Business System Development","Implementation",{"$f":"R.11BSDImpName1","v":0},{"$f":"R.11BSDImpHrs1","v":0},{"$f":"Table3[[#This Row],[Hrs Rank]]","v":0},0,0,null,null,"?","?"]
["AQ","LROpnBrn","11TechServices","Business System Development","Implementation",{"$f":"R.11BSDImpName2","v":" "},{"$f":"R.11BSDImpHrs2","v":0},{"$f":"Table3[[#This Row],[Hrs Rank]]","v":0},0,0,null,null,"?","?"]
["AQ","LROpnBrn","11TechServices","Business System Development","Implementation",{"$f":"R.11BSDImpName3","v":" "},{"$f":"R.11BSDImpHrs3","v":0},{"$f":"Table3[[#This Row],[Hrs Rank]]","v":0},0,0,null,null,"?","?"]
["AQ","LROpnBrn","11TechServices","Business System Development","Implementation",{"$f":"R.11BSDImpName4","v":" "},{"$f":"R.11BSDImpHrs4","v":0},{"$f":"Table3[[#This Row],[Hrs Rank]]","v":0},0,0,null,null,"?","?"]
["AQ","LROpnBrn","12OCE","Compliance and Enforcement","Development",{"$f":"R.12OCEDevName1","v":0},{"$f":"R.12OCEDevHrs1","v":0},{"$f":"Table3[[#This Row],[Hrs Rank]]","v":0},0,0,null,null,"?","?"]
["AQ","LROpnBrn","12OCE","Compliance and Enforcement","Development",{"$f":"R.12OCEDevName2","v":" "},{"$f":"R.12OCEDevHrs2","v":0},{"$f":"Table3[[#This Row],[Hrs Rank]]","v":0},0,0,null,null,"?","?"]
["AQ","LROpnBrn","12OCE","Compliance and Enforcement","Development",{"$f":"R.12OCEDevName3","v":" "},{"$f":"R.12OCEDevHrs3","v":0},{"$f":"Table3[[#This Row],[Hrs Rank]]","v":0},0,0,null,null,"?","?"]
["AQ","LROpnBrn","12OCE","Compliance and Enforcement","Development",{"$f":"R.12OCEDevName4","v":" "},{"$f":"R.12OCEDevHrs4","v":0},{"$f":"Table3[[#This Row],[Hrs Rank]]","v":0},0,0,null,null,"?","?"]
["AQ","LROpnBrn","12OCE","Compliance and Enforcement","Implementation",{"$f":"R.12OCEImpName1","v":0},{"$f":"R.12OCEImpHrs1","v":0},{"$f":"Table3[[#This Row],[Hrs Rank]]","v":0},0,0,null,null,"?","?"]
["AQ","LROpnBrn","12OCE","Compliance and Enforcement","Implementation",{"$f":"R.12OCEImpName2","v":0},{"$f":"R.12OCEImpHrs2","v":0},{"$f":"Table3[[#This Row],[Hrs Rank]]","v":0},0,0,null,null,"?","?"]
[{"$f":"R.1Division","v":"AQ"},{"$f":"R.1CodeName","v":"LROpnBrn"},"12OCE","Compliance and Enforcement","Implementation",{"$f":"R.12OCEImpName3","v":" "},{"$f":"R.12OCEImpHrs3","v":0},{"$f":"Table3[[#This Row],[Hrs Rank]]","v":0},0,0,null,null,"?","?"]
["AQ","LROpnBrn","12OCE","Compliance and Enforcement","Implementation",{"$f":"R.12OCEImpName4","v":" "},{"$f":"R.12OCEImpHrs4","v":0},{"$f":"Table3[[#This Row],[Hrs Rank]]","v":0},0,0,null,null,"?","?"]
["AQ","LROpnBrn","13LEAD","Monitoring","Development",{"$f":"R.13MonitorDevName1","v":0},{"$f":"R.13MonitorDevHrs1","v":0},{"$f":"Table3[[#This Row],[Hrs Rank]]","v":0},0,0,null,null,"?","?"]
["AQ","LROpnBrn","13LEAD","Monitoring","Development",{"$f":"R.13MonitorDevName2","v":0},{"$f":"R.13MonitorDevHrs2","v":0},{"$f":"Table3[[#This Row],[Hrs Rank]]","v":0},0,0,null,null,"?","?"]
["AQ","LROpnBrn","13LEAD","Monitoring","Development",{"$f":"R.13MonitorDevName3","v":0},{"$f":"R.13MonitorDevHrs3","v":0},{"$f":"Table3[[#This Row],[Hrs Rank]]","v":0},{"$f":"IF(ISNA(VLOOKUP($H195,R.VL_DEQResourceHours,2,FALSE)),0,VLOOKUP($H195,R.VL_DEQResourceHours,2,FALSE))","v":0},{"$f":"IF(ISNA(VLOOKUP($H195,R.VL_DEQResourceHours,3,FALSE)),0,VLOOKUP($H195,R.VL_DEQResourceHours,3,FALSE))","v":0},null,null,"?","?"]
["AQ","LROpnBrn","13LEAD","Monitoring","Development",{"$f":"R.13MonitorDevName4","v":" "},{"$f":"R.13MonitorDevHrs4","v":0},{"$f":"Table3[[#This Row],[Hrs Rank]]","v":0},0,0,null,null,"?","?"]
["AQ","LROpnBrn","13LEAD","Monitoring","Implementation",{"$f":"R.13MonitorImpName1","v":0},{"$f":"R.13MonitorImpHrs1","v":0},{"$f":"Table3[[#This Row],[Hrs Rank]]","v":0},0,0,null,null,"?","?"]
["AQ","LROpnBrn","13LEAD","Monitoring","Implementation",{"$f":"R.13MonitorImpName2","v":" "},{"$f":"R.13MonitorImpHrs2","v":0},{"$f":"Table3[[#This Row],[Hrs Rank]]","v":0},0,0,null,null,"?","?"]
["AQ","LROpnBrn","13LEAD","Monitoring","Implementation",{"$f":"R.13MonitorImpName3","v":" "},{"$f":"R.13MonitorImpHrs3","v":0},{"$f":"Table3[[#This Row],[Hrs Rank]]","v":0},0,0,null,null,"?","?"]
["AQ","LROpnBrn","13LEAD","Monitoring","Implementation",{"$f":"R.13MonitorImpName4","v":" "},{"$f":"R.13MonitorImpHrs4","v":0},{"$f":"Table3[[#This Row],[Hrs Rank]]","v":0},0,0,null,null,"?","?"]
["AQ","LROpnBrn","13LEAD","Analytical testing","Development",{"$f":"R.13TestDevName1","v":0},{"$f":"R.13TestDevHrs1","v":0},{"$f":"Table3[[#This Row],[Hrs Rank]]","v":0},0,0,null,null,"?","?"]
["AQ","LROpnBrn","13LEAD","Analytical testing","Development",{"$f":"R.13TestDevName2","v":" "},{"$f":"R.13TestDevHrs2","v":0},{"$f":"Table3[[#This Row],[Hrs Rank]]","v":0},0,0,null,null,"?","?"]
["AQ","LROpnBrn","13LEAD","Analytical testing","Development",{"$f":"R.13TestDevName3","v":" "},{"$f":"R.13TestDevHrs3","v":0},{"$f":"Table3[[#This Row],[Hrs Rank]]","v":0},0,0,null,null,"?","?"]
["AQ","LROpnBrn","13LEAD","Analytical testing","Development",{"$f":"R.13TestDevName4","v":" "},{"$f":"R.13TestDevHrs4","v":0},{"$f":"Table3[[#This Row],[Hrs Rank]]","v":0},0,0,null,null,"?","?"]
["AQ","LROpnBrn","13LEAD","Analytical testing","Implementation",{"$f":"R.13TestImpName1","v":0},{"$f":"R.13TestImpHrs1","v":0},{"$f":"Table3[[#This Row],[Hrs Rank]]","v":0},0,0,null,null,"?","?"]
["AQ","LROpnBrn","13LEAD","Analytical testing","Implementation",{"$f":"R.13TestImpName2","v":" "},{"$f":"R.13TestImpHrs2","v":0},{"$f":"Table3[[#This Row],[Hrs Rank]]","v":0},0,0,null,null,"?","?"]
["AQ","LROpnBrn","13LEAD","Analytical testing","Implementation",{"$f":"R.13TestImpName3","v":" "},{"$f":"R.13TestImpHrs3","v":0},{"$f":"Table3[[#This Row],[Hrs Rank]]","v":0},0,0,null,null,"?","?"]
["AQ","LROpnBrn","13LEAD","Analytical testing","Implementation",{"$f":"R.13TestImpName4","v":" "},{"$f":"R.13TestImpHrs4","v":0},{"$f":"Table3[[#This Row],[Hrs Rank]]","v":0},0,0,null,null,"?","?"]
["AQ","LROpnBrn","13LEAD","Quality Assurance","Development",{"$f":"R.13QADevName1","v":0},{"$f":"R.13QADevHrs1","v":0},{"$f":"Table3[[#This Row],[Hrs Rank]]","v":0},0,0,null,null,"?","?"]
["AQ","LROpnBrn","13LEAD","Quality Assurance","Development",{"$f":"R.13QADevName2","v":0},{"$f":"R.13QADevHrs2","v":0},{"$f":"Table3[[#This Row],[Hrs Rank]]","v":0},0,0,null,null,"?","?"]
["AQ","LROpnBrn","13LEAD","Quality Assurance","Development",{"$f":"R.13QADevName3","v":0},{"$f":"R.13QADevHrs3","v":0},{"$f":"Table3[[#This Row],[Hrs Rank]]","v":0},0,0,null,null,"?","?"]
["AQ","LROpnBrn","13LEAD","Quality Assurance","Development",{"$f":"R.13QADevName4","v":0},{"$f":"R.13QADevHrs4","v":0},{"$f":"Table3[[#This Row],[Hrs Rank]]","v":0},0,0,null,null,"?","?"]
["AQ","LROpnBrn","13LEAD","Quality Assurance","Implementation",{"$f":"R.13QAImpName1","v":0},{"$f":"R.13QAImpHrs1","v":0},{"$f":"Table3[[#This Row],[Hrs Rank]]","v":0},0,0,null,null,"?","?"]
["AQ","LROpnBrn","13LEAD","Quality Assurance","Implementation",{"$f":"R.13QAImpName2","v":0},{"$f":"R.13QAImpHrs2","v":0},{"$f":"Table3[[#This Row],[Hrs Rank]]","v":0},0,0,null,null,"?","?"]
["AQ","LROpnBrn","13LEAD","Quality Assurance","Implementation",{"$f":"R.13QAImpName3","v":0},{"$f":"R.13QAImpHrs3","v":0},{"$f":"Table3[[#This Row],[Hrs Rank]]","v":0},0,0,null,null,"?","?"]
["AQ","LROpnBrn","13LEAD","Quality Assurance","Implementation",{"$f":"R.13QAImpName4","v":0},{"$f":"R.13QAImpHrs4","v":0},{"$f":"Table3[[#This Row],[Hrs Rank]]","v":0},0,0,null,null,"?","?"]
["AQ","LROpnBrn","14InterGvmt","LRAPA","Development",{"$f":"R.14LRAPADevName1","v":0},0,{"$f":"Table3[[#This Row],[Hrs Rank]]","v":0},0,0,null,null,"?","?"]
["AQ","LROpnBrn","14InterGvmt","LRAPA","Development",{"$f":"R.14LRAPADevName2","v":" "},{"$f":"R.14LRAPADevHrs1","v":0},{"$f":"Table3[[#This Row],[Hrs Rank]]","v":0},0,0,null,null,"?","?"]
["AQ","LROpnBrn","14InterGvmt","LRAPA","Development",{"$f":"R.14LRAPADevName3","v":" "},{"$f":"R.14LRAPADevHrs2","v":0},{"$f":"Table3[[#This Row],[Hrs Rank]]","v":0},0,0,null,null,"?","?"]
["AQ","LROpnBrn","14InterGvmt","LRAPA","Development",{"$f":"R.14LRAPADevName4","v":" "},{"$f":"R.14LRAPADevHrs3","v":0},{"$f":"Table3[[#This Row],[Hrs Rank]]","v":0},0,0,null,null,"?","?"]
["AQ","LROpnBrn","14InterGvmt","LRAPA","Implementation",{"$f":"R.14LRAPAImpName1","v":" "},{"$f":"R.14LRAPADevHrs4","v":0},{"$f":"Table3[[#This Row],[Hrs Rank]]","v":0},0,0,null,null,"?","?"]
["AQ","LROpnBrn","14InterGvmt","LRAPA","Implementation",{"$f":"R.14LRAPAImpName2","v":" "},{"$f":"R.14LRAPAImpHrs2","v":0},{"$f":"Table3[[#This Row],[Hrs Rank]]","v":0},0,0,null,null,"?","?"]
[{"$f":"R.1Division","v":"AQ"},{"$f":"R.1CodeName","v":"LROpnBrn"},"14InterGvmt","LRAPA","Implementation",{"$f":"R.14LRAPAImpName3","v":" "},0,{"$f":"Table3[[#This Row],[Hrs Rank]]","v":0},0,0,null,null,"?","?"]
["AQ","LROpnBrn","14InterGvmt","LRAPA","Implementation",{"$f":"R.14LRAPAImpName4","v":" "},{"$f":"R.14LRAPAImpHrs4","v":0},{"$f":"Table3[[#This Row],[Hrs Rank]]","v":0},0,0,null,null,"?","?"]
["AQ","LROpnBrn","14InterGvmt","EPA Region 10","Development",{"$f":"R.14EPADevName1","v":" "},{"$f":"R.14EPADevHrs1","v":0},{"$f":"Table3[[#This Row],[Hrs Rank]]","v":0},0,0,null,null,"?","?"]
["AQ","LROpnBrn","14InterGvmt","EPA Region 10","Development",{"$f":"R.14EPADevName2","v":" "},{"$f":"R.14EPADevHrs2","v":0},{"$f":"Table3[[#This Row],[Hrs Rank]]","v":0},0,0,null,null,"?","?"]
["AQ","LROpnBrn","14InterGvmt","EPA Region 10","Development",{"$f":"R.14EPADevName3","v":" "},{"$f":"R.14EPADevHrs3","v":0},{"$f":"Table3[[#This Row],[Hrs Rank]]","v":0},0,0,null,null,"?","?"]
["AQ","LROpnBrn","14InterGvmt","EPA Region 10","Development",{"$f":"R.14EPADevName4","v":" "},{"$f":"R.14EPADevHrs4","v":0},{"$f":"Table3[[#This Row],[Hrs Rank]]","v":0},0,0,null,null,"?","?"]
["AQ","LROpnBrn","14InterGvmt","EPA Region 10","Implementation",{"$f":"R.14EPAImpName1","v":" "},{"$f":"R.14EPAImpHrs1","v":0},{"$f":"Table3[[#This Row],[Hrs Rank]]","v":0},0,0,null,null,"?","?"]
["AQ","LROpnBrn","14InterGvmt","EPA Region 10","Implementation",{"$f":"R.14EPAImpName2","v":" "},{"$f":"R.14EPAImpHrs2","v":0},{"$f":"Table3[[#This Row],[Hrs Rank]]","v":0},0,0,null,null,"?","?"]
["AQ","LROpnBrn","14InterGvmt","EPA Region 10","Implementation",{"$f":"R.14EPAImpName3","v":" "},{"$f":"R.14EPAImpHrs3","v":0},{"$f":"Table3[[#This Row],[Hrs Rank]]","v":0},0,0,null,null,"?","?"]
["AQ","LROpnBrn","14InterGvmt","EPA Region 10","Implementation",{"$f":"R.14EPAImpName4","v":" "},{"$f":"R.14EPAImpHrs4","v":0},{"$f":"Table3[[#This Row],[Hrs Rank]]","v":0},0,0,null,null,"?","?"]
["AQ","LROpnBrn","14InterGvmt","Municipalities","Development",{"$f":"R.14MuniDevName1","v":" "},{"$f":"R.14MuniDevHrs1","v":0},{"$f":"Table3[[#This Row],[Hrs Rank]]","v":0},0,0,null,null,"?","?"]
["AQ","LROpnBrn","14InterGvmt","Municipalities","Development",{"$f":"R.14MuniDevName2","v":" "},{"$f":"R.14MuniDevHrs2","v":0},{"$f":"Table3[[#This Row],[Hrs Rank]]","v":0},0,0,null,null,"?","?"]
["AQ","LROpnBrn","14InterGvmt","Municipalities","Development",{"$f":"R.14MuniDevName3","v":" "},{"$f":"R.14MuniDevHrs3","v":0},{"$f":"Table3[[#This Row],[Hrs Rank]]","v":0},0,0,null,null,"?","?"]
["AQ","LROpnBrn","14InterGvmt","Municipalities","Development",{"$f":"R.14MuniDevName4","v":" "},{"$f":"R.14MuniDevHrs4","v":0},{"$f":"Table3[[#This Row],[Hrs Rank]]","v":0},0,0,null,null,"?","?"]
["AQ","LROpnBrn","14InterGvmt","Municipalities","Implementation",{"$f":"R.14MuniImpName1","v":" "},{"$f":"R.14MuniImpHrs1","v":0},{"$f":"Table3[[#This Row],[Hrs Rank]]","v":0},0,0,null,null,"?","?"]
["AQ","LROpnBrn","14InterGvmt","Municipalities","Implementation",{"$f":"R.14MuniImpName2","v":" "},{"$f":"R.14MuniImpHrs2","v":0},{"$f":"Table3[[#This Row],[Hrs Rank]]","v":0},0,0,null,null,"?","?"]
["AQ","LROpnBrn","14InterGvmt","Municipalities","Implementation",{"$f":"R.14MuniImpName3","v":" "},{"$f":"R.14MuniImpHrs3","v":0},{"$f":"Table3[[#This Row],[Hrs Rank]]","v":0},0,0,null,null,"?","?"]
["AQ","LROpnBrn","14InterGvmt","Municipalities","Implementation",{"$f":"R.14MuniImpName4","v":" "},{"$f":"R.14MuniImpHrs4","v":0},{"$f":"Table3[[#This Row],[Hrs Rank]]","v":0},0,0,null,null,"?","?"]
["AQ","LROpnBrn","14InterGvmt","Counties","Development",{"$f":"R.14CountyDevName1","v":0},{"$f":"R.14CountyDevHrs1","v":0},{"$f":"Table3[[#This Row],[Hrs Rank]]","v":0},0,0,null,null,"?","?"]
["AQ","LROpnBrn","14InterGvmt","Counties","Development",{"$f":"R.14CountyDevName2","v":" "},{"$f":"R.14CountyDevHrs2","v":0},{"$f":"Table3[[#This Row],[Hrs Rank]]","v":0},0,0,null,null,"?","?"]
["AQ","LROpnBrn","14InterGvmt","Counties","Development",{"$f":"R.14CountyDevName3","v":" "},{"$f":"R.14CountyDevHrs3","v":0},{"$f":"Table3[[#This Row],[Hrs Rank]]","v":0},0,0,null,null,"?","?"]
["AQ","LROpnBrn","14InterGvmt","Counties","Development",{"$f":"R.14CountyDevName4","v":" "},{"$f":"R.14CountyDevHrs4","v":0},{"$f":"Table3[[#This Row],[Hrs Rank]]","v":0},0,0,null,null,"?","?"]
["AQ","LROpnBrn","14InterGvmt","Counties","Implementation",{"$f":"R.14CountyImpName1","v":0},{"$f":"R.14CountyImpHrs1","v":0},{"$f":"Table3[[#This Row],[Hrs Rank]]","v":0},0,0,null,null,"?","?"]
["AQ","LROpnBrn","14InterGvmt","Counties","Implementation",{"$f":"R.14CountyImpName2","v":" "},{"$f":"R.14CountyImpHrs2","v":0},{"$f":"Table3[[#This Row],[Hrs Rank]]","v":0},0,0,null,null,"?","?"]
["AQ","LROpnBrn","14InterGvmt","Counties","Implementation",{"$f":"R.14CountyImpName3","v":" "},{"$f":"R.14CountyImpHrs3","v":0},{"$f":"Table3[[#This Row],[Hrs Rank]]","v":0},0,0,null,null,"?","?"]
["AQ","LROpnBrn","14InterGvmt","Counties","Implementation",{"$f":"R.14CountyImpName4","v":" "},{"$f":"R.14CountyImpHrs4","v":0},{"$f":"Table3[[#This Row],[Hrs Rank]]","v":0},0,0,null,null,"?","?"]
["AQ","LROpnBrn","14InterGvmt","Special Districts","Development",{"$f":"R.14DistrictsDevName1","v":0},{"$f":"R.14DistrictsDevHrs1","v":0},{"$f":"Table3[[#This Row],[Hrs Rank]]","v":0},0,0,null,null,"?","?"]
["AQ","LROpnBrn","14InterGvmt","Special Districts","Development",{"$f":"R.14DistrictsDevName2","v":" "},{"$f":"R.14DistrictsDevHrs2","v":0},{"$f":"Table3[[#This Row],[Hrs Rank]]","v":0},0,0,null,null,"?","?"]
["AQ","LROpnBrn","14InterGvmt","Special Districts","Development",{"$f":"R.14DistrictsDevName3","v":" "},{"$f":"R.14DistrictsDevHrs3","v":0},{"$f":"Table3[[#This Row],[Hrs Rank]]","v":0},0,0,null,null,"?","?"]
["AQ","LROpnBrn","14InterGvmt","Special Districts","Development",{"$f":"R.14DistrictsDevName4","v":" "},{"$f":"R.14DistrictsDevHrs4","v":0},{"$f":"Table3[[#This Row],[Hrs Rank]]","v":0},0,0,null,null,"?","?"]
["AQ","LROpnBrn","14InterGvmt","Special Districts","Implementation",{"$f":"R.14DistrictsImpName1","v":0},{"$f":"R.14DistrictsImpHrs1","v":0},{"$f":"Table3[[#This Row],[Hrs Rank]]","v":0},0,0,null,null,"?","?"]
["AQ","LROpnBrn","14InterGvmt","Special Districts","Implementation",{"$f":"R.14DistrictsImpName2","v":" "},{"$f":"R.14DistrictsImpHrs2","v":0},{"$f":"Table3[[#This Row],[Hrs Rank]]","v":0},0,0,null,null,"?","?"]
[{"$f":"R.1Division","v":"AQ"},{"$f":"R.1CodeName","v":"LROpnBrn"},"14InterGvmt","Special Districts","Implementation",{"$f":"R.14DistrictsImpName3","v":" "},{"$f":"R.14DistrictsImpHrs3","v":0},{"$f":"Table3[[#This Row],[Hrs Rank]]","v":0},0,0,null,null,"?","?"]
["AQ","LROpnBrn","14InterGvmt","Special Districts","Implementation",{"$f":"R.14DistrictsImpName4","v":" "},{"$f":"R.14DistrictsImpHrs4","v":0},{"$f":"Table3[[#This Row],[Hrs Rank]]","v":0},0,0,null,null,"?","?"]
["AQ","LROpnBrn","14InterGvmt","Tribal Gvmt. Relations","Development",{"$f":"R.14TribeDevName1","v":0},{"$f":"R.14TribeDevHrs1","v":0},{"$f":"Table3[[#This Row],[Hrs Rank]]","v":0},0,0,null,null,"?","?"]
["AQ","LROpnBrn","14InterGvmt","Tribal Gvmt. Relations","Development",{"$f":"R.14TribeDevName2","v":" "},{"$f":"R.14TribeDevHrs2","v":0},{"$f":"Table3[[#This Row],[Hrs Rank]]","v":0},0,0,null,null,"?","?"]
["AQ","LROpnBrn","14InterGvmt","Tribal Gvmt. Relations","Development",{"$f":"R.14TribeDevName3","v":" "},{"$f":"R.14TribeDevHrs3","v":0},{"$f":"Table3[[#This Row],[Hrs Rank]]","v":0},{"$f":"IF(ISNA(VLOOKUP($H259,R.VL_DEQResourceHours,2,FALSE)),0,VLOOKUP($H259,R.VL_DEQResourceHours,2,FALSE))","v":0},{"$f":"IF(ISNA(VLOOKUP($H259,R.VL_DEQResourceHours,3,FALSE)),0,VLOOKUP($H259,R.VL_DEQResourceHours,3,FALSE))","v":0},null,null,"?","?"]
["AQ","LROpnBrn","14InterGvmt","Tribal Gvmt. Relations","Development",{"$f":"R.14TribeDevName4","v":" "},{"$f":"R.14TribeDevHrs4","v":0},{"$f":"Table3[[#This Row],[Hrs Rank]]","v":0},0,0,null,null,"?","?"]
["AQ","LROpnBrn","14InterGvmt","Tribal Gvmt. Relations","Implementation",{"$f":"R.14TribeImpName1","v":0},{"$f":"R.14TribeImpHrs1","v":0},{"$f":"Table3[[#This Row],[Hrs Rank]]","v":0},0,0,null,null,"?","?"]
["AQ","LROpnBrn","14InterGvmt","Tribal Gvmt. Relations","Implementation",{"$f":"R.14TribeImpName2","v":" "},{"$f":"R.14TribeImpHrs2","v":0},{"$f":"Table3[[#This Row],[Hrs Rank]]","v":0},0,0,null,null,"?","?"]
["AQ","LROpnBrn","14InterGvmt","Tribal Gvmt. Relations","Implementation",{"$f":"R.14TribeImpName3","v":" "},{"$f":"R.14TribeImpHrs3","v":0},{"$f":"Table3[[#This Row],[Hrs Rank]]","v":0},0,0,null,null,"?","?"]
["AQ","LROpnBrn","14InterGvmt","Tribal Gvmt. Relations","Implementation",{"$f":"R.14TribeImpName4","v":" "},{"$f":"R.14TribeImpHrs4","v":0},{"$f":"Table3[[#This Row],[Hrs Rank]]","v":0},0,0,null,null,"?","?"]
["AQ","LROpnBrn","15Custom",{"$f":"'15CustomParticipants'!D$9","v":"Enter custom role 1"},"Development",{"$f":"R.3PAname","v":"PA name"},null,{"$f":"Table3[[#This Row],[Hrs Rank]]","v":0},0,0,null,null,"?","?"]
["AQ","LROpnBrn","15Custom",{"$f":"'15CustomParticipants'!D$9","v":"Enter custom role 1"},"Development","PA name",null,{"$f":"Table3[[#This Row],[Hrs Rank]]","v":0},0,0,null,null,"?","?"]
["AQ","LROpnBrn","15Custom",{"$f":"'15CustomParticipants'!D$9","v":"Enter custom role 1"},"Development","PA name",null,{"$f":"Table3[[#This Row],[Hrs Rank]]","v":0},0,0,null,null,"?","?"]
["AQ","LROpnBrn","15Custom",{"$f":"'15CustomParticipants'!D$9","v":"Enter custom role 1"},"Development","PA name",null,{"$f":"Table3[[#This Row],[Hrs Rank]]","v":0},0,0,null,null,"?","?"]
["AQ","LROpnBrn","15Custom",{"$f":"'15CustomParticipants'!D$9","v":"Enter custom role 1"},"Implementation","PA name",null,{"$f":"Table3[[#This Row],[Hrs Rank]]","v":0},0,0,null,null,"?","?"]
["AQ","LROpnBrn","15Custom",{"$f":"'15CustomParticipants'!D$9","v":"Enter custom role 1"},"Implementation","PA name",null,{"$f":"Table3[[#This Row],[Hrs Rank]]","v":0},0,0,null,null,"?","?"]
["AQ","LROpnBrn","15Custom",{"$f":"'15CustomParticipants'!D$9","v":"Enter custom role 1"},"Implementation","PA name",null,{"$f":"Table3[[#This Row],[Hrs Rank]]","v":0},0,0,null,null,"?","?"]
["AQ","LROpnBrn","15Custom",{"$f":"'15CustomParticipants'!D$9","v":"Enter custom role 1"},"Implementation","PA name",null,{"$f":"Table3[[#This Row],[Hrs Rank]]","v":0},0,0,null,null,"?","?"]
["AQ","LROpnBrn","15Custom",{"$f":"'15CustomParticipants'!D$25","v":"Enter custom role 2"},"Development","PA name",null,{"$f":"Table3[[#This Row],[Hrs Rank]]","v":0},0,0,null,null,"?","?"]
["AQ","LROpnBrn","15Custom",{"$f":"'15CustomParticipants'!D$25","v":"Enter custom role 2"},"Development","PA name",null,{"$f":"Table3[[#This Row],[Hrs Rank]]","v":0},0,0,null,null,"?","?"]
["AQ","LROpnBrn","15Custom",{"$f":"'15CustomParticipants'!D$25","v":"Enter custom role 2"},"Development","PA name",null,{"$f":"Table3[[#This Row],[Hrs Rank]]","v":0},0,0,null,null,"?","?"]
["AQ","LROpnBrn","15Custom",{"$f":"'15CustomParticipants'!D$25","v":"Enter custom role 2"},"Development","PA name",null,{"$f":"Table3[[#This Row],[Hrs Rank]]","v":0},0,0,null,null,"?","?"]
["AQ","LROpnBrn","15Custom",{"$f":"'15CustomParticipants'!D$25","v":"Enter custom role 2"},"Implementation","PA name",null,{"$f":"Table3[[#This Row],[Hrs Rank]]","v":0},0,0,null,null,"?","?"]
["AQ","LROpnBrn","15Custom",{"$f":"'15CustomParticipants'!D$25","v":"Enter custom role 2"},"Implementation","PA name",null,{"$f":"Table3[[#This Row],[Hrs Rank]]","v":0},0,0,null,null,"?","?"]
["AQ","LROpnBrn","15Custom",{"$f":"'15CustomParticipants'!D$25","v":"Enter custom role 2"},"Implementation","PA name",null,{"$f":"Table3[[#This Row],[Hrs Rank]]","v":0},0,0,null,null,"?","?"]
["AQ","LROpnBrn","15Custom",{"$f":"'15CustomParticipants'!D$25","v":"Enter custom role 2"},"Implementation","PA name",null,{"$f":"Table3[[#This Row],[Hrs Rank]]","v":0},0,0,null,null,"?","?"]
["AQ","LROpnBrn","15Custom",{"$f":"'15CustomParticipants'!D$41","v":"Enter custom role 3"},"Development",{"$f":"R.3PAname","v":"PA name"},null,{"$f":"Table3[[#This Row],[Hrs Rank]]","v":0},0,0,null,null,"?","?"]
["AQ","LROpnBrn","15Custom",{"$f":"'15CustomParticipants'!D$41","v":"Enter custom role 3"},"Development","PA name",null,{"$f":"Table3[[#This Row],[Hrs Rank]]","v":0},0,0,null,null,"?","?"]
["AQ","LROpnBrn","15Custom",{"$f":"'15CustomParticipants'!D$41","v":"Enter custom role 3"},"Development","PA name",null,{"$f":"Table3[[#This Row],[Hrs Rank]]","v":0},0,0,null,null,"?","?"]
["AQ","LROpnBrn","15Custom",{"$f":"'15CustomParticipants'!D$41","v":"Enter custom role 3"},"Development","PA name",null,{"$f":"Table3[[#This Row],[Hrs Rank]]","v":0},0,0,null,null,"?","?"]
["AQ","LROpnBrn","15Custom",{"$f":"'15CustomParticipants'!D$41","v":"Enter custom role 3"},"Implementation","PA name",null,{"$f":"Table3[[#This Row],[Hrs Rank]]","v":0},0,0,null,null,"?","?"]
["AQ","LROpnBrn","15Custom",{"$f":"'15CustomParticipants'!D$41","v":"Enter custom role 3"},"Implementation","PA name",null,{"$f":"Table3[[#This Row],[Hrs Rank]]","v":0},0,0,null,null,"?","?"]
[{"$f":"R.1Division","v":"AQ"},{"$f":"R.1CodeName","v":"LROpnBrn"},"15Custom",{"$f":"'15CustomParticipants'!D$41","v":"Enter custom role 3"},"Implementation","PA name",null,{"$f":"Table3[[#This Row],[Hrs Rank]]","v":0},0,0,null,null,"?","?"]
["AQ","LROpnBrn","15Custom",{"$f":"'15CustomParticipants'!D$41","v":"Enter custom role 3"},"Implementation","PA name",null,{"$f":"Table3[[#This Row],[Hrs Rank]]","v":0},0,0,null,null,"?","?"]
["AQ","LROpnBrn","15Custom",{"$f":"'15CustomParticipants'!D$57","v":"Enter custom role 4"},"Development","PA name",null,{"$f":"Table3[[#This Row],[Hrs Rank]]","v":0},0,0,null,null,"?","?"]
["AQ","LROpnBrn","15Custom",{"$f":"'15CustomParticipants'!D$57","v":"Enter custom role 4"},"Development","PA name",null,{"$f":"Table3[[#This Row],[Hrs Rank]]","v":0},0,0,null,null,"?","?"]
["AQ","LROpnBrn","15Custom",{"$f":"'15CustomParticipants'!D$57","v":"Enter custom role 4"},"Development","PA name",null,{"$f":"Table3[[#This Row],[Hrs Rank]]","v":0},0,0,null,null,"?","?"]
["AQ","LROpnBrn","15Custom",{"$f":"'15CustomParticipants'!D$57","v":"Enter custom role 4"},"Development","PA name",null,{"$f":"Table3[[#This Row],[Hrs Rank]]","v":0},0,0,null,null,"?","?"]
["AQ","LROpnBrn","15Custom",{"$f":"'15CustomParticipants'!D$57","v":"Enter custom role 4"},"Implementation","PA name",null,{"$f":"Table3[[#This Row],[Hrs Rank]]","v":0},0,0,null,null,"?","?"]
["AQ","LROpnBrn","15Custom",{"$f":"'15CustomParticipants'!D$57","v":"Enter custom role 4"},"Implementation","PA name",null,{"$f":"Table3[[#This Row],[Hrs Rank]]","v":0},0,0,null,null,"?","?"]
["AQ","LROpnBrn","15Custom",{"$f":"'15CustomParticipants'!D$57","v":"Enter custom role 4"},"Implementation","PA name",null,{"$f":"Table3[[#This Row],[Hrs Rank]]","v":0},0,0,null,null,"?","?"]
["AQ","LROpnBrn","15Custom",{"$f":"'15CustomParticipants'!D$57","v":"Enter custom role 4"},"Implementation","PA name",null,{"$f":"Table3[[#This Row],[Hrs Rank]]","v":0},0,0,null,null,"?","?"]

{"sheet":"7Regions","index":11,"n_rows":59,"n_cols":22,"rows_kept":59,"cut":false,"hidden":false,"merged":[[1,4,1,15],[10,3,10,15],[11,5,11,14],[17,3,17,15],[2,12,2,15],[3,5,3,11],[3,12,3,15],[4,5,4,11],[4,12,4,15],[6,3,6,15],[55,4,55,15],[23,4,23,15],[57,3,57,15],[26,3,26,15],[33,3,33,15],[39,4,39,15],[42,3,42,15],[43,5,43,14],[49,3,49,15],[56,3,56,8]]}
["⧀ Go to Content"]
["on Q-net",null,7,"Regions",{"$f":"R.1MediaAndLongName","v":"AQ LRAPA - Open Burning"},null,null,null,null,null,null,null,null,null,null,null,null,null,null,null,null," "]
[null,null,null,null,null,null,null,null,null,null,null,null,"Estimated range",null,null,null,null,null,{"$f":"\"R.\"&$C$2&\"StaffCount\"","v":"R.7StaffCount"},{"$f":"\"R.\"&$C$2&\"LowHrs\"","v":"R.7LowHrs"},{"$f":"\"R.\"&$C$2&\"HighHrs\"","v":"R.7HighHrs"}]
[null,null,null,"Number of staff involved",{"$f":"S4","v":0},"Hours",null,null,null,null,null,null,{"$f":"S5","v":"0"},null,null,null,null,null,{"$f":"COUNTIFS(S13:S55,\">0\")","v":0},{"$f":"SUM(T13:T55)","v":0},{"$f":"SUM(U13:U55)","v":0}]
[null,null,null,"DEQ 2012 average hourly  $",{"$f":"R.AvgHrDEQCost","v":58},"Staff cost ",null,null,null,null,null,null,{"$f":"S6","v":"$0"},null,null,null,null,null,{"$f":"IF(R.7StaffCount=0,\"0\",IF(R.7LowHrs=0,\"0-\"&TEXT(R.7HighHrs,\"#,###\"),TEXT(R.7LowHrs,\"#,###\")&\"-\"&TEXT(R.7HighHrs,\"#,###\")))","v":"0"},{"$f":"\"R.\"&$C$2&\"LowDollars\"","v":"R.7LowDollars"},{"$f":"\"R.\"&$C$2&\"HighDollars\"","v":"R.7HighDollars"}]
[null,null,null," ",null,null,null,null,null,null,null,null,null,null,null,null,null,null,{"$f":"IF(R.7StaffCount=0,\"$0\",IF(R.7LowDollars=0,\"$0-\"&TEXT(R.7HighDollars,\"#,###\"),TEXT(R.7LowDollars,\"$#,###\")&\"-\"&TEXT(R.7HighDollars,\"#,###\")))","v":"$0"},{"$f":"T4*E5","v":0},{"$f":"U4*E5","v":0}]
[null,null,null,"For estimated hour ranges that are 170 hours or more, talk with the manager about:\n   • The estimate,\n   • The group's capacity to complete the potential work, and\n   • The estimated quarterly schedule. \nIf the EMT approves the proposal on the annual DEQ rulemaking plan, the team would refine this information as they learn more about the proposed rule. The team would involve the regions at the appropriate time. ",null,null,null,null,null,null,null,null,null,null,null,null,null,null,{"$f":"AVERAGEIF(S14:S56,\">0\")","v":{"$error":"#DIV/0!"}}]
[]
["on Q-net",null," ","Eastern Region"]
[null,null,null,"Development"]
[]
[null,null,null,"Name","Select hours","Workload indicator",null,null,null,null,null,null,null,null,null,"Level involved"]
[null,null,null,null,"< 1 hour",1,2,3,4,5,6,7,8,9,10," ",null,null,{"$f":"VLOOKUP($E13,R.VL_DEQResourcesInvolved,2,FALSE)","v":0},{"$f":"VLOOKUP($E13,R.VL_DEQResourcesInvolved,3,FALSE)","v":0},{"$f":"IF(S13=10,T13,VLOOKUP($E13,R.VL_DEQResourcesInvolved,4,FALSE))","v":0},"ï drop down to Select hours/Level involved"]
[null,null,null," ","< 1 hour",1,2,3,4,5,6,7,8,9,10,"STAFF",null,null,{"$f":"VLOOKUP($E14,R.VL_DEQResourcesInvolved,2,FALSE)","v":0},{"$f":"VLOOKUP($E14,R.VL_DEQResourcesInvolved,3,FALSE)","v":0},{"$f":"IF(S14=10,T14,VLOOKUP($E14,R.VL_DEQResourcesInvolved,4,FALSE))","v":0}]
[null,null,null," ","< 1 hour",1,2,3,4,5,6,7,8,9,10,"MANAGER",null,null,{"$f":"VLOOKUP($E15,R.VL_DEQResourcesInvolved,2,FALSE)","v":0},{"$f":"VLOOKUP($E15,R.VL_DEQResourcesInvolved,3,FALSE)","v":0},{"$f":"IF(S15=10,T15,VLOOKUP($E15,R.VL_DEQResourcesInvolved,4,FALSE))","v":0}]
[null,null,null,null,"< 1 hour",1,2,3,4,5,6,7,8,9,10,null,null,null,{"$f":"VLOOKUP($E16,R.VL_DEQResourcesInvolved,2,FALSE)","v":0},{"$f":"VLOOKUP($E16,R.VL_DEQResourcesInvolved,3,FALSE)","v":0},{"$f":"IF(S16=10,T16,VLOOKUP($E16,R.VL_DEQResourcesInvolved,4,FALSE))","v":0}]
[null,null,null,"Implementation"]
[null,null,null,null,null,null,null,null,null,null,null,null,null,null,null,null,null,null," "]
[null,null,null,"Name","Select hours","Workload indicator",null,null,null,null,null,null,null,null,null,"Level involved"]
[null,null,null,null,"< 1 hour",1,2,3,4,5,6,7,8,9,10," ",null,null,{"$f":"VLOOKUP($E20,R.VL_DEQResourcesInvolved,2,FALSE)","v":0},{"$f":"VLOOKUP($E20,R.VL_DEQResourcesInvolved,3,FALSE)","v":0},{"$f":"IF(S20=10,T20,VLOOKUP($E20,R.VL_DEQResourcesInvolved,4,FALSE))","v":0},"ï drop down to Select hours/Level involved"]
[null,null,null,null,"< 1 hour",1,2,3,4,5,6,7,8,9,10,null,null,null,{"$f":"VLOOKUP($E21,R.VL_DEQResourcesInvolved,2,FALSE)","v":0},{"$f":"VLOOKUP($E21,R.VL_DEQResourcesInvolved,3,FALSE)","v":0},{"$f":"IF(S21=10,T21,VLOOKUP($E21,R.VL_DEQResourcesInvolved,4,FALSE))","v":0}]
[null,null,null,null,"< 1 hour",1,2,3,4,5,6,7,8,9,10,null,null,null,{"$f":"VLOOKUP($E22,R.VL_DEQResourcesInvolved,2,FALSE)","v":0},{"$f":"VLOOKUP($E22,R.VL_DEQResourcesInvolved,3,FALSE)","v":0},{"$f":"IF(S22=10,T22,VLOOKUP($E22,R.VL_DEQResourcesInvolved,4,FALSE))","v":0}]
[null,null,null,null,"< 1 hour",1,2,3,4,5,6,7,8,9,10,null,null,null,{"$f":"VLOOKUP($E23,R.VL_DEQResourcesInvolved,2,FALSE)","v":0},{"$f":"VLOOKUP($E23,R.VL_DEQResourcesInvolved,3,FALSE)","v":0},{"$f":"IF(S23=10,T23,VLOOKUP($E23,R.VL_DEQResourcesInvolved,4,FALSE))","v":0}]
[]
["on Q-net",null,null,"Western Region "]
[null,null,null,"Development"]
[null,null,null,null,null,null,null,null,null,null,null,null,null,null,null,null,null,null," "]
[null,null,null,"Name","Select hours","Workload indicator",null,null,null,null,null,null,null,null,null,"Level involved"]
[null,null,null,null,"< 1 hour",1,2,3,4,5,6,7,8,9,10," ",null,null,{"$f":"VLOOKUP($E29,R.VL_DEQResourcesInvolved,2,FALSE)","v":0},{"$f":"VLOOKUP($E29,R.VL_DEQResourcesInvolved,3,FALSE)","v":0},{"$f":"IF(S29=10,T29,VLOOKUP($E29,R.VL_DEQResourcesInvolved,4,FALSE))","v":0},"ï drop down to Select hours/Level involved"]
[null,null,null,null,"< 1 hour",1,2,3,4,5,6,7,8,9,10,null,null,null,{"$f":"VLOOKUP($E30,R.VL_DEQResourcesInvolved,2,FALSE)","v":0},{"$f":"VLOOKUP($E30,R.VL_DEQResourcesInvolved,3,FALSE)","v":0},{"$f":"IF(S30=10,T30,VLOOKUP($E30,R.VL_DEQResourcesInvolved,4,FALSE))","v":0}]
[null,null,null,null,"< 1 hour",1,2,3,4,5,6,7,8,9,10,null,null,null,{"$f":"VLOOKUP($E31,R.VL_DEQResourcesInvolved,2,FALSE)","v":0},{"$f":"VLOOKUP($E31,R.VL_DEQResourcesInvolved,3,FALSE)","v":0},{"$f":"IF(S31=10,T31,VLOOKUP($E31,R.VL_DEQResourcesInvolved,4,FALSE))","v":0}]
[null,null,null,null,"< 1 hour",1,2,3,4,5,6,7,8,9,10," ",null,null,{"$f":"VLOOKUP($E32,R.VL_DEQResourcesInvolved,2,FALSE)","v":0},{"$f":"VLOOKUP($E32,R.VL_DEQResourcesInvolved,3,FALSE)","v":0},{"$f":"IF(S32=10,T32,VLOOKUP($E32,R.VL_DEQResourcesInvolved,4,FALSE))","v":0}]
[null,null,null,"Implementation"]
[null,null,null,null,null,null,null,null,null,null,null,null,null,null,null,null,null,null," "]
[null,null,null,"Name","Select hours","Workload indicator",null,null,null,null,null,null,null,null,null,"Level involved"]
[null,null,null," ","< 1 hour",1,2,3,4,5,6,7,8,9,10," ",null,null,{"$f":"VLOOKUP($E36,R.VL_DEQResourcesInvolved,2,FALSE)","v":0},{"$f":"VLOOKUP($E36,R.VL_DEQResourcesInvolved,3,FALSE)","v":0},{"$f":"IF(S36=10,T36,VLOOKUP($E36,R.VL_DEQResourcesInvolved,4,FALSE))","v":0},"ï drop down to Select hours/Level involved"]
[null,null,null,null,"< 1 hour",1,2,3,4,5,6,7,8,9,10,null,null,null,{"$f":"VLOOKUP($E37,R.VL_DEQResourcesInvolved,2,FALSE)","v":0},{"$f":"VLOOKUP($E37,R.VL_DEQResourcesInvolved,3,FALSE)","v":0},{"$f":"IF(S37=10,T37,VLOOKUP($E37,R.VL_DEQResourcesInvolved,4,FALSE))","v":0}]
[null,null,null,null,"< 1 hour",1,2,3,4,5,6,7,8,9,10,null,null,null,{"$f":"VLOOKUP($E38,R.VL_DEQResourcesInvolved,2,FALSE)","v":0},{"$f":"VLOOKUP($E38,R.VL_DEQResourcesInvolved,3,FALSE)","v":0},{"$f":"IF(S38=10,T38,VLOOKUP($E38,R.VL_DEQResourcesInvolved,4,FALSE))","v":0}]
[null,null,null,null,"< 1 hour",1,2,3,4,5,6,7,8,9,10,null,null,null,{"$f":"VLOOKUP($E39,R.VL_DEQResourcesInvolved,2,FALSE)","v":0},{"$f":"VLOOKUP($E39,R.VL_DEQResourcesInvolved,3,FALSE)","v":0},{"$f":"IF(S39=10,T39,VLOOKUP($E39,R.VL_DEQResourcesInvolved,4,FALSE))","v":0}]
[]
["on Q-net",null," ","Northwest Region",null,null,null,null,null,null,null,null,null,null,null,null,null,null,null," "]
[null,null,null,"Development"]
[null,null,null," ",null,null,null,null,null,null,null,null,null,null,null,null,null,null," "]
[null,null,null,"Name","Select hours","Workload indicator",null,null,null,null,null,null,null,null,null,"Level involved"]
[null,null,null," ","< 1 hour",1,2,3,4,5,6,7,8,9,10," ",null,null,{"$f":"VLOOKUP($E45,R.VL_DEQResourcesInvolved,2,FALSE)","v":0},{"$f":"VLOOKUP($E45,R.VL_DEQResourcesInvolved,3,FALSE)","v":0},{"$f":"IF(S45=10,T45,VLOOKUP($E45,R.VL_DEQResourcesInvolved,4,FALSE))","v":0},"ï drop down to Select hours/Level involved"]
[null,null,null," ","< 1 hour",1,2,3,4,5,6,7,8,9,10," ",null,null,{"$f":"VLOOKUP($E46,R.VL_DEQResourcesInvolved,2,FALSE)","v":0},{"$f":"VLOOKUP($E46,R.VL_DEQResourcesInvolved,3,FALSE)","v":0},{"$f":"IF(S46=10,T46,VLOOKUP($E46,R.VL_DEQResourcesInvolved,4,FALSE))","v":0}]
[null,null,null," ","< 1 hour",1,2,3,4,5,6,7,8,9,10," ",null,null,{"$f":"VLOOKUP($E47,R.VL_DEQResourcesInvolved,2,FALSE)","v":0},{"$f":"VLOOKUP($E47,R.VL_DEQResourcesInvolved,3,FALSE)","v":0},{"$f":"IF(S47=10,T47,VLOOKUP($E47,R.VL_DEQResourcesInvolved,4,FALSE))","v":0}]
[null,null,null," ","< 1 hour",1,2,3,4,5,6,7,8,9,10," ",null,null,{"$f":"VLOOKUP($E48,R.VL_DEQResourcesInvolved,2,FALSE)","v":0},{"$f":"VLOOKUP($E48,R.VL_DEQResourcesInvolved,3,FALSE)","v":0},{"$f":"IF(S48=10,T48,VLOOKUP($E48,R.VL_DEQResourcesInvolved,4,FALSE))","v":0}]
[null,null,null,"Implementation"]
[null,null,null," ",null,null,null,null,null,null,null,null,null,null,null,null,null,null," "]
[null,null,null,"Name","Select hours","Workload indicator",null,null,null,null,null,null,null,null,null,"Level involved"]
[null,null,null," ","< 1 hour",1,2,3,4,5,6,7,8,9,10," ",null,null,{"$f":"VLOOKUP($E52,R.VL_DEQResourcesInvolved,2,FALSE)","v":0},{"$f":"VLOOKUP($E52,R.VL_DEQResourcesInvolved,3,FALSE)","v":0},{"$f":"IF(S52=10,T52,VLOOKUP($E52,R.VL_DEQResourcesInvolved,4,FALSE))","v":0},"ï drop down to Select hours/Level involved"]
[null,null,null," ","< 1 hour",1,2,3,4,5,6,7,8,9,10," ",null,null,{"$f":"VLOOKUP($E53,R.VL_DEQResourcesInvolved,2,FALSE)","v":0},{"$f":"VLOOKUP($E53,R.VL_DEQResourcesInvolved,3,FALSE)","v":0},{"$f":"IF(S53=10,T53,VLOOKUP($E53,R.VL_DEQResourcesInvolved,4,FALSE))","v":0}]
[null,null,null," ","< 1 hour",1,2,3,4,5,6,7,8,9,10," ",null,null,{"$f":"VLOOKUP($E54,R.VL_DEQResourcesInvolved,2,FALSE)","v":0},{"$f":"VLOOKUP($E54,R.VL_DEQResourcesInvolved,3,FALSE)","v":0},{"$f":"IF(S54=10,T54,VLOOKUP($E54,R.VL_DEQResourcesInvolved,4,FALSE))","v":0}]
[null,null,null," ","< 1 hour",1,2,3,4,5,6,7,8,9,10," ",null,null,{"$f":"VLOOKUP($E55,R.VL_DEQResourcesInvolved,2,FALSE)","v":0},{"$f":"VLOOKUP($E55,R.VL_DEQResourcesInvolved,3,FALSE)","v":0},{"$f":"IF(S55=10,T55,VLOOKUP($E55,R.VL_DEQResourcesInvolved,4,FALSE))","v":0}]
[]
[null,null,null,{"$f":"\"Please suggest process improvements to the \"&D2&\" worksheet.\"","v":"Please suggest process improvements to the Regions worksheet."}]
[]
["Go to Top"]

{"sheet":"8FinancialServices","index":12,"n_rows":61,"n_cols":22,"rows_kept":61,"cut":false,"hidden":false,"merged":[[57,4,57,15],[35,3,35,15],[58,3,58,6],[9,18,9,20],[5,3,5,15],[8,3,8,15],[7,3,7,15],[6,3,6,15],[59,3,59,15],[1,4,1,15],[51,3,51,15],[44,3,44,15],[45,5,45,14],[3,12,3,15],[4,12,4,15],[3,5,3,11],[4,5,4,11],[2,12,2,15],[13,5,13,14],[41,4,41,15],[28,3,28,15],[19,3,19,15],[12,3,12,15],[25,4,25,15]]}
["⧀ Go to Content"]
[null,null,8,"Financial Services",{"$f":"R.1MediaAndLongName","v":"AQ LRAPA - Open Burning"},null,null,null,null,null,null,null,null,null,null,null,null,null,null,null,null," "]
[null,null,null,null,null,null,null,null,null,null,null,null,"Estimated range",null,null,null,null,null,{"$f":"\"R.\"&$C$2&\"StaffCount\"","v":"R.8StaffCount"},{"$f":"\"R.\"&$C$2&\"LowHrs\"","v":"R.8LowHrs"},{"$f":"\"R.\"&$C$2&\"HighHrs\"","v":"R.8HighHrs"}]
[null,null,null,"Number of staff involved",{"$f":"S4","v":0},"Hours",null,null,null,null,null,null,{"$f":"S5","v":"0"},null,null,null,null,null,{"$f":"COUNTIFS(S15:S57,\">0\")","v":0},{"$f":"SUM(T15:T57)","v":0},{"$f":"SUM(U15:U57)","v":0}]
[null,null,null,"DEQ 2012 average hourly                             $",{"$f":"R.AvgHrDEQCost","v":58},"Staff cost ",null,null,null,null,null,null,{"$f":"S6","v":"$0"},null,null,null,null,null,{"$f":"IF(R.8StaffCount=0,\"0\",IF(R.8LowHrs=0,\"0-\"&TEXT(R.8HighHrs,\"#,###\"),TEXT(R.8LowHrs,\"#,###\")&\"-\"&TEXT(R.8HighHrs,\"#,###\")))","v":"0"},{"$f":"\"R.\"&$C$2&\"LowDollars\"","v":"R.8LowDollars"},{"$f":"\"R.\"&$C$2&\"HighDollars\"","v":"R.8HighDollars"}]
[null,null,null,"\n",null,null,null,null,null,null,null,null,null,null,null,null,null,null,{"$f":"IF(R.8StaffCount=0,\"$0\",IF(R.8LowDollars=0,\"$0-\"&TEXT(R.8HighDollars,\"#,###\"),TEXT(R.8LowDollars,\"$#,###\")&\"-\"&TEXT(R.8HighDollars,\"#,###\")))","v":"$0"},{"$f":"T4*E5","v":0},{"$f":"U4*E5","v":0}]
[null,null,null,"For estimated hour ranges that are 170 hours or more, talk with the Financial Services Manager about:\n   • The estimate,\n   • The group's capacity to complete the potential work, and\n   • The estimated quarterly schedule. \nIf the EMT approves the proposal on the annual DEQ rulemaking plan, the team would refine this information as they learn more about the proposed rule. The team would involve Financial Services at the appropriate time. ",null,null,null,null,null,null,null,null,null,null,null,null,null,null,{"$f":"AVERAGEIF(S15:S57,\">0\")","v":{"$error":"#DIV/0!"}}]
[null,null,null,"Please describe what you know now about Financial Services capacity."]
[null,null,null,"The work described on this worksheet is part of the person's position description or work agreement."]
[]
["on Q-net",null," ","Budget"]
[null,null,null,"Development"]
[null,null,null,"Review and approve Economic and Fiscal Impact Statement"]
[null,null,null,"Name","Select hours","Workload indicator",null,null,null,null,null,null,null,null,null,"Level involved"]
[null,null,null,"Budget analyst","< 1 hour",1,2,3,4,5,6,7,8,9,10,"STAFF",null,null,{"$f":"VLOOKUP($E15,R.VL_DEQResourcesInvolved,2,FALSE)","v":0},{"$f":"VLOOKUP($E15,R.VL_DEQResourcesInvolved,3,FALSE)","v":0},{"$f":"IF(S15=10,T15,VLOOKUP($E15,R.VL_DEQResourcesInvolved,4,FALSE))","v":0},"ï drop down to Select hours/Level involved"]
[null,null,null," ","< 1 hour",1,2,3,4,5,6,7,8,9,10,null,null,null,{"$f":"VLOOKUP($E16,R.VL_DEQResourcesInvolved,2,FALSE)","v":0},{"$f":"VLOOKUP($E16,R.VL_DEQResourcesInvolved,3,FALSE)","v":0},{"$f":"IF(S16=10,T16,VLOOKUP($E16,R.VL_DEQResourcesInvolved,4,FALSE))","v":0}]
[null,null,null," ","< 1 hour",1,2,3,4,5,6,7,8,9,10," ",null,null,{"$f":"VLOOKUP($E17,R.VL_DEQResourcesInvolved,2,FALSE)","v":0},{"$f":"VLOOKUP($E17,R.VL_DEQResourcesInvolved,3,FALSE)","v":0},{"$f":"IF(S17=10,T17,VLOOKUP($E17,R.VL_DEQResourcesInvolved,4,FALSE))","v":0}]
[null,null,null," ","< 1 hour",1,2,3,4,5,6,7,8,9,10," ",null,null,{"$f":"VLOOKUP($E18,R.VL_DEQResourcesInvolved,2,FALSE)","v":0},{"$f":"VLOOKUP($E18,R.VL_DEQResourcesInvolved,3,FALSE)","v":0},{"$f":"IF(S18=10,T18,VLOOKUP($E18,R.VL_DEQResourcesInvolved,4,FALSE))","v":0}]
[null,null,null,"Implementation"]
[null,null,null,null,null,null,null,null,null,null,null,null,null,null,null,null,null,null," "]
[null,null,null,"Name","Select hours","Workload indicator",null,null,null,null,null,null,null,null,null,"Level involved"]
[null,null,null," ","< 1 hour",1,2,3,4,5,6,7,8,9,10," ",null,null,{"$f":"VLOOKUP($E22,R.VL_DEQResourcesInvolved,2,FALSE)","v":0},{"$f":"VLOOKUP($E22,R.VL_DEQResourcesInvolved,3,FALSE)","v":0},{"$f":"IF(S22=10,T22,VLOOKUP($E22,R.VL_DEQResourcesInvolved,4,FALSE))","v":0},"ï drop down to Select hours/Level involved"]
[null,null,null," ","< 1 hour",1,2,3,4,5,6,7,8,9,10," ",null,null,{"$f":"VLOOKUP($E23,R.VL_DEQResourcesInvolved,2,FALSE)","v":0},{"$f":"VLOOKUP($E23,R.VL_DEQResourcesInvolved,3,FALSE)","v":0},{"$f":"IF(S23=10,T23,VLOOKUP($E23,R.VL_DEQResourcesInvolved,4,FALSE))","v":0}]
[null,null,null," ","< 1 hour",1,2,3,4,5,6,7,8,9,10," ",null,null,{"$f":"VLOOKUP($E24,R.VL_DEQResourcesInvolved,2,FALSE)","v":0},{"$f":"VLOOKUP($E24,R.VL_DEQResourcesInvolved,3,FALSE)","v":0},{"$f":"IF(S24=10,T24,VLOOKUP($E24,R.VL_DEQResourcesInvolved,4,FALSE))","v":0}]
[null,null,null," ","< 1 hour",1,2,3,4,5,6,7,8,9,10," ",null,null,{"$f":"VLOOKUP($E25,R.VL_DEQResourcesInvolved,2,FALSE)","v":0},{"$f":"VLOOKUP($E25,R.VL_DEQResourcesInvolved,3,FALSE)","v":0},{"$f":"IF(S25=10,T25,VLOOKUP($E25,R.VL_DEQResourcesInvolved,4,FALSE))","v":0}]
[]
["on Q-net",null,null,"Accounting"]
[null,null,null,"Development"]
[null,null,null," ",null,null,null,null,null,null,null,null,null,null,null,null,null,null," "]
[null,null,null,"Name","Select hours","Workload indicator",null,null,null,null,null,null,null,null,null,"Level involved"]
[null,null,null," ","< 1 hour",1,2,3,4,5,6,7,8,9,10," ",null,null,{"$f":"VLOOKUP($E31,R.VL_DEQResourcesInvolved,2,FALSE)","v":0},{"$f":"VLOOKUP($E31,R.VL_DEQResourcesInvolved,3,FALSE)","v":0},{"$f":"IF(S31=10,T31,VLOOKUP($E31,R.VL_DEQResourcesInvolved,4,FALSE))","v":0},"ï drop down to Select hours/Level involved"]
[null,null,null," ","< 1 hour",1,2,3,4,5,6,7,8,9,10," ",null,null,{"$f":"VLOOKUP($E32,R.VL_DEQResourcesInvolved,2,FALSE)","v":0},{"$f":"VLOOKUP($E32,R.VL_DEQResourcesInvolved,3,FALSE)","v":0},{"$f":"IF(S32=10,T32,VLOOKUP($E32,R.VL_DEQResourcesInvolved,4,FALSE))","v":0}]
[null,null,null," ","< 1 hour",1,2,3,4,5,6,7,8,9,10," ",null,null,{"$f":"VLOOKUP($E33,R.VL_DEQResourcesInvolved,2,FALSE)","v":0},{"$f":"VLOOKUP($E33,R.VL_DEQResourcesInvolved,3,FALSE)","v":0},{"$f":"IF(S33=10,T33,VLOOKUP($E33,R.VL_DEQResourcesInvolved,4,FALSE))","v":0}]
[null,null,null," ","< 1 hour",1,2,3,4,5,6,7,8,9,10," ",null,null,{"$f":"VLOOKUP($E34,R.VL_DEQResourcesInvolved,2,FALSE)","v":0},{"$f":"VLOOKUP($E34,R.VL_DEQResourcesInvolved,3,FALSE)","v":0},{"$f":"IF(S34=10,T34,VLOOKUP($E34,R.VL_DEQResourcesInvolved,4,FALSE))","v":0}]
[null,null,null,"Implementation"]
[null,null,null,null,null,null,null,null,null,null,null,null,null,null,null,null,null,null," "]
[null,null,null,"Name","Select hours","Workload indicator",null,null,null,null,null,null,null,null,null,"Level involved"]
[null,null,null,null,"< 1 hour",1,2,3,4,5,6,7,8,9,10,null,null,null,{"$f":"VLOOKUP($E38,R.VL_DEQResourcesInvolved,2,FALSE)","v":0},{"$f":"VLOOKUP($E38,R.VL_DEQResourcesInvolved,3,FALSE)","v":0},{"$f":"IF(S38=10,T38,VLOOKUP($E38,R.VL_DEQResourcesInvolved,4,FALSE))","v":0},"ï drop down to Select hours/Level involved"]
[null,null,null," ","< 1 hour",1,2,3,4,5,6,7,8,9,10," ",null,null,{"$f":"VLOOKUP($E39,R.VL_DEQResourcesInvolved,2,FALSE)","v":0},{"$f":"VLOOKUP($E39,R.VL_DEQResourcesInvolved,3,FALSE)","v":0},{"$f":"IF(S39=10,T39,VLOOKUP($E39,R.VL_DEQResourcesInvolved,4,FALSE))","v":0}]
[null,null,null," ","< 1 hour",1,2,3,4,5,6,7,8,9,10," ",null,null,{"$f":"VLOOKUP($E40,R.VL_DEQResourcesInvolved,2,FALSE)","v":0},{"$f":"VLOOKUP($E40,R.VL_DEQResourcesInvolved,3,FALSE)","v":0},{"$f":"IF(S40=10,T40,VLOOKUP($E40,R.VL_DEQResourcesInvolved,4,FALSE))","v":0}]
[null,null,null," ","< 1 hour",1,2,3,4,5,6,7,8,9,10," ",null,null,{"$f":"VLOOKUP($E41,R.VL_DEQResourcesInvolved,2,FALSE)","v":0},{"$f":"VLOOKUP($E41,R.VL_DEQResourcesInvolved,3,FALSE)","v":0},{"$f":"IF(S41=10,T41,VLOOKUP($E41,R.VL_DEQResourcesInvolved,4,FALSE))","v":0}]
[]
["on Q-net",null," ","Contracts",null,null,null,null,null,null,null,null,null,null,null,null,null,null,null," "]
[null,null,null,"Development"]
[null,null,null,null,null,null,null,null,null,null,null,null,null,null,null,null,null,null," "]
[null,null,null,"Name","Select hours","Workload indicator",null,null,null,null,null,null,null,null,null,"Level involved"]
[null,null,null,null,"< 1 hour",1,2,3,4,5,6,7,8,9,10,null,null,null,{"$f":"VLOOKUP($E47,R.VL_DEQResourcesInvolved,2,FALSE)","v":0},{"$f":"VLOOKUP($E47,R.VL_DEQResourcesInvolved,3,FALSE)","v":0},{"$f":"IF(S47=10,T47,VLOOKUP($E47,R.VL_DEQResourcesInvolved,4,FALSE))","v":0},"ï drop down to Select hours/Level involved"]
[null,null,null," ","< 1 hour",1,2,3,4,5,6,7,8,9,10," ",null,null,{"$f":"VLOOKUP($E48,R.VL_DEQResourcesInvolved,2,FALSE)","v":0},{"$f":"VLOOKUP($E48,R.VL_DEQResourcesInvolved,3,FALSE)","v":0},{"$f":"IF(S48=10,T48,VLOOKUP($E48,R.VL_DEQResourcesInvolved,4,FALSE))","v":0}]
[null,null,null," ","< 1 hour",1,2,3,4,5,6,7,8,9,10," ",null,null,{"$f":"VLOOKUP($E49,R.VL_DEQResourcesInvolved,2,FALSE)","v":0},{"$f":"VLOOKUP($E49,R.VL_DEQResourcesInvolved,3,FALSE)","v":0},{"$f":"IF(S49=10,T49,VLOOKUP($E49,R.VL_DEQResourcesInvolved,4,FALSE))","v":0}]
[null,null,null," ","< 1 hour",1,2,3,4,5,6,7,8,9,10," ",null,null,{"$f":"VLOOKUP($E50,R.VL_DEQResourcesInvolved,2,FALSE)","v":0},{"$f":"VLOOKUP($E50,R.VL_DEQResourcesInvolved,3,FALSE)","v":0},{"$f":"IF(S50=10,T50,VLOOKUP($E50,R.VL_DEQResourcesInvolved,4,FALSE))","v":0}]
[null,null,null,"Implementation"]
[null,null,null,null,null,null,null,null,null,null,null,null,null,null,null,null,null,null," "]
[null,null,null,"Name","Select hours","Workload indicator",null,null,null,null,null,null,null,null,null,"Level involved"]
[null,null,null,null,"< 1 hour",1,2,3,4,5,6,7,8,9,10,null,null,null,{"$f":"VLOOKUP($E54,R.VL_DEQResourcesInvolved,2,FALSE)","v":0},{"$f":"VLOOKUP($E54,R.VL_DEQResourcesInvolved,3,FALSE)","v":0},{"$f":"IF(S54=10,T54,VLOOKUP($E54,R.VL_DEQResourcesInvolved,4,FALSE))","v":0},"ï drop down to Select hours/Level involved"]
[null,null,null,null,"< 1 hour",1,2,3,4,5,6,7,8,9,10,null,null,null,{"$f":"VLOOKUP($E55,R.VL_DEQResourcesInvolved,2,FALSE)","v":0},{"$f":"VLOOKUP($E55,R.VL_DEQResourcesInvolved,3,FALSE)","v":0},{"$f":"IF(S55=10,T55,VLOOKUP($E55,R.VL_DEQResourcesInvolved,4,FALSE))","v":0}]
[null,null,null," ","< 1 hour",1,2,3,4,5,6,7,8,9,10," ",null,null,{"$f":"VLOOKUP($E56,R.VL_DEQResourcesInvolved,2,FALSE)","v":0},{"$f":"VLOOKUP($E56,R.VL_DEQResourcesInvolved,3,FALSE)","v":0},{"$f":"IF(S56=10,T56,VLOOKUP($E56,R.VL_DEQResourcesInvolved,4,FALSE))","v":0}]
[null,null,null," ","< 1 hour",1,2,3,4,5,6,7,8,9,10," ",null,null,{"$f":"VLOOKUP($E57,R.VL_DEQResourcesInvolved,2,FALSE)","v":0},{"$f":"VLOOKUP($E57,R.VL_DEQResourcesInvolved,3,FALSE)","v":0},{"$f":"IF(S57=10,T57,VLOOKUP($E57,R.VL_DEQResourcesInvolved,4,FALSE))","v":0}]
[]
[null,null,null,{"$f":"\"Please suggest process improvements to the \"&D2&\" worksheet.\"","v":"Please suggest process improvements to the Financial Services worksheet."}]
[]
["Go to Top"]

{"sheet":"9OCO","index":13,"n_rows":61,"n_cols":22,"rows_kept":61,"cut":false,"hidden":false,"merged":[[6,3,6,15],[7,3,7,15],[8,3,8,15],[1,4,1,15],[2,12,2,15],[3,5,3,11],[3,12,3,15],[4,5,4,11],[4,12,4,15],[9,18,9,20],[12,3,12,15],[13,5,13,14],[19,3,19,15],[57,4,57,15],[25,4,25,15],[59,3,59,15],[28,3,28,15],[35,3,35,15],[41,4,41,15],[44,3,44,15],[45,5,45,14],[51,3,51,15],[58,3,58,12]]}
["⧀ Go to Content"]
["on Q-net",null,9,"Communications and Outreach",{"$f":"R.1MediaAndLongName","v":"AQ LRAPA - Open Burning"},null,null,null,null,null,null,null,null,null,null,null,null,null,null,null,null," "]
[null,null,null,null,null,null,null,null,null,null,null,null,"Estimated range",null,null,null,null,null,{"$f":"\"R.\"&$C$2&\"StaffCount\"","v":"R.9StaffCount"},{"$f":"\"R.\"&$C$2&\"LowHrs\"","v":"R.9LowHrs"},{"$f":"\"R.\"&$C$2&\"HighHrs\"","v":"R.9HighHrs"}]
[null,null,null,"Number of staff involved",{"$f":"R.9StaffCount","v":0},"Hours",null,null,null,null,null,null,{"$f":"S5","v":"0"},null,null,null,null,null,{"$f":"COUNTIFS(S15:S57,\">0\")","v":0},{"$f":"SUM(T15:T57)","v":0},{"$f":"SUM(U15:U57)","v":0}]
[null,null,null,"DEQ 2012 average hourly                             $",{"$f":"R.AvgHrDEQCost","v":58},"Staff cost ",null,null,null,null,null,null,{"$f":"S6","v":"$0"},null,null,null,null,null,{"$f":"IF(R.9StaffCount=0,\"0\",IF(R.9LowHrs=0,\"0-\"&TEXT(R.9HighHrs,\"#,###\"),TEXT(R.9LowHrs,\"#,###\")&\"-\"&TEXT(R.9HighHrs,\"#,###\")))","v":"0"},{"$f":"\"R.\"&$C$2&\"LowDollars\"","v":"R.9LowDollars"},{"$f":"\"R.\"&$C$2&\"HighDollars\"","v":"R.9HighDollars"}]
[null,null,null," ",null,null,null,null,null,null,null,null,null,null,null,null,null,null,{"$f":"IF(R.9StaffCount=0,\"$0\",IF(R.9LowDollars=0,\"$0-\"&TEXT(R.9HighDollars,\"#,###\"),TEXT(R.9LowDollars,\"$#,###\")&\"-\"&TEXT(R.9HighDollars,\"#,###\")))","v":"$0"},{"$f":"T4*E5","v":0},{"$f":"U4*E5","v":0}]
[null,null,null,"For estimated hour ranges that are 170 hours or more, talk with the manager about:\n   • The estimate,\n   • The group's capacity to complete the potential work, and\n   • The estimated quarterly schedule. \nIf the EMT approves the proposal on the annual DEQ rulemaking plan, the team would refine this information as they learn more about the proposed rule. The team would involve the Office of Communications and Outreach at the appropriate time. ",null,null,null,null,null,null,null,null,null,null,null,null,null,null,{"$f":"AVERAGEIF(S14:S56,\">0\")","v":{"$error":"#DIV/0!"}}]
[null,null,null,"Please describe what you know now about OCO capacity."]
[null,null,null,"The work described on this worksheet is part of the person's position description or work agreement."]
[null,null,null,null,null,null,null,null,null,null,null,null,null,null,null,null,null,null," "]
["on Q-net",null," ","Communications Strategies",null,null,null,null,null,null,null,null,null,null,null,null,null,null,null,null,null,"drop down ⧁"]
[null,null,null,"Development"]
[null,null,null,"Public notice document review and communication plan strategy"]
[null,null,null,"Name","Select hours","Workload indicator",null,null,null,null,null,null,null,null,null,"Level involved"]
[null,null,null,"William Knight","< 1 hour",1,2,3,4,5,6,7,8,9,10,"STAFF",null,null,{"$f":"VLOOKUP($E15,R.VL_DEQResourcesInvolved,2,FALSE)","v":0},{"$f":"VLOOKUP($E15,R.VL_DEQResourcesInvolved,3,FALSE)","v":0},{"$f":"IF(S15=10,T15,VLOOKUP($E15,R.VL_DEQResourcesInvolved,4,FALSE))","v":0},"ï drop down to Select hours/Level involved"]
[null,null,null,"Joanie Stevens-Schwenger (editor)","< 1 hour",1,2,3,4,5,6,7,8,9,10,"MANAGER",null,null,{"$f":"VLOOKUP($E16,R.VL_DEQResourcesInvolved,2,FALSE)","v":0},{"$f":"VLOOKUP($E16,R.VL_DEQResourcesInvolved,3,FALSE)","v":0},{"$f":"IF(S16=10,T16,VLOOKUP($E16,R.VL_DEQResourcesInvolved,4,FALSE))","v":0},"ï drop down to Select hours/Level involved"]
[null,null,null," ","< 1 hour",1,2,3,4,5,6,7,8,9,10,null,null,null,{"$f":"VLOOKUP($E17,R.VL_DEQResourcesInvolved,2,FALSE)","v":0},{"$f":"VLOOKUP($E17,R.VL_DEQResourcesInvolved,3,FALSE)","v":0},{"$f":"IF(S17=10,T17,VLOOKUP($E17,R.VL_DEQResourcesInvolved,4,FALSE))","v":0}]
[null,null,null," ","< 1 hour",1,2,3,4,5,6,7,8,9,10," ",null,null,{"$f":"VLOOKUP($E18,R.VL_DEQResourcesInvolved,2,FALSE)","v":0},{"$f":"VLOOKUP($E18,R.VL_DEQResourcesInvolved,3,FALSE)","v":0},{"$f":"IF(S18=10,T18,VLOOKUP($E18,R.VL_DEQResourcesInvolved,4,FALSE))","v":0}]
[null,null,null,"Implementation"]
[null,null,null,null,null,null,null,null,null,null,null,null,null,null,null,null,null,null," "]
[null,null,null,"Name","Select hours","Workload indicator",null,null,null,null,null,null,null,null,null,"Level involved"]
[null,null,null," ","< 1 hour",1,2,3,4,5,6,7,8,9,10," ",null,null,{"$f":"VLOOKUP($E22,R.VL_DEQResourcesInvolved,2,FALSE)","v":0},{"$f":"VLOOKUP($E22,R.VL_DEQResourcesInvolved,3,FALSE)","v":0},{"$f":"IF(S22=10,T22,VLOOKUP($E22,R.VL_DEQResourcesInvolved,4,FALSE))","v":0},"ï drop down to Select hours/Level involved"]
[null,null,null,null,"< 1 hour",1,2,3,4,5,6,7,8,9,10,null,null,null,{"$f":"VLOOKUP($E23,R.VL_DEQResourcesInvolved,2,FALSE)","v":0},{"$f":"VLOOKUP($E23,R.VL_DEQResourcesInvolved,3,FALSE)","v":0},{"$f":"IF(S23=10,T23,VLOOKUP($E23,R.VL_DEQResourcesInvolved,4,FALSE))","v":0}]
[null,null,null,null,"< 1 hour",1,2,3,4,5,6,7,8,9,10,null,null,null,{"$f":"VLOOKUP($E24,R.VL_DEQResourcesInvolved,2,FALSE)","v":0},{"$f":"VLOOKUP($E24,R.VL_DEQResourcesInvolved,3,FALSE)","v":0},{"$f":"IF(S24=10,T24,VLOOKUP($E24,R.VL_DEQResourcesInvolved,4,FALSE))","v":0}]
[null,null,null," ","< 1 hour",1,2,3,4,5,6,7,8,9,10," ",null,null,{"$f":"VLOOKUP($E25,R.VL_DEQResourcesInvolved,2,FALSE)","v":0},{"$f":"VLOOKUP($E25,R.VL_DEQResourcesInvolved,3,FALSE)","v":0},{"$f":"IF(S25=10,T25,VLOOKUP($E25,R.VL_DEQResourcesInvolved,4,FALSE))","v":0}]
[]
["on Q-net",null,null,"Public Information Representative "]
[null,null,null,"Development"]
[null,null,null,null,null,null,null,null,null,null,null,null,null,null,null,null,null,null," "]
[null,null,null,"Name","Select hours","Workload indicator",null,null,null,null,null,null,null,null,null,"Level involved"]
[null,null,null,null,"< 1 hour",1,2,3,4,5,6,7,8,9,10," ",null,null,{"$f":"VLOOKUP($E31,R.VL_DEQResourcesInvolved,2,FALSE)","v":0},{"$f":"VLOOKUP($E31,R.VL_DEQResourcesInvolved,3,FALSE)","v":0},{"$f":"IF(S31=10,T31,VLOOKUP($E31,R.VL_DEQResourcesInvolved,4,FALSE))","v":0},"ï drop down to Select hours/Level involved"]
[null,null,null," ","< 1 hour",1,2,3,4,5,6,7,8,9,10," ",null,null,{"$f":"VLOOKUP($E32,R.VL_DEQResourcesInvolved,2,FALSE)","v":0},{"$f":"VLOOKUP($E32,R.VL_DEQResourcesInvolved,3,FALSE)","v":0},{"$f":"IF(S32=10,T32,VLOOKUP($E32,R.VL_DEQResourcesInvolved,4,FALSE))","v":0}]
[null,null,null," ","< 1 hour",1,2,3,4,5,6,7,8,9,10," ",null,null,{"$f":"VLOOKUP($E33,R.VL_DEQResourcesInvolved,2,FALSE)","v":0},{"$f":"VLOOKUP($E33,R.VL_DEQResourcesInvolved,3,FALSE)","v":0},{"$f":"IF(S33=10,T33,VLOOKUP($E33,R.VL_DEQResourcesInvolved,4,FALSE))","v":0}]
[null,null,null," ","< 1 hour",1,2,3,4,5,6,7,8,9,10," ",null,null,{"$f":"VLOOKUP($E34,R.VL_DEQResourcesInvolved,2,FALSE)","v":0},{"$f":"VLOOKUP($E34,R.VL_DEQResourcesInvolved,3,FALSE)","v":0},{"$f":"IF(S34=10,T34,VLOOKUP($E34,R.VL_DEQResourcesInvolved,4,FALSE))","v":0}]
[null,null,null,"Implementation"]
[null,null,null,"Potential messaging",null,null,null,null,null,null,null,null,null,null,null,null,null,null," "]
[null,null,null,"Name","Select hours","Workload indicator",null,null,null,null,null,null,null,null,null,"Level involved"]
[null,null,null,"William Knight","< 1 hour",1,2,3,4,5,6,7,8,9,10,"STAFF",null,null,{"$f":"VLOOKUP($E38,R.VL_DEQResourcesInvolved,2,FALSE)","v":0},{"$f":"VLOOKUP($E38,R.VL_DEQResourcesInvolved,3,FALSE)","v":0},{"$f":"IF(S38=10,T38,VLOOKUP($E38,R.VL_DEQResourcesInvolved,4,FALSE))","v":0},"ï drop down to Select hours/Level involved"]
[null,null,null," ","< 1 hour",1,2,3,4,5,6,7,8,9,10," ",null,null,{"$f":"VLOOKUP($E39,R.VL_DEQResourcesInvolved,2,FALSE)","v":0},{"$f":"VLOOKUP($E39,R.VL_DEQResourcesInvolved,3,FALSE)","v":0},{"$f":"IF(S39=10,T39,VLOOKUP($E39,R.VL_DEQResourcesInvolved,4,FALSE))","v":0}]
[null,null,null," ","< 1 hour",1,2,3,4,5,6,7,8,9,10," ",null,null,{"$f":"VLOOKUP($E40,R.VL_DEQResourcesInvolved,2,FALSE)","v":0},{"$f":"VLOOKUP($E40,R.VL_DEQResourcesInvolved,3,FALSE)","v":0},{"$f":"IF(S40=10,T40,VLOOKUP($E40,R.VL_DEQResourcesInvolved,4,FALSE))","v":0}]
[null,null,null," ","< 1 hour",1,2,3,4,5,6,7,8,9,10," ",null,null,{"$f":"VLOOKUP($E41,R.VL_DEQResourcesInvolved,2,FALSE)","v":0},{"$f":"VLOOKUP($E41,R.VL_DEQResourcesInvolved,3,FALSE)","v":0},{"$f":"IF(S41=10,T41,VLOOKUP($E41,R.VL_DEQResourcesInvolved,4,FALSE))","v":0}]
[]
["on Q-net",null," ","Web Communications",null,null,null,null,null,null,null,null,null,null,null,null,null,null,null," "]
[null,null,null,"Development"]
[null,null,null,"Posting program page and required public notice documents to proposed rulemaking page.",null,null,null,null,null,null,null,null,null,null,null,null,null,null," "]
[null,null,null,"Name","Select hours","Workload indicator",null,null,null,null,null,null,null,null,null,"Level involved"]
[null,null,null,"Elle Kozlowski","< 1 hour",1,2,3,4,5,6,7,8,9,10,"STAFF",null,null,{"$f":"VLOOKUP($E47,R.VL_DEQResourcesInvolved,2,FALSE)","v":0},{"$f":"VLOOKUP($E47,R.VL_DEQResourcesInvolved,3,FALSE)","v":0},{"$f":"IF(S47=10,T47,VLOOKUP($E47,R.VL_DEQResourcesInvolved,4,FALSE))","v":0},"ï drop down to Select hours/Level involved"]
[null,null,null," ","< 1 hour",1,2,3,4,5,6,7,8,9,10," ",null,null,{"$f":"VLOOKUP($E48,R.VL_DEQResourcesInvolved,2,FALSE)","v":0},{"$f":"VLOOKUP($E48,R.VL_DEQResourcesInvolved,3,FALSE)","v":0},{"$f":"IF(S48=10,T48,VLOOKUP($E48,R.VL_DEQResourcesInvolved,4,FALSE))","v":0}]
[null,null,null," ","< 1 hour",1,2,3,4,5,6,7,8,9,10," ",null,null,{"$f":"VLOOKUP($E49,R.VL_DEQResourcesInvolved,2,FALSE)","v":0},{"$f":"VLOOKUP($E49,R.VL_DEQResourcesInvolved,3,FALSE)","v":0},{"$f":"IF(S49=10,T49,VLOOKUP($E49,R.VL_DEQResourcesInvolved,4,FALSE))","v":0}]
[null,null,null," ","< 1 hour",1,2,3,4,5,6,7,8,9,10," ",null,null,{"$f":"VLOOKUP($E50,R.VL_DEQResourcesInvolved,2,FALSE)","v":0},{"$f":"VLOOKUP($E50,R.VL_DEQResourcesInvolved,3,FALSE)","v":0},{"$f":"IF(S50=10,T50,VLOOKUP($E50,R.VL_DEQResourcesInvolved,4,FALSE))","v":0}]
[null,null,null,"Implementation"]
[null,null,null,"Post to adopted rules page and archive notices to Q-Net.",null,null,null,null,null,null,null,null,null,null,null,null,null,null," "]
[null,null,null,"Name","Select hours","Workload indicator",null,null,null,null,null,null,null,null,null,"Level involved"]
[null,null,null,"Elle Kozlowski","< 1 hour",1,2,3,4,5,6,7,8,9,10,"STAFF",null,null,{"$f":"VLOOKUP($E54,R.VL_DEQResourcesInvolved,2,FALSE)","v":0},{"$f":"VLOOKUP($E54,R.VL_DEQResourcesInvolved,3,FALSE)","v":0},{"$f":"IF(S54=10,T54,VLOOKUP($E54,R.VL_DEQResourcesInvolved,4,FALSE))","v":0},"ï drop down to Select hours/Level involved"]
[null,null,null," ","< 1 hour",1,2,3,4,5,6,7,8,9,10," ",null,null,{"$f":"VLOOKUP($E55,R.VL_DEQResourcesInvolved,2,FALSE)","v":0},{"$f":"VLOOKUP($E55,R.VL_DEQResourcesInvolved,3,FALSE)","v":0},{"$f":"IF(S55=10,T55,VLOOKUP($E55,R.VL_DEQResourcesInvolved,4,FALSE))","v":0}]
[null,null,null," ","< 1 hour",1,2,3,4,5,6,7,8,9,10," ",null,null,{"$f":"VLOOKUP($E56,R.VL_DEQResourcesInvolved,2,FALSE)","v":0},{"$f":"VLOOKUP($E56,R.VL_DEQResourcesInvolved,3,FALSE)","v":0},{"$f":"IF(S56=10,T56,VLOOKUP($E56,R.VL_DEQResourcesInvolved,4,FALSE))","v":0}]
[null,null,null," ","< 1 hour",1,2,3,4,5,6,7,8,9,10," ",null,null,{"$f":"VLOOKUP($E57,R.VL_DEQResourcesInvolved,2,FALSE)","v":0},{"$f":"VLOOKUP($E57,R.VL_DEQResourcesInvolved,3,FALSE)","v":0},{"$f":"IF(S57=10,T57,VLOOKUP($E57,R.VL_DEQResourcesInvolved,4,FALSE))","v":0}]
[]
[null,null,null,{"$f":"\"Please suggest process improvements to the \"&D2&\" worksheet.\"","v":"Please suggest process improvements to the Communications and Outreach worksheet."}]
[]
["Go to Top"]

{"sheet":"10OrgServices","index":14,"n_rows":77,"n_cols":22,"rows_kept":77,"cut":false,"hidden":false,"merged":[[6,3,6,15],[7,3,7,15],[8,3,8,15],[1,4,1,15],[2,12,2,15],[3,5,3,11],[3,12,3,15],[4,5,4,11],[4,12,4,15],[60,3,60,15],[67,3,67,15],[75,3,75,15],[51,3,51,15],[61,5,61,14],[68,5,68,14],[74,3,74,9],[73,4,73,15],[12,3,12,15],[13,5,13,14],[19,3,19,15],[57,4,57,15],[45,5,45,14],[25,4,25,15],[28,3,28,15],[35,3,35,15],[41,4,41,15],[44,3,44,15]]}
["⧀ Go to Content"]
[null,null,10,"Organizational Services",{"$f":"R.1MediaAndLongName","v":"AQ LRAPA - Open Burning"},null,null,null,null,null,null,null,null,null,null,null,null,null,{"$f":"\"R.\"&$C$2&\"StaffCount\"","v":"R.10StaffCount"},{"$f":"\"R.\"&$C$2&\"LowHrs\"","v":"R.10LowHrs"},{"$f":"\"R.\"&$C$2&\"HighHrs\"","v":"R.10HighHrs"}," "]
[null,null,null,null,null,null,null,null,null,null,null,null,"Estimated range",null,null,null,null,null,{"$f":"COUNTIFS(S15:S73,\">0\")","v":0},{"$f":"SUM(T15:T73)","v":0},{"$f":"SUM(U15:U73)","v":0}]
[null,null,null,"Number of staff involved",{"$f":"S3","v":0},"Hours",null,null,null,null,null,null,{"$f":"S4","v":"0"},null,null,null,null,null,{"$f":"IF(R.10StaffCount=0,\"0\",IF(R.10LowHrs=0,\"0-\"&TEXT(R.10HighHrs,\"#,###\"),TEXT(R.10LowHrs,\"#,###\")&\"-\"&TEXT(R.10HighHrs,\"#,###\")))","v":"0"},{"$f":"\"R.\"&$C$2&\"LowDollars\"","v":"R.10LowDollars"},{"$f":"\"R.\"&$C$2&\"HighDollars\"","v":"R.10HighDollars"}]
[null,null,null,"DEQ 2012 average hourly                                      $",{"$f":"R.AvgHrDEQCost","v":58},"Staff cost ",null,null,null,null,null,null,{"$f":"S5","v":"$0"},null,null,null,null,null,{"$f":"IF(R.10StaffCount=0,\"$0\",IF(R.10LowDollars=0,\"$0-\"&TEXT(R.10HighDollars,\"#,###\"),TEXT(R.10LowDollars,\"$#,###\")&\"-\"&TEXT(R.10HighDollars,\"#,###\")))","v":"$0"},{"$f":"T3*E5","v":0},{"$f":"U3*E5","v":0}]
[null,null,null," "]
[null,null,null,"For estimated hour ranges that are 170 hours or more, talk with the manager about:\n   • The estimate,\n   • The group's capacity to complete the potential work, and\n   • The estimated quarterly schedule. \nIf the EMT approves the proposal on the annual DEQ rulemaking plan, the team would refine this information as they learn more about the proposed rule. The team would involve Organizations Services at the appropriate time. ",null,null,null,null,null,null,null,null,null,null,null,null,null,null,{"$f":"AVERAGEIF(S14:S56,\">0\")","v":{"$error":"#DIV/0!"}}]
[null,null,null,"Please describe what you know now about Organizational Services capacity."]
[null,null,null,"The work described on this worksheet is part of the person's position description or work agreement.",null,null,null,null,null,null,null,null,null,null,null,null,null,null,{"$f":"IFERROR(AVERAGEIF(S17:S59,\">0\"),0)","v":0}]
[]
["on Q-net",null," ","Human Resources"]
[null,null,null,"Development"]
[]
[null,null,null,"Name","Select hours","Workload indicator",null,null,null,null,null,null,null,null,null,"Level involved"]
[null,null,null,null,"< 1 hour",1,2,3,4,5,6,7,8,9,10,null,null,null,{"$f":"VLOOKUP($E15,R.VL_DEQResourcesInvolved,2,FALSE)","v":0},{"$f":"VLOOKUP($E15,R.VL_DEQResourcesInvolved,3,FALSE)","v":0},{"$f":"IF(S15=10,T15,VLOOKUP($E15,R.VL_DEQResourcesInvolved,4,FALSE))","v":0},"ï drop down to Select hours/Level involved"]
[null,null,null,null,"< 1 hour",1,2,3,4,5,6,7,8,9,10,null,null,null,{"$f":"VLOOKUP($E16,R.VL_DEQResourcesInvolved,2,FALSE)","v":0},{"$f":"VLOOKUP($E16,R.VL_DEQResourcesInvolved,3,FALSE)","v":0},{"$f":"IF(S16=10,T16,VLOOKUP($E16,R.VL_DEQResourcesInvolved,4,FALSE))","v":0}]
[null,null,null,null,"< 1 hour",1,2,3,4,5,6,7,8,9,10,null,null,null,{"$f":"VLOOKUP($E17,R.VL_DEQResourcesInvolved,2,FALSE)","v":0},{"$f":"VLOOKUP($E17,R.VL_DEQResourcesInvolved,3,FALSE)","v":0},{"$f":"IF(S17=10,T17,VLOOKUP($E17,R.VL_DEQResourcesInvolved,4,FALSE))","v":0}]
[null,null,null," ","< 1 hour",1,2,3,4,5,6,7,8,9,10," ",null,null,{"$f":"VLOOKUP($E18,R.VL_DEQResourcesInvolved,2,FALSE)","v":0},{"$f":"VLOOKUP($E18,R.VL_DEQResourcesInvolved,3,FALSE)","v":0},{"$f":"IF(S18=10,T18,VLOOKUP($E18,R.VL_DEQResourcesInvolved,4,FALSE))","v":0}]
[null,null,null,"Implementation",null,null,null,null,null,null,null,null,null,null,null,null,null,null," "]
[null,null,null,null,null,null,null,null,null,null,null,null,null,null,null,null,null,null," "]
[null,null,null,"Name","Select hours","Workload indicator",null,null,null,null,null,null,null,null,null,"Level involved",null,null," "]
[null,null,null,null,"< 1 hour",1,2,3,4,5,6,7,8,9,10,null,null,null,{"$f":"VLOOKUP($E22,R.VL_DEQResourcesInvolved,2,FALSE)","v":0},{"$f":"VLOOKUP($E22,R.VL_DEQResourcesInvolved,3,FALSE)","v":0},{"$f":"IF(S22=10,T22,VLOOKUP($E22,R.VL_DEQResourcesInvolved,4,FALSE))","v":0},"ï drop down to Select hours/Level involved"]
[null,null,null," ","< 1 hour",1,2,3,4,5,6,7,8,9,10," ",null,null,{"$f":"VLOOKUP($E23,R.VL_DEQResourcesInvolved,2,FALSE)","v":0},{"$f":"VLOOKUP($E23,R.VL_DEQResourcesInvolved,3,FALSE)","v":0},{"$f":"IF(S23=10,T23,VLOOKUP($E23,R.VL_DEQResourcesInvolved,4,FALSE))","v":0}]
[null,null,null," ","< 1 hour",1,2,3,4,5,6,7,8,9,10," ",null,null,{"$f":"VLOOKUP($E24,R.VL_DEQResourcesInvolved,2,FALSE)","v":0},{"$f":"VLOOKUP($E24,R.VL_DEQResourcesInvolved,3,FALSE)","v":0},{"$f":"IF(S24=10,T24,VLOOKUP($E24,R.VL_DEQResourcesInvolved,4,FALSE))","v":0}]
[null,null,null," ","< 1 hour",1,2,3,4,5,6,7,8,9,10," ",null,null,{"$f":"VLOOKUP($E25,R.VL_DEQResourcesInvolved,2,FALSE)","v":0},{"$f":"VLOOKUP($E25,R.VL_DEQResourcesInvolved,3,FALSE)","v":0},{"$f":"IF(S25=10,T25,VLOOKUP($E25,R.VL_DEQResourcesInvolved,4,FALSE))","v":0}]
[]
["on Q-net",null,null,"Policy and Procedures"]
["on DAS",null,null,"Development"]
[]
[null,null,null,"Name","Select hours","Workload indicator",null,null,null,null,null,null,null,null,null,"Level involved"]
[null,null,null,null,"< 1 hour",1,2,3,4,5,6,7,8,9,10,null,null,null,{"$f":"VLOOKUP($E31,R.VL_DEQResourcesInvolved,2,FALSE)","v":0},{"$f":"VLOOKUP($E31,R.VL_DEQResourcesInvolved,3,FALSE)","v":0},{"$f":"IF(S31=10,T31,VLOOKUP($E31,R.VL_DEQResourcesInvolved,4,FALSE))","v":0},"ï drop down to Select hours/Level involved"]
[null,null,null," ","< 1 hour",1,2,3,4,5,6,7,8,9,10," ",null,null,{"$f":"VLOOKUP($E32,R.VL_DEQResourcesInvolved,2,FALSE)","v":0},{"$f":"VLOOKUP($E32,R.VL_DEQResourcesInvolved,3,FALSE)","v":0},{"$f":"IF(S32=10,T32,VLOOKUP($E32,R.VL_DEQResourcesInvolved,4,FALSE))","v":0}]
[null,null,null," ","< 1 hour",1,2,3,4,5,6,7,8,9,10," ",null,null,{"$f":"VLOOKUP($E33,R.VL_DEQResourcesInvolved,2,FALSE)","v":0},{"$f":"VLOOKUP($E33,R.VL_DEQResourcesInvolved,3,FALSE)","v":0},{"$f":"IF(S33=10,T33,VLOOKUP($E33,R.VL_DEQResourcesInvolved,4,FALSE))","v":0}]
[null,null,null," ","< 1 hour",1,2,3,4,5,6,7,8,9,10," ",null,null,{"$f":"VLOOKUP($E34,R.VL_DEQResourcesInvolved,2,FALSE)","v":0},{"$f":"VLOOKUP($E34,R.VL_DEQResourcesInvolved,3,FALSE)","v":0},{"$f":"IF(S34=10,T34,VLOOKUP($E34,R.VL_DEQResourcesInvolved,4,FALSE))","v":0}]
[null,null,null,"Implementation"]
[]
[null,null,null,"Name","Select hours","Workload indicator",null,null,null,null,null,null,null,null,null,"Level involved"]
[null,null,null,null,"< 1 hour",1,2,3,4,5,6,7,8,9,10,null,null,null,{"$f":"VLOOKUP($E38,R.VL_DEQResourcesInvolved,2,FALSE)","v":0},{"$f":"VLOOKUP($E38,R.VL_DEQResourcesInvolved,3,FALSE)","v":0},{"$f":"IF(S38=10,T38,VLOOKUP($E38,R.VL_DEQResourcesInvolved,4,FALSE))","v":0},"ï drop down to Select hours/Level involved"]
[null,null,null," ","< 1 hour",1,2,3,4,5,6,7,8,9,10," ",null,null,{"$f":"VLOOKUP($E39,R.VL_DEQResourcesInvolved,2,FALSE)","v":0},{"$f":"VLOOKUP($E39,R.VL_DEQResourcesInvolved,3,FALSE)","v":0},{"$f":"IF(S39=10,T39,VLOOKUP($E39,R.VL_DEQResourcesInvolved,4,FALSE))","v":0}]
[null,null,null," ","< 1 hour",1,2,3,4,5,6,7,8,9,10," ",null,null,{"$f":"VLOOKUP($E40,R.VL_DEQResourcesInvolved,2,FALSE)","v":0},{"$f":"VLOOKUP($E40,R.VL_DEQResourcesInvolved,3,FALSE)","v":0},{"$f":"IF(S40=10,T40,VLOOKUP($E40,R.VL_DEQResourcesInvolved,4,FALSE))","v":0}]
[null,null,null," ","< 1 hour",1,2,3,4,5,6,7,8,9,10," ",null,null,{"$f":"VLOOKUP($E41,R.VL_DEQResourcesInvolved,2,FALSE)","v":0},{"$f":"VLOOKUP($E41,R.VL_DEQResourcesInvolved,3,FALSE)","v":0},{"$f":"IF(S41=10,T41,VLOOKUP($E41,R.VL_DEQResourcesInvolved,4,FALSE))","v":0}]
[]
["on Q-net",null," ","Health and Safety",null,null,null,null,null,null,null,null,null,null,null,null,null,null,null," "]
[null,null,null,"Development"]
[]
[null,null,null,"Name","Select hours","Workload indicator",null,null,null,null,null,null,null,null,null,"Level involved"]
[null,null,null," ","< 1 hour",1,2,3,4,5,6,7,8,9,10," ",null,null,{"$f":"VLOOKUP($E47,R.VL_DEQResourcesInvolved,2,FALSE)","v":0},{"$f":"VLOOKUP($E47,R.VL_DEQResourcesInvolved,3,FALSE)","v":0},{"$f":"IF(S47=10,T47,VLOOKUP($E47,R.VL_DEQResourcesInvolved,4,FALSE))","v":0},"ï drop down to Select hours/Level involved"]
[null,null,null," ","< 1 hour",1,2,3,4,5,6,7,8,9,10," ",null,null,{"$f":"VLOOKUP($E48,R.VL_DEQResourcesInvolved,2,FALSE)","v":0},{"$f":"VLOOKUP($E48,R.VL_DEQResourcesInvolved,3,FALSE)","v":0},{"$f":"IF(S48=10,T48,VLOOKUP($E48,R.VL_DEQResourcesInvolved,4,FALSE))","v":0}]
[null,null,null," ","< 1 hour",1,2,3,4,5,6,7,8,9,10," ",null,null,{"$f":"VLOOKUP($E49,R.VL_DEQResourcesInvolved,2,FALSE)","v":0},{"$f":"VLOOKUP($E49,R.VL_DEQResourcesInvolved,3,FALSE)","v":0},{"$f":"IF(S49=10,T49,VLOOKUP($E49,R.VL_DEQResourcesInvolved,4,FALSE))","v":0}]
[null,null,null," ","< 1 hour",1,2,3,4,5,6,7,8,9,10," ",null,null,{"$f":"VLOOKUP($E50,R.VL_DEQResourcesInvolved,2,FALSE)","v":0},{"$f":"VLOOKUP($E50,R.VL_DEQResourcesInvolved,3,FALSE)","v":0},{"$f":"IF(S50=10,T50,VLOOKUP($E50,R.VL_DEQResourcesInvolved,4,FALSE))","v":0}]
[null,null,null,"Implementation"]
[]
[null,null,null,"Name","Select hours","Workload indicator",null,null,null,null,null,null,null,null,null,"Level involved"]
[null,null,null," ","< 1 hour",1,2,3,4,5,6,7,8,9,10," ",null,null,{"$f":"VLOOKUP($E54,R.VL_DEQResourcesInvolved,2,FALSE)","v":0},{"$f":"VLOOKUP($E54,R.VL_DEQResourcesInvolved,3,FALSE)","v":0},{"$f":"IF(S54=10,T54,VLOOKUP($E54,R.VL_DEQResourcesInvolved,4,FALSE))","v":0},"ï drop down to Select hours/Level involved"]
[null,null,null," ","< 1 hour",1,2,3,4,5,6,7,8,9,10," ",null,null,{"$f":"VLOOKUP($E55,R.VL_DEQResourcesInvolved,2,FALSE)","v":0},{"$f":"VLOOKUP($E55,R.VL_DEQResourcesInvolved,3,FALSE)","v":0},{"$f":"IF(S55=10,T55,VLOOKUP($E55,R.VL_DEQResourcesInvolved,4,FALSE))","v":0}]
[null,null,null,null,"< 1 hour",1,2,3,4,5,6,7,8,9,10,null,null,null,{"$f":"VLOOKUP($E56,R.VL_DEQResourcesInvolved,2,FALSE)","v":0},{"$f":"VLOOKUP($E56,R.VL_DEQResourcesInvolved,3,FALSE)","v":0},{"$f":"IF(S56=10,T56,VLOOKUP($E56,R.VL_DEQResourcesInvolved,4,FALSE))","v":0}]
[null,null,null," ","< 1 hour",1,2,3,4,5,6,7,8,9,10," ",null,null,{"$f":"VLOOKUP($E57,R.VL_DEQResourcesInvolved,2,FALSE)","v":0},{"$f":"VLOOKUP($E57,R.VL_DEQResourcesInvolved,3,FALSE)","v":0},{"$f":"IF(S57=10,T57,VLOOKUP($E57,R.VL_DEQResourcesInvolved,4,FALSE))","v":0}]
[]
["on Q-net",null,null,"Training"]
[null,null,null,"Development"]
[]
[null,null,null,"Name","Select hours","Workload indicator",null,null,null,null,null,null,null,null,null,"Level involved"]
[null,null,null,null,"< 1 hour",1,2,3,4,5,6,7,8,9,10," ",null,null,{"$f":"VLOOKUP($E63,R.VL_DEQResourcesInvolved,2,FALSE)","v":0},{"$f":"VLOOKUP($E63,R.VL_DEQResourcesInvolved,3,FALSE)","v":0},{"$f":"IF(S63=10,T63,VLOOKUP($E63,R.VL_DEQResourcesInvolved,4,FALSE))","v":0},"ï drop down to Select hours/Level involved"]
[null,null,null,null,"< 1 hour",1,2,3,4,5,6,7,8,9,10,null,null,null,{"$f":"VLOOKUP($E64,R.VL_DEQResourcesInvolved,2,FALSE)","v":0},{"$f":"VLOOKUP($E64,R.VL_DEQResourcesInvolved,3,FALSE)","v":0},{"$f":"IF(S64=10,T64,VLOOKUP($E64,R.VL_DEQResourcesInvolved,4,FALSE))","v":0}]
[null,null,null," ","< 1 hour",1,2,3,4,5,6,7,8,9,10," ",null,null,{"$f":"VLOOKUP($E65,R.VL_DEQResourcesInvolved,2,FALSE)","v":0},{"$f":"VLOOKUP($E65,R.VL_DEQResourcesInvolved,3,FALSE)","v":0},{"$f":"IF(S65=10,T65,VLOOKUP($E65,R.VL_DEQResourcesInvolved,4,FALSE))","v":0}]
[null,null,null," ","< 1 hour",1,2,3,4,5,6,7,8,9,10," ",null,null,{"$f":"VLOOKUP($E66,R.VL_DEQResourcesInvolved,2,FALSE)","v":0},{"$f":"VLOOKUP($E66,R.VL_DEQResourcesInvolved,3,FALSE)","v":0},{"$f":"IF(S66=10,T66,VLOOKUP($E66,R.VL_DEQResourcesInvolved,4,FALSE))","v":0}]
[null,null,null,"Implementation"]
[null,null,null," "]
[null,null,null,"Name","Select hours","Workload indicator",null,null,null,null,null,null,null,null,null,"Level involved"]
[null,null,null," ","< 1 hour",1,2,3,4,5,6,7,8,9,10," ",null,null,{"$f":"VLOOKUP($E70,R.VL_DEQResourcesInvolved,2,FALSE)","v":0},{"$f":"VLOOKUP($E70,R.VL_DEQResourcesInvolved,3,FALSE)","v":0},{"$f":"IF(S70=10,T70,VLOOKUP($E70,R.VL_DEQResourcesInvolved,4,FALSE))","v":0},"ï drop down to Select hours/Level involved"]
[null,null,null," ","< 1 hour",1,2,3,4,5,6,7,8,9,10," ",null,null,{"$f":"VLOOKUP($E71,R.VL_DEQResourcesInvolved,2,FALSE)","v":0},{"$f":"VLOOKUP($E71,R.VL_DEQResourcesInvolved,3,FALSE)","v":0},{"$f":"IF(S71=10,T71,VLOOKUP($E71,R.VL_DEQResourcesInvolved,4,FALSE))","v":0}]
[null,null,null," ","< 1 hour",1,2,3,4,5,6,7,8,9,10," ",null,null,{"$f":"VLOOKUP($E72,R.VL_DEQResourcesInvolved,2,FALSE)","v":0},{"$f":"VLOOKUP($E72,R.VL_DEQResourcesInvolved,3,FALSE)","v":0},{"$f":"IF(S72=10,T72,VLOOKUP($E72,R.VL_DEQResourcesInvolved,4,FALSE))","v":0}]
[null,null,null," ","< 1 hour",1,2,3,4,5,6,7,8,9,10," ",null,null,{"$f":"VLOOKUP($E73,R.VL_DEQResourcesInvolved,2,FALSE)","v":0},{"$f":"VLOOKUP($E73,R.VL_DEQResourcesInvolved,3,FALSE)","v":0},{"$f":"IF(S73=10,T73,VLOOKUP($E73,R.VL_DEQResourcesInvolved,4,FALSE))","v":0}]
[]
[null,null,null,{"$f":"\"Please suggest process improvements to the \"&D2&\" worksheet.\"","v":"Please suggest process improvements to the Organizational Services worksheet."}]
[]
["Go to Top"]

{"sheet":"11TechServices","index":15,"n_rows":61,"n_cols":22,"rows_kept":61,"cut":false,"hidden":false,"merged":[[59,3,59,15],[28,3,28,15],[35,3,35,15],[41,4,41,15],[44,3,44,15],[45,5,45,14],[51,3,51,15],[29,5,29,14],[36,5,36,14],[52,5,52,14],[58,3,58,7],[57,4,57,15],[1,4,1,15],[2,12,2,15],[3,5,3,11],[3,12,3,15],[6,3,6,15],[25,4,25,15],[20,5,20,14],[19,3,19,15],[4,5,4,11],[4,12,4,15],[7,3,7,15],[8,3,8,15],[12,3,12,15],[13,5,13,14]]}
["⧀ Go to Content"]
["on Q-net",null,11,"Technical Services",{"$f":"R.1MediaAndLongName","v":"AQ LRAPA - Open Burning"},null,null,null,null,null,null,null,null,null,null,null,null,null,{"$f":"\"R.\"&$C$2&\"StaffCount\"","v":"R.11StaffCount"},{"$f":"\"R.\"&$C$2&\"LowHrs\"","v":"R.11LowHrs"},{"$f":"\"R.\"&$C$2&\"HighHrs\"","v":"R.11HighHrs"}," "]
[null,null,null,null,null,null,null,null,null,null,null,null,"Estimated range",null,null,null,null,null,{"$f":"COUNTIFS(S15:S57,\">0\")","v":0},{"$f":"SUM(T15:T57)","v":0},{"$f":"SUM(U15:U57)","v":0}]
[null,null,null,"Number of staff involved",{"$f":"S3","v":0},"Hours",null,null,null,null,null,null,{"$f":"S4","v":"0"},null,null,null,null,null,{"$f":"IF(R.11StaffCount=0,\"0\",IF(R.11LowHrs=0,\"0-\"&TEXT(R.11HighHrs,\"#,###\"),TEXT(R.11LowHrs,\"#,###\")&\"-\"&TEXT(R.11HighHrs,\"#,###\")))","v":"0"},{"$f":"\"R.\"&$C$2&\"LowDollars\"","v":"R.11LowDollars"},{"$f":"\"R.\"&$C$2&\"HighDollars\"","v":"R.11HighDollars"}]
[null,null,null,"DEQ 2012 average hourly                             $",{"$f":"R.AvgHrDEQCost","v":58},"Staff cost ",null,null,null,null,null,null,{"$f":"S5","v":"$0"},null,null,null,null,null,{"$f":"IF(R.11StaffCount=0,\"$0\",IF(R.11LowDollars=0,\"$0-\"&TEXT(R.11HighDollars,\"#,###\"),TEXT(R.11LowDollars,\"$#,###\")&\"-\"&TEXT(R.11HighDollars,\"#,###\")))","v":"$0"},{"$f":"T3*E5","v":0},{"$f":"U3*E5","v":0}]
[null,null,null," "]
[null,null,null,"For estimated hour ranges that are 170 hours or more, talk with the manager about:\n   • The estimate,\n   • The group's capacity to complete the potential work, and\n   • The estimated quarterly schedule. \nIf the EMT approves the proposal on the annual DEQ rulemaking plan, the team would refine this information as they learn more about the proposed rule. The team would involve Technical Services at the appropriate time. ",null,null,null,null,null,null,null,null,null,null,null,null,null,null,{"$f":"AVERAGEIF(S14:S56,\">0\")","v":{"$error":"#DIV/0!"}}]
[null,null,null,"Please describe what you know now about Technical Services capacity."]
[null,null,null,"The work described on this worksheet is part of the person's position description or work agreement."]
[]
[null,null," ","Divisional Technical"]
[null,null,null,"Development"]
[null,null,null," "]
[null,null,null,"Name","Select hours","Workload indicator",null,null,null,null,null,null,null,null,null,"Level involved"]
[null,null,null," ","< 1 hour",1,2,3,4,5,6,7,8,9,10," ",null,null,{"$f":"VLOOKUP($E15,R.VL_DEQResourcesInvolved,2,FALSE)","v":0},{"$f":"VLOOKUP($E15,R.VL_DEQResourcesInvolved,3,FALSE)","v":0},{"$f":"IF(S15=10,T15,VLOOKUP($E15,R.VL_DEQResourcesInvolved,4,FALSE))","v":0},"ï drop down to Select hours/Level involved"]
[null,null,null," ","< 1 hour",1,2,3,4,5,6,7,8,9,10," ",null,null,{"$f":"VLOOKUP($E16,R.VL_DEQResourcesInvolved,2,FALSE)","v":0},{"$f":"VLOOKUP($E16,R.VL_DEQResourcesInvolved,3,FALSE)","v":0},{"$f":"IF(S16=10,T16,VLOOKUP($E16,R.VL_DEQResourcesInvolved,4,FALSE))","v":0}]
[null,null,null," ","< 1 hour",1,2,3,4,5,6,7,8,9,10,null,null,null,{"$f":"VLOOKUP($E17,R.VL_DEQResourcesInvolved,2,FALSE)","v":0},{"$f":"VLOOKUP($E17,R.VL_DEQResourcesInvolved,3,FALSE)","v":0},{"$f":"IF(S17=10,T17,VLOOKUP($E17,R.VL_DEQResourcesInvolved,4,FALSE))","v":0}]
[null,null,null,null,"< 1 hour",1,2,3,4,5,6,7,8,9,10,null,null,null,{"$f":"VLOOKUP($E18,R.VL_DEQResourcesInvolved,2,FALSE)","v":0},{"$f":"VLOOKUP($E18,R.VL_DEQResourcesInvolved,3,FALSE)","v":0},{"$f":"IF(S18=10,T18,VLOOKUP($E18,R.VL_DEQResourcesInvolved,4,FALSE))","v":0}]
[null,null,null,"Implementation"]
[null,null,null,null,null,null,null,null,null,null,null,null,null,null,null,null,null,null," "]
[null,null,null,"Name","Select hours","Workload indicator",null,null,null,null,null,null,null,null,null,"Level involved"]
[null,null,null," ","< 1 hour",1,2,3,4,5,6,7,8,9,10," ",null,null,{"$f":"VLOOKUP($E22,R.VL_DEQResourcesInvolved,2,FALSE)","v":0},{"$f":"VLOOKUP($E22,R.VL_DEQResourcesInvolved,3,FALSE)","v":0},{"$f":"IF(S22=10,T22,VLOOKUP($E22,R.VL_DEQResourcesInvolved,4,FALSE))","v":0},"ï drop down to Select hours/Level involved"]
[null,null,null,null,"< 1 hour",1,2,3,4,5,6,7,8,9,10,null,null,null,{"$f":"VLOOKUP($E23,R.VL_DEQResourcesInvolved,2,FALSE)","v":0},{"$f":"VLOOKUP($E23,R.VL_DEQResourcesInvolved,3,FALSE)","v":0},{"$f":"IF(S23=10,T23,VLOOKUP($E23,R.VL_DEQResourcesInvolved,4,FALSE))","v":0}]
[null,null,null," ","< 1 hour",1,2,3,4,5,6,7,8,9,10," ",null,null,{"$f":"VLOOKUP($E24,R.VL_DEQResourcesInvolved,2,FALSE)","v":0},{"$f":"VLOOKUP($E24,R.VL_DEQResourcesInvolved,3,FALSE)","v":0},{"$f":"IF(S24=10,T24,VLOOKUP($E24,R.VL_DEQResourcesInvolved,4,FALSE))","v":0}]
[null,null,null," ","< 1 hour",1,2,3,4,5,6,7,8,9,10," ",null,null,{"$f":"VLOOKUP($E25,R.VL_DEQResourcesInvolved,2,FALSE)","v":0},{"$f":"VLOOKUP($E25,R.VL_DEQResourcesInvolved,3,FALSE)","v":0},{"$f":"IF(S25=10,T25,VLOOKUP($E25,R.VL_DEQResourcesInvolved,4,FALSE))","v":0}]
[]
["on Q-net",null,null,"Information Technology"]
[null,null,null,"Development"]
[null,null,null," ",null,null,null,null,null,null,null,null,null,null,null,null,null,null," "]
[null,null,null,"Name","Select hours","Workload indicator",null,null,null,null,null,null,null,null,null,"Level involved"]
[null,null,null," ","< 1 hour",1,2,3,4,5,6,7,8,9,10,"STAFF",null,null,{"$f":"VLOOKUP($E31,R.VL_DEQResourcesInvolved,2,FALSE)","v":0},{"$f":"VLOOKUP($E31,R.VL_DEQResourcesInvolved,3,FALSE)","v":0},{"$f":"IF(S31=10,T31,VLOOKUP($E31,R.VL_DEQResourcesInvolved,4,FALSE))","v":0},"ï drop down to Select hours/Level involved"]
[null,null,null," ","< 1 hour",1,2,3,4,5,6,7,8,9,10,null,null,null,{"$f":"VLOOKUP($E32,R.VL_DEQResourcesInvolved,2,FALSE)","v":0},{"$f":"VLOOKUP($E32,R.VL_DEQResourcesInvolved,3,FALSE)","v":0},{"$f":"IF(S32=10,T32,VLOOKUP($E32,R.VL_DEQResourcesInvolved,4,FALSE))","v":0}]
[null,null,null," ","< 1 hour",1,2,3,4,5,6,7,8,9,10,null,null,null,{"$f":"VLOOKUP($E33,R.VL_DEQResourcesInvolved,2,FALSE)","v":0},{"$f":"VLOOKUP($E33,R.VL_DEQResourcesInvolved,3,FALSE)","v":0},{"$f":"IF(S33=10,T33,VLOOKUP($E33,R.VL_DEQResourcesInvolved,4,FALSE))","v":0}]
[null,null,null,null,"< 1 hour",1,2,3,4,5,6,7,8,9,10,null,null,null,{"$f":"VLOOKUP($E34,R.VL_DEQResourcesInvolved,2,FALSE)","v":0},{"$f":"VLOOKUP($E34,R.VL_DEQResourcesInvolved,3,FALSE)","v":0},{"$f":"IF(S34=10,T34,VLOOKUP($E34,R.VL_DEQResourcesInvolved,4,FALSE))","v":0}]
[null,null,null,"Implementation"]
[null,null,null,null,null,null,null,null,null,null,null,null,null,null,null,null,null,null," "]
[null,null,null,"Name","Select hours","Workload indicator",null,null,null,null,null,null,null,null,null,"Level involved"]
[null,null,null,null,"< 1 hour",1,2,3,4,5,6,7,8,9,10,null,null,null,{"$f":"VLOOKUP($E38,R.VL_DEQResourcesInvolved,2,FALSE)","v":0},{"$f":"VLOOKUP($E38,R.VL_DEQResourcesInvolved,3,FALSE)","v":0},{"$f":"IF(S38=10,T38,VLOOKUP($E38,R.VL_DEQResourcesInvolved,4,FALSE))","v":0},"ï drop down to Select hours/Level involved"]
[null,null,null," ","< 1 hour",1,2,3,4,5,6,7,8,9,10," ",null,null,{"$f":"VLOOKUP($E39,R.VL_DEQResourcesInvolved,2,FALSE)","v":0},{"$f":"VLOOKUP($E39,R.VL_DEQResourcesInvolved,3,FALSE)","v":0},{"$f":"IF(S39=10,T39,VLOOKUP($E39,R.VL_DEQResourcesInvolved,4,FALSE))","v":0}]
[null,null,null," ","< 1 hour",1,2,3,4,5,6,7,8,9,10," ",null,null,{"$f":"VLOOKUP($E40,R.VL_DEQResourcesInvolved,2,FALSE)","v":0},{"$f":"VLOOKUP($E40,R.VL_DEQResourcesInvolved,3,FALSE)","v":0},{"$f":"IF(S40=10,T40,VLOOKUP($E40,R.VL_DEQResourcesInvolved,4,FALSE))","v":0}]
[null,null,null," ","< 1 hour",1,2,3,4,5,6,7,8,9,10," ",null,null,{"$f":"VLOOKUP($E41,R.VL_DEQResourcesInvolved,2,FALSE)","v":0},{"$f":"VLOOKUP($E41,R.VL_DEQResourcesInvolved,3,FALSE)","v":0},{"$f":"IF(S41=10,T41,VLOOKUP($E41,R.VL_DEQResourcesInvolved,4,FALSE))","v":0}]
[]
["on Q-net",null," ","Business Systems Development",null,null,null,null,null,null,null,null,null,null,null,null,null,null,null," "]
[null,null,null,"Development"]
[null,null,null,null,null,null,null,null,null,null,null,null,null,null,null,null,null,null," "]
[null,null,null,"Name","Select hours","Workload indicator",null,null,null,null,null,null,null,null,null,"Level involved"]
[null,null,null,null,"< 1 hour",1,2,3,4,5,6,7,8,9,10,null,null,null,{"$f":"VLOOKUP($E47,R.VL_DEQResourcesInvolved,2,FALSE)","v":0},{"$f":"VLOOKUP($E47,R.VL_DEQResourcesInvolved,3,FALSE)","v":0},{"$f":"IF(S47=10,T47,VLOOKUP($E47,R.VL_DEQResourcesInvolved,4,FALSE))","v":0},"ï drop down to Select hours/Level involved"]
[null,null,null," ","< 1 hour",1,2,3,4,5,6,7,8,9,10," ",null,null,{"$f":"VLOOKUP($E48,R.VL_DEQResourcesInvolved,2,FALSE)","v":0},{"$f":"VLOOKUP($E48,R.VL_DEQResourcesInvolved,3,FALSE)","v":0},{"$f":"IF(S48=10,T48,VLOOKUP($E48,R.VL_DEQResourcesInvolved,4,FALSE))","v":0}]
[null,null,null," ","< 1 hour",1,2,3,4,5,6,7,8,9,10," ",null,null,{"$f":"VLOOKUP($E49,R.VL_DEQResourcesInvolved,2,FALSE)","v":0},{"$f":"VLOOKUP($E49,R.VL_DEQResourcesInvolved,3,FALSE)","v":0},{"$f":"IF(S49=10,T49,VLOOKUP($E49,R.VL_DEQResourcesInvolved,4,FALSE))","v":0}]
[null,null,null," ","< 1 hour",1,2,3,4,5,6,7,8,9,10," ",null,null,{"$f":"VLOOKUP($E50,R.VL_DEQResourcesInvolved,2,FALSE)","v":0},{"$f":"VLOOKUP($E50,R.VL_DEQResourcesInvolved,3,FALSE)","v":0},{"$f":"IF(S50=10,T50,VLOOKUP($E50,R.VL_DEQResourcesInvolved,4,FALSE))","v":0}]
[null,null,null,"Implementation"]
[null,null,null,null,null,null,null,null,null,null,null,null,null,null,null,null,null,null," "]
[null,null,null,"Name","Select hours","Workload indicator",null,null,null,null,null,null,null,null,null,"Level involved"]
[null,null,null,null,"< 1 hour",1,2,3,4,5,6,7,8,9,10,null,null,null,{"$f":"VLOOKUP($E54,R.VL_DEQResourcesInvolved,2,FALSE)","v":0},{"$f":"VLOOKUP($E54,R.VL_DEQResourcesInvolved,3,FALSE)","v":0},{"$f":"IF(S54=10,T54,VLOOKUP($E54,R.VL_DEQResourcesInvolved,4,FALSE))","v":0},"ï drop down to Select hours/Level involved"]
[null,null,null," ","< 1 hour",1,2,3,4,5,6,7,8,9,10," ",null,null,{"$f":"VLOOKUP($E55,R.VL_DEQResourcesInvolved,2,FALSE)","v":0},{"$f":"VLOOKUP($E55,R.VL_DEQResourcesInvolved,3,FALSE)","v":0},{"$f":"IF(S55=10,T55,VLOOKUP($E55,R.VL_DEQResourcesInvolved,4,FALSE))","v":0}]
[null,null,null," ","< 1 hour",1,2,3,4,5,6,7,8,9,10," ",null,null,{"$f":"VLOOKUP($E56,R.VL_DEQResourcesInvolved,2,FALSE)","v":0},{"$f":"VLOOKUP($E56,R.VL_DEQResourcesInvolved,3,FALSE)","v":0},{"$f":"IF(S56=10,T56,VLOOKUP($E56,R.VL_DEQResourcesInvolved,4,FALSE))","v":0}]
[null,null,null," ","< 1 hour",1,2,3,4,5,6,7,8,9,10," ",null,null,{"$f":"VLOOKUP($E57,R.VL_DEQResourcesInvolved,2,FALSE)","v":0},{"$f":"VLOOKUP($E57,R.VL_DEQResourcesInvolved,3,FALSE)","v":0},{"$f":"IF(S57=10,T57,VLOOKUP($E57,R.VL_DEQResourcesInvolved,4,FALSE))","v":0}]
[]
[null,null,null,{"$f":"\"Please suggest process improvements to the \"&D2&\" worksheet.\"","v":"Please suggest process improvements to the Technical Services worksheet."}]
[]
["Go to Top"]

{"sheet":"12OCE","index":16,"n_rows":29,"n_cols":22,"rows_kept":29,"cut":false,"hidden":false,"merged":[[6,3,6,15],[7,3,7,15],[8,3,8,15],[27,3,27,15],[26,3,26,14],[25,4,25,15],[12,3,12,15],[13,5,13,14],[19,3,19,15],[4,5,4,11],[4,12,4,15],[1,4,1,15],[2,12,2,15],[3,5,3,11],[3,12,3,15]]}
["⧀ Go to Content"]
["on Q-net",null,12,"Compliance & Enforcement",{"$f":"R.1MediaAndLongName","v":"AQ LRAPA - Open Burning"}]
[null,null,null,null,null,null,null,null,null,null,null,null,"Estimated range",null,null,null,null,null,{"$f":"\"R.\"&$C$2&\"StaffCount\"","v":"R.12StaffCount"},{"$f":"\"R.\"&$C$2&\"LowHrs\"","v":"R.12LowHrs"},{"$f":"\"R.\"&$C$2&\"HighHrs\"","v":"R.12HighHrs"}," "]
[null,null,null,"Number of staff involved",{"$f":"S4","v":0},"Hours",null,null,null,null,null,null,{"$f":"S5","v":"0"},null,null,null,null,null,{"$f":"COUNTIFS(S15:S25,\">0\")","v":0},{"$f":"SUM(T15:T25)","v":0},{"$f":"SUM(U15:U25)","v":0}]
[null,null,null,"DEQ 2012 average hourly                             $",{"$f":"R.AvgHrDEQCost","v":58},"Staff cost ",null,null,null,null,null,null,{"$f":"S6","v":"$0"},null,null,null,null,null,{"$f":"IF(R.12StaffCount=0,\"0\",IF(R.12LowHrs=0,\"0-\"&TEXT(R.12HighHrs,\"#,###\"),TEXT(R.12LowHrs,\"#,###\")&\"-\"&TEXT(R.12HighHrs,\"#,###\")))","v":"0"},{"$f":"\"R.\"&$C$2&\"LowDollars\"","v":"R.12LowDollars"},{"$f":"\"R.\"&$C$2&\"HighDollars\"","v":"R.12HighDollars"}]
[null,null,null," ",null,null,null,null,null,null,null,null,null,null,null,null,null,null,{"$f":"IF(R.12StaffCount=0,\"$0\",IF(R.12LowDollars=0,\"$0-\"&TEXT(R.12HighDollars,\"#,###\"),TEXT(R.12LowDollars,\"$#,###\")&\"-\"&TEXT(R.12HighDollars,\"#,###\")))","v":"$0"},{"$f":"T4*E5","v":0},{"$f":"U4*E5","v":0}]
[null,null,null,"For estimated hour ranges that are 170 hours or more, talk with the manager about:\n   • The estimate,\n   • The group's capacity to complete the potential work, and\n   • The estimated quarterly schedule. \nIf the EMT approves the proposal on the annual DEQ rulemaking plan, the team would refine this information as they learn more about the proposed rule. The team would involve the Office of Compliance and Enforcement at the appropriate time. ",null,null,null,null,null,null,null,null,null,null,null,null,null,null,{"$f":"AVERAGEIF(S14:S56,\">0\")","v":{"$error":"#DIV/0!"}}]
[null,null,null,"Please describe what you know now about OCE capacity."]
[null,null,null,"The work described on this worksheet is part of the person's position description or work agreement."]
[]
[null,null," ","Compliance and Enforcement - not listed on other worksheets"]
[null,null,null,"Development"]
[]
[null,null,null,"Name","Select hours","Workload indicator",null,null,null,null,null,null,null,null,null,"Level involved"]
[null,null,null,null,"< 1 hour",1,2,3,4,5,6,7,8,9,10,null,null,null,{"$f":"VLOOKUP($E15,R.VL_DEQResourcesInvolved,2,FALSE)","v":0},{"$f":"VLOOKUP($E15,R.VL_DEQResourcesInvolved,3,FALSE)","v":0},{"$f":"IF(S15=10,T15,VLOOKUP($E15,R.VL_DEQResourcesInvolved,4,FALSE))","v":0},"ï drop down to Select hours/Level involved"]
[null,null,null," ","< 1 hour",1,2,3,4,5,6,7,8,9,10," ",null,null,{"$f":"VLOOKUP($E16,R.VL_DEQResourcesInvolved,2,FALSE)","v":0},{"$f":"VLOOKUP($E16,R.VL_DEQResourcesInvolved,3,FALSE)","v":0},{"$f":"IF(S16=10,T16,VLOOKUP($E16,R.VL_DEQResourcesInvolved,4,FALSE))","v":0}]
[null,null,null," ","< 1 hour",1,2,3,4,5,6,7,8,9,10," ",null,null,{"$f":"VLOOKUP($E17,R.VL_DEQResourcesInvolved,2,FALSE)","v":0},{"$f":"VLOOKUP($E17,R.VL_DEQResourcesInvolved,3,FALSE)","v":0},{"$f":"IF(S17=10,T17,VLOOKUP($E17,R.VL_DEQResourcesInvolved,4,FALSE))","v":0}]
[null,null,null," ","< 1 hour",1,2,3,4,5,6,7,8,9,10," ",null,null,{"$f":"VLOOKUP($E18,R.VL_DEQResourcesInvolved,2,FALSE)","v":0},{"$f":"VLOOKUP($E18,R.VL_DEQResourcesInvolved,3,FALSE)","v":0},{"$f":"IF(S18=10,T18,VLOOKUP($E18,R.VL_DEQResourcesInvolved,4,FALSE))","v":0}]
[null,null,null,"Implementation"]
[null,null,null,null,null,null,null,null,null,null,null,null,null,null,null,null,null,null," "]
[null,null,null,"Name","Select hours","Workload indicator",null,null,null,null,null,null,null,null,null,"Level involved"]
[null,null,null,null,"< 1 hour",1,2,3,4,5,6,7,8,9,10,null,null,null,{"$f":"VLOOKUP($E22,R.VL_DEQResourcesInvolved,2,FALSE)","v":0},{"$f":"VLOOKUP($E22,R.VL_DEQResourcesInvolved,3,FALSE)","v":0},{"$f":"IF(S22=10,T22,VLOOKUP($E22,R.VL_DEQResourcesInvolved,4,FALSE))","v":0},"ï drop down to Select hours/Level involved"]
[null,null,null,null,"< 1 hour",1,2,3,4,5,6,7,8,9,10,null,null,null,{"$f":"VLOOKUP($E23,R.VL_DEQResourcesInvolved,2,FALSE)","v":0},{"$f":"VLOOKUP($E23,R.VL_DEQResourcesInvolved,3,FALSE)","v":0},{"$f":"IF(S23=10,T23,VLOOKUP($E23,R.VL_DEQResourcesInvolved,4,FALSE))","v":0}]
[null,null,null," ","< 1 hour",1,2,3,4,5,6,7,8,9,10," ",null,null,{"$f":"VLOOKUP($E24,R.VL_DEQResourcesInvolved,2,FALSE)","v":0},{"$f":"VLOOKUP($E24,R.VL_DEQResourcesInvolved,3,FALSE)","v":0},{"$f":"IF(S24=10,T24,VLOOKUP($E24,R.VL_DEQResourcesInvolved,4,FALSE))","v":0}]
[null,null,null," ","< 1 hour",1,2,3,4,5,6,7,8,9,10," ",null,null,{"$f":"VLOOKUP($E25,R.VL_DEQResourcesInvolved,2,FALSE)","v":0},{"$f":"VLOOKUP($E25,R.VL_DEQResourcesInvolved,3,FALSE)","v":0},{"$f":"IF(S25=10,T25,VLOOKUP($E25,R.VL_DEQResourcesInvolved,4,FALSE))","v":0}]
[]
[null,null,null,{"$f":"\"Please suggest process improvements to the \"&D2&\" worksheet.\"","v":"Please suggest process improvements to the Compliance & Enforcement worksheet."}]
[]
["Go to Top"]

{"sheet":"13LEAD","index":17,"n_rows":62,"n_cols":22,"rows_kept":62,"cut":false,"hidden":false,"merged":[[1,4,1,15],[3,12,3,15],[4,5,4,11],[4,12,4,15],[2,3,2,4],[5,5,5,11],[5,12,5,15],[13,3,13,15],[14,5,14,14],[7,3,7,15],[8,3,8,15],[9,3,9,15],[20,3,20,15],[26,4,26,15],[21,5,21,14],[58,4,58,15],[60,3,60,15],[29,3,29,15],[36,3,36,15],[42,4,42,15],[45,3,45,15],[46,5,46,14],[52,3,52,15],[30,5,30,14],[37,5,37,14],[59,3,59,4],[53,5,53,14]]}
["⧀ Go to Content"]
["on Q-net",null,13,"LEAD",{"$f":"R.1MediaAndLongName","v":"AQ LRAPA - Open Burning"},null,null,null,null,null,null,null,null,null,null,null,null,null,null,null,null," "]
[null,null,null,"Laboratory and Environmental Assessment Division",null,null,null,null,null,null,null,null,null,null,null,null,null,null,{"$f":"\"R.\"&$C$2&\"StaffCount\"","v":"R.13StaffCount"},{"$f":"\"R.\"&$C$2&\"LowHrs\"","v":"R.13LowHrs"},{"$f":"\"R.\"&$C$2&\"HighHrs\"","v":"R.13HighHrs"}]
[null,null,null,null,null,null,null,null,null,null,null,null,"Estimated range",null,null,null,null,null,{"$f":"COUNTIFS(S16:S58,\">0\")","v":0},{"$f":"SUM(T16:T58)","v":0},{"$f":"SUM(U16:U58)","v":0}]
[null,null,null,"Number of staff involved",{"$f":"S4","v":0},"Hours",null,null,null,null,null,null,{"$f":"S5","v":"0"},null,null,null,null,null,{"$f":"IF(R.13StaffCount=0,\"0\",IF(R.13LowHrs=0,\"0-\"&TEXT(R.13HighHrs,\"#,###\"),TEXT(R.13LowHrs,\"#,###\")&\"-\"&TEXT(R.13HighHrs,\"#,###\")))","v":"0"},{"$f":"\"R.\"&$C$2&\"LowDollars\"","v":"R.13LowDollars"},{"$f":"\"R.\"&$C$2&\"HighDollars\"","v":"R.13HighDollars"}]
[null,null,null,"DEQ 2012 average hourly                             $",{"$f":"R.AvgHrDEQCost","v":58},"Staff cost ",null,null,null,null,null,null,{"$f":"S6","v":"$0"},null,null,null,null,null,{"$f":"IF(R.13StaffCount=0,\"$0\",IF(R.13LowDollars=0,\"$0-\"&TEXT(R.13HighDollars,\"#,###\"),TEXT(R.13LowDollars,\"$#,###\")&\"-\"&TEXT(R.13HighDollars,\"#,###\")))","v":"$0"},{"$f":"T4*E6","v":0},{"$f":"U4*E6","v":0}]
[null,null,null," "]
[null,null,null,"For estimated hour ranges that are 170 hours or more, talk with the manager about:\n   • The estimate,\n   • The group's capacity to complete the potential work, and\n   • The estimated quarterly schedule. \nIf the EMT approves the proposal on the annual DEQ rulemaking plan, the team would refine this information as they learn more about the proposed rule. The process expert would involve the Laboratory and Environmental Assessment Division at the appropriate time. "]
[null,null,null,"Please describe what you know now about LEAD capacity."]
[null,null,null,"The work described on this worksheet is part of the person's position description or work agreement."]
[]
["on Q-net",null," ","Monitoring"]
[null,null,null,"Development"]
[]
[null,null,null,"Name","Select hours","Workload indicator",null,null,null,null,null,null,null,null,null,"Level involved"]
[null,null,null,null,"< 1 hour",1,2,3,4,5,6,7,8,9,10,null,null,null,{"$f":"VLOOKUP($E16,R.VL_DEQResourcesInvolved,2,FALSE)","v":0},{"$f":"VLOOKUP($E16,R.VL_DEQResourcesInvolved,3,FALSE)","v":0},{"$f":"IF(S16=10,T16,VLOOKUP($E16,R.VL_DEQResourcesInvolved,4,FALSE))","v":0},"ï drop down to Select hours/Level involved"]
[null,null,null,null,"< 1 hour",1,2,3,4,5,6,7,8,9,10,null,null,null,{"$f":"VLOOKUP($E17,R.VL_DEQResourcesInvolved,2,FALSE)","v":0},{"$f":"VLOOKUP($E17,R.VL_DEQResourcesInvolved,3,FALSE)","v":0},{"$f":"IF(S17=10,T17,VLOOKUP($E17,R.VL_DEQResourcesInvolved,4,FALSE))","v":0}]
[null,null,null,null,"< 1 hour",1,2,3,4,5,6,7,8,9,10,null,null,null,{"$f":"VLOOKUP($E18,R.VL_DEQResourcesInvolved,2,FALSE)","v":0},{"$f":"VLOOKUP($E18,R.VL_DEQResourcesInvolved,3,FALSE)","v":0},{"$f":"IF(S18=10,T18,VLOOKUP($E18,R.VL_DEQResourcesInvolved,4,FALSE))","v":0}]
[null,null,null," ","< 1 hour",1,2,3,4,5,6,7,8,9,10,null,null,null,{"$f":"VLOOKUP($E19,R.VL_DEQResourcesInvolved,2,FALSE)","v":0},{"$f":"VLOOKUP($E19,R.VL_DEQResourcesInvolved,3,FALSE)","v":0},{"$f":"IF(S19=10,T19,VLOOKUP($E19,R.VL_DEQResourcesInvolved,4,FALSE))","v":0}]
[null,null,null,"Implementation"]
[null,null,null,null,null,null,null,null,null,null,null,null,null,null,null,null,null,null," "]
[null,null,null,"Name","Select hours","Workload indicator",null,null,null,null,null,null,null,null,null,"Level involved"]
[null,null,null,null,"< 1 hour",1,2,3,4,5,6,7,8,9,10,null,null,null,{"$f":"VLOOKUP($E23,R.VL_DEQResourcesInvolved,2,FALSE)","v":0},{"$f":"VLOOKUP($E23,R.VL_DEQResourcesInvolved,3,FALSE)","v":0},{"$f":"IF(S23=10,T23,VLOOKUP($E23,R.VL_DEQResourcesInvolved,4,FALSE))","v":0},"ï drop down to Select hours/Level involved"]
[null,null,null," ","< 1 hour",1,2,3,4,5,6,7,8,9,10," ",null,null,{"$f":"VLOOKUP($E24,R.VL_DEQResourcesInvolved,2,FALSE)","v":0},{"$f":"VLOOKUP($E24,R.VL_DEQResourcesInvolved,3,FALSE)","v":0},{"$f":"IF(S24=10,T24,VLOOKUP($E24,R.VL_DEQResourcesInvolved,4,FALSE))","v":0}]
[null,null,null," ","< 1 hour",1,2,3,4,5,6,7,8,9,10," ",null,null,{"$f":"VLOOKUP($E25,R.VL_DEQResourcesInvolved,2,FALSE)","v":0},{"$f":"VLOOKUP($E25,R.VL_DEQResourcesInvolved,3,FALSE)","v":0},{"$f":"IF(S25=10,T25,VLOOKUP($E25,R.VL_DEQResourcesInvolved,4,FALSE))","v":0}]
[null,null,null," ","< 1 hour",1,2,3,4,5,6,7,8,9,10," ",null,null,{"$f":"VLOOKUP($E26,R.VL_DEQResourcesInvolved,2,FALSE)","v":0},{"$f":"VLOOKUP($E26,R.VL_DEQResourcesInvolved,3,FALSE)","v":0},{"$f":"IF(S26=10,T26,VLOOKUP($E26,R.VL_DEQResourcesInvolved,4,FALSE))","v":0}]
[]
[null,null,null,"Analytical testing"]
[null,null,null,"Development"]
[null,null,null,null,null,null,null,null,null,null,null,null,null,null,null,null,null,null," "]
[null,null,null,"Name","Select hours","Workload indicator",null,null,null,null,null,null,null,null,null,"Level involved"]
[null,null,null,null,"< 1 hour",1,2,3,4,5,6,7,8,9,10,null,null,null,{"$f":"VLOOKUP($E32,R.VL_DEQResourcesInvolved,2,FALSE)","v":0},{"$f":"VLOOKUP($E32,R.VL_DEQResourcesInvolved,3,FALSE)","v":0},{"$f":"IF(S32=10,T32,VLOOKUP($E32,R.VL_DEQResourcesInvolved,4,FALSE))","v":0},"ï drop down to Select hours/Level involved"]
[null,null,null," ","< 1 hour",1,2,3,4,5,6,7,8,9,10," ",null,null,{"$f":"VLOOKUP($E33,R.VL_DEQResourcesInvolved,2,FALSE)","v":0},{"$f":"VLOOKUP($E33,R.VL_DEQResourcesInvolved,3,FALSE)","v":0},{"$f":"IF(S33=10,T33,VLOOKUP($E33,R.VL_DEQResourcesInvolved,4,FALSE))","v":0}]
[null,null,null," ","< 1 hour",1,2,3,4,5,6,7,8,9,10," ",null,null,{"$f":"VLOOKUP($E34,R.VL_DEQResourcesInvolved,2,FALSE)","v":0},{"$f":"VLOOKUP($E34,R.VL_DEQResourcesInvolved,3,FALSE)","v":0},{"$f":"IF(S34=10,T34,VLOOKUP($E34,R.VL_DEQResourcesInvolved,4,FALSE))","v":0}]
[null,null,null," ","< 1 hour",1,2,3,4,5,6,7,8,9,10," ",null,null,{"$f":"VLOOKUP($E35,R.VL_DEQResourcesInvolved,2,FALSE)","v":0},{"$f":"VLOOKUP($E35,R.VL_DEQResourcesInvolved,3,FALSE)","v":0},{"$f":"IF(S35=10,T35,VLOOKUP($E35,R.VL_DEQResourcesInvolved,4,FALSE))","v":0}]
[null,null,null,"Implementation"]
[null,null,null,null,null,null,null,null,null,null,null,null,null,null,null,null,null,null," "]
[null,null,null,"Name","Select hours","Workload indicator",null,null,null,null,null,null,null,null,null,"Level involved"]
[null,null,null,null,"< 1 hour",1,2,3,4,5,6,7,8,9,10,null,null,null,{"$f":"VLOOKUP($E39,R.VL_DEQResourcesInvolved,2,FALSE)","v":0},{"$f":"VLOOKUP($E39,R.VL_DEQResourcesInvolved,3,FALSE)","v":0},{"$f":"IF(S39=10,T39,VLOOKUP($E39,R.VL_DEQResourcesInvolved,4,FALSE))","v":0},"ï drop down to Select hours/Level involved"]
[null,null,null," ","< 1 hour",1,2,3,4,5,6,7,8,9,10," ",null,null,{"$f":"VLOOKUP($E40,R.VL_DEQResourcesInvolved,2,FALSE)","v":0},{"$f":"VLOOKUP($E40,R.VL_DEQResourcesInvolved,3,FALSE)","v":0},{"$f":"IF(S40=10,T40,VLOOKUP($E40,R.VL_DEQResourcesInvolved,4,FALSE))","v":0}]
[null,null,null," ","< 1 hour",1,2,3,4,5,6,7,8,9,10," ",null,null,{"$f":"VLOOKUP($E41,R.VL_DEQResourcesInvolved,2,FALSE)","v":0},{"$f":"VLOOKUP($E41,R.VL_DEQResourcesInvolved,3,FALSE)","v":0},{"$f":"IF(S41=10,T41,VLOOKUP($E41,R.VL_DEQResourcesInvolved,4,FALSE))","v":0}]
[null,null,null," ","< 1 hour",1,2,3,4,5,6,7,8,9,10," ",null,null,{"$f":"VLOOKUP($E42,R.VL_DEQResourcesInvolved,2,FALSE)","v":0},{"$f":"VLOOKUP($E42,R.VL_DEQResourcesInvolved,3,FALSE)","v":0},{"$f":"IF(S42=10,T42,VLOOKUP($E42,R.VL_DEQResourcesInvolved,4,FALSE))","v":0}]
[]
["on Q-net",null," ","Quality Assurance",null,null,null,null,null,null,null,null,null,null,null,null,null,null,null," "]
[null,null,null,"Development"]
[null,null,null,null,null,null,null,null,null,null,null,null,null,null,null,null,null,null," "]
[null,null,null,"Name","Select hours","Workload indicator",null,null,null,null,null,null,null,null,null,"Level involved"]
[null,null,null,null,"< 1 hour",1,2,3,4,5,6,7,8,9,10,null,null,null,{"$f":"VLOOKUP($E48,R.VL_DEQResourcesInvolved,2,FALSE)","v":0},{"$f":"VLOOKUP($E48,R.VL_DEQResourcesInvolved,3,FALSE)","v":0},{"$f":"IF(S48=10,T48,VLOOKUP($E48,R.VL_DEQResourcesInvolved,4,FALSE))","v":0},"ï drop down to Select hours/Level involved"]
[null,null,null,null,"< 1 hour",1,2,3,4,5,6,7,8,9,10," ",null,null,{"$f":"VLOOKUP($E49,R.VL_DEQResourcesInvolved,2,FALSE)","v":0},{"$f":"VLOOKUP($E49,R.VL_DEQResourcesInvolved,3,FALSE)","v":0},{"$f":"IF(S49=10,T49,VLOOKUP($E49,R.VL_DEQResourcesInvolved,4,FALSE))","v":0}]
[null,null,null,null,"< 1 hour",1,2,3,4,5,6,7,8,9,10," ",null,null,{"$f":"VLOOKUP($E50,R.VL_DEQResourcesInvolved,2,FALSE)","v":0},{"$f":"VLOOKUP($E50,R.VL_DEQResourcesInvolved,3,FALSE)","v":0},{"$f":"IF(S50=10,T50,VLOOKUP($E50,R.VL_DEQResourcesInvolved,4,FALSE))","v":0}]
[null,null,null,null,"< 1 hour",1,2,3,4,5,6,7,8,9,10," ",null,null,{"$f":"VLOOKUP($E51,R.VL_DEQResourcesInvolved,2,FALSE)","v":0},{"$f":"VLOOKUP($E51,R.VL_DEQResourcesInvolved,3,FALSE)","v":0},{"$f":"IF(S51=10,T51,VLOOKUP($E51,R.VL_DEQResourcesInvolved,4,FALSE))","v":0}]
[null,null,null,"Implementation"]
[null,null,null,null,null,null,null,null,null,null,null,null,null,null,null,null,null,null," "]
[null,null,null,"Name","Select hours","Workload indicator",null,null,null,null,null,null,null,null,null,"Level involved"]
[null,null,null,null,"< 1 hour",1,2,3,4,5,6,7,8,9,10," ",null,null,{"$f":"VLOOKUP($E55,R.VL_DEQResourcesInvolved,2,FALSE)","v":0},{"$f":"VLOOKUP($E55,R.VL_DEQResourcesInvolved,3,FALSE)","v":0},{"$f":"IF(S55=10,T55,VLOOKUP($E55,R.VL_DEQResourcesInvolved,4,FALSE))","v":0},"ï drop down to Select hours/Level involved"]
[null,null,null,null,"< 1 hour",1,2,3,4,5,6,7,8,9,10," ",null,null,{"$f":"VLOOKUP($E56,R.VL_DEQResourcesInvolved,2,FALSE)","v":0},{"$f":"VLOOKUP($E56,R.VL_DEQResourcesInvolved,3,FALSE)","v":0},{"$f":"IF(S56=10,T56,VLOOKUP($E56,R.VL_DEQResourcesInvolved,4,FALSE))","v":0}]
[null,null,null,null,"< 1 hour",1,2,3,4,5,6,7,8,9,10," ",null,null,{"$f":"VLOOKUP($E57,R.VL_DEQResourcesInvolved,2,FALSE)","v":0},{"$f":"VLOOKUP($E57,R.VL_DEQResourcesInvolved,3,FALSE)","v":0},{"$f":"IF(S57=10,T57,VLOOKUP($E57,R.VL_DEQResourcesInvolved,4,FALSE))","v":0}]
[null,null,null,null,"< 1 hour",1,2,3,4,5,6,7,8,9,10," ",null,null,{"$f":"VLOOKUP($E58,R.VL_DEQResourcesInvolved,2,FALSE)","v":0},{"$f":"VLOOKUP($E58,R.VL_DEQResourcesInvolved,3,FALSE)","v":0},{"$f":"IF(S58=10,T58,VLOOKUP($E58,R.VL_DEQResourcesInvolved,4,FALSE))","v":0}]
[]
[null,null,null,{"$f":"\"Please suggest process improvements to the \"&D2&\" worksheet.\"","v":"Please suggest process improvements to the LEAD worksheet."}]
[]
["Go to Top"]

{"sheet":"14Intergovernmental","index":18,"n_rows":109,"n_cols":23,"rows_kept":109,"cut":false,"hidden":false,"merged":[[25,4,25,15],[20,5,20,14],[12,3,12,15],[1,4,1,15],[2,12,2,15],[3,5,3,11],[3,12,3,15],[4,5,4,11],[4,12,4,15],[6,3,6,15],[7,3,7,15],[8,3,8,15],[13,5,13,14],[19,3,19,15],[68,5,68,14],[84,5,84,14],[57,4,57,15],[73,4,73,15],[60,3,60,15],[67,3,67,15],[52,5,52,14],[61,5,61,14],[51,3,51,15],[28,3,28,15],[35,3,35,15],[41,4,41,15],[44,3,44,15],[45,5,45,14],[29,5,29,14],[36,5,36,14],[107,3,107,15],[76,3,76,15],[77,5,77,14],[83,3,83,15],[89,4,89,15],[106,3,106,7],[92,3,92,15],[93,5,93,14],[99,3,99,15],[100,5,100,14],[105,4,105,15]]}
["⧀ Go to Content"]
[null,null,14,"Intergovernmental",{"$f":"R.1MediaAndLongName","v":"AQ LRAPA - Open Burning"},null,null,null,null,null,null,null,null,null,null,null,null,null,{"$f":"\"R.\"&$C$2&\"StaffCount\"","v":"R.14StaffCount"},{"$f":"\"R.\"&$C$2&\"LowHrs\"","v":"R.14LowHrs"},{"$f":"\"R.\"&$C$2&\"HighHrs\"","v":"R.14HighHrs"},null," "]
[null,null,null,null,null,null,null,null,null,null,null,null,"Estimated range",null,null,null,null,null,{"$f":"COUNTIFS(S15:S105,\">0\")","v":0},{"$f":"SUM(T15:T105)","v":0},{"$f":"SUM(U15:U105)","v":0}]
[null,null,null,"Number of staff involved",{"$f":"S3","v":0},"Hours",null,null,null,null,null,null,{"$f":"S4","v":"0"},null,null,null,null,null,{"$f":"IF(R.14StaffCount=0,\"0\",IF(R.14LowHrs=0,\"0-\"&TEXT(R.14HighHrs,\"#,###\"),TEXT(R.14LowHrs,\"#,###\")&\"-\"&TEXT(R.14HighHrs,\"#,###\")))","v":"0"},{"$f":"\"R.\"&$C$2&\"LowDollars\"","v":"R.14LowDollars"},{"$f":"\"R.\"&$C$2&\"HighDollars\"","v":"R.14HighDollars"}]
[null,null,null,"DEQ 2012 average hourly                                      $",{"$f":"R.AvgHrDEQCost","v":58},"Staff cost ",null,null,null,null,null,null,{"$f":"S5","v":"$0"},null,null,null,null,null,{"$f":"IF(R.14StaffCount=0,\"$0\",IF(R.14LowDollars=0,\"$0-\"&TEXT(R.14HighDollars,\"#,###\"),TEXT(R.14LowDollars,\"$#,###\")&\"-\"&TEXT(R.14HighDollars,\"#,###\")))","v":"$0"},{"$f":"T3*E5","v":0},{"$f":"U3*E5","v":0}]
[null,null,null,"Message"]
[null,null,null,"Hours and staff count on this workbook are subtracted from DEQ hours and staff count on the Summary. ",null,null,null,null,null,null,null,null,null,null,null,null,null,null,{"$f":"AVERAGEIF(S14:S56,\">0\")","v":{"$error":"#DIV/0!"}}]
[null,null,null,"Please describe what you know now about Intergovernmental capacity."]
[null,null,null," "]
[]
["Go to LRAPA",null," ","LRAPA"]
[null,null,null,"Development"]
[null,null,null," "]
[null,null,null,"Name","Select hours","Workload indicator",null,null,null,null,null,null,null,null,null,"Level involved"]
[null,null,null,null,"< 1 hour",1,2,3,4,5,6,7,8,9,10," ",null,null,{"$f":"VLOOKUP($E15,R.VL_DEQResourcesInvolved,2,FALSE)","v":0},{"$f":"VLOOKUP($E15,R.VL_DEQResourcesInvolved,3,FALSE)","v":0},{"$f":"IF(S15=10,T15,VLOOKUP($E15,R.VL_DEQResourcesInvolved,4,FALSE))","v":0},"ï drop down to Select hours/Level involved"]
[null,null,null," ","< 1 hour",1,2,3,4,5,6,7,8,9,10," ",null,null,{"$f":"VLOOKUP($E16,R.VL_DEQResourcesInvolved,2,FALSE)","v":0},{"$f":"VLOOKUP($E16,R.VL_DEQResourcesInvolved,3,FALSE)","v":0},{"$f":"IF(S16=10,T16,VLOOKUP($E16,R.VL_DEQResourcesInvolved,4,FALSE))","v":0}]
[null,null,null," ","< 1 hour",1,2,3,4,5,6,7,8,9,10," ",null,null,{"$f":"VLOOKUP($E17,R.VL_DEQResourcesInvolved,2,FALSE)","v":0},{"$f":"VLOOKUP($E17,R.VL_DEQResourcesInvolved,3,FALSE)","v":0},{"$f":"IF(S17=10,T17,VLOOKUP($E17,R.VL_DEQResourcesInvolved,4,FALSE))","v":0}]
[null,null,null," ","< 1 hour",1,2,3,4,5,6,7,8,9,10," ",null,null,{"$f":"VLOOKUP($E18,R.VL_DEQResourcesInvolved,2,FALSE)","v":0},{"$f":"VLOOKUP($E18,R.VL_DEQResourcesInvolved,3,FALSE)","v":0},{"$f":"IF(S18=10,T18,VLOOKUP($E18,R.VL_DEQResourcesInvolved,4,FALSE))","v":0}]
[null,null,null,"Implementation"]
[null,null,null,null,null,null,null,null,null,null,null,null,null,null,null,null,null,null," "]
[null,null,null,"Name","Select hours","Workload indicator",null,null,null,null,null,null,null,null,null,"Level involved"]
[null,null,null," ","< 1 hour",1,2,3,4,5,6,7,8,9,10," ",null,null,{"$f":"VLOOKUP($E22,R.VL_DEQResourcesInvolved,2,FALSE)","v":0},{"$f":"VLOOKUP($E22,R.VL_DEQResourcesInvolved,3,FALSE)","v":0},{"$f":"IF(S22=10,T22,VLOOKUP($E22,R.VL_DEQResourcesInvolved,4,FALSE))","v":0},"ï drop down to Select hours/Level involved"]
[null,null,null," ","< 1 hour",1,2,3,4,5,6,7,8,9,10," ",null,null,{"$f":"VLOOKUP($E23,R.VL_DEQResourcesInvolved,2,FALSE)","v":0},{"$f":"VLOOKUP($E23,R.VL_DEQResourcesInvolved,3,FALSE)","v":0},{"$f":"IF(S23=10,T23,VLOOKUP($E23,R.VL_DEQResourcesInvolved,4,FALSE))","v":0}]
[null,null,null," ","< 1 hour",1,2,3,4,5,6,7,8,9,10," ",null,null,{"$f":"VLOOKUP($E24,R.VL_DEQResourcesInvolved,2,FALSE)","v":0},{"$f":"VLOOKUP($E24,R.VL_DEQResourcesInvolved,3,FALSE)","v":0},{"$f":"IF(S24=10,T24,VLOOKUP($E24,R.VL_DEQResourcesInvolved,4,FALSE))","v":0}]
[null,null,null," ","< 1 hour",1,2,3,4,5,6,7,8,9,10," ",null,null,{"$f":"VLOOKUP($E25,R.VL_DEQResourcesInvolved,2,FALSE)","v":0},{"$f":"VLOOKUP($E25,R.VL_DEQResourcesInvolved,3,FALSE)","v":0},{"$f":"IF(S25=10,T25,VLOOKUP($E25,R.VL_DEQResourcesInvolved,4,FALSE))","v":0}]
[]
["Go to EPA",null,null,"EPA Region 10"]
[null,null,null,"Development"]
[null,null,null," ",null,null,null,null,null,null,null,null,null,null,null,null,null,null," "]
[null,null,null,"Name","Select hours","Workload indicator",null,null,null,null,null,null,null,null,null,"Level involved"]
[null,null,null," ","< 1 hour",1,2,3,4,5,6,7,8,9,10," ",null,null,{"$f":"VLOOKUP($E31,R.VL_DEQResourcesInvolved,2,FALSE)","v":0},{"$f":"VLOOKUP($E31,R.VL_DEQResourcesInvolved,3,FALSE)","v":0},{"$f":"IF(S31=10,T31,VLOOKUP($E31,R.VL_DEQResourcesInvolved,4,FALSE))","v":0},"ï drop down to Select hours/Level involved"]
[null,null,null," ","< 1 hour",1,2,3,4,5,6,7,8,9,10," ",null,null,{"$f":"VLOOKUP($E32,R.VL_DEQResourcesInvolved,2,FALSE)","v":0},{"$f":"VLOOKUP($E32,R.VL_DEQResourcesInvolved,3,FALSE)","v":0},{"$f":"IF(S32=10,T32,VLOOKUP($E32,R.VL_DEQResourcesInvolved,4,FALSE))","v":0}]
[null,null,null," ","< 1 hour",1,2,3,4,5,6,7,8,9,10," ",null,null,{"$f":"VLOOKUP($E33,R.VL_DEQResourcesInvolved,2,FALSE)","v":0},{"$f":"VLOOKUP($E33,R.VL_DEQResourcesInvolved,3,FALSE)","v":0},{"$f":"IF(S33=10,T33,VLOOKUP($E33,R.VL_DEQResourcesInvolved,4,FALSE))","v":0}]
[null,null,null," ","< 1 hour",1,2,3,4,5,6,7,8,9,10," ",null,null,{"$f":"VLOOKUP($E34,R.VL_DEQResourcesInvolved,2,FALSE)","v":0},{"$f":"VLOOKUP($E34,R.VL_DEQResourcesInvolved,3,FALSE)","v":0},{"$f":"IF(S34=10,T34,VLOOKUP($E34,R.VL_DEQResourcesInvolved,4,FALSE))","v":0},null," "]
[null,null,null,"Implementation",null,null,null,null,null,null,null,null,null,null,null,null,null,null,null,null,null,null," "]
[null,null,null,null,null,null,null,null,null,null,null,null,null,null,null,null,null,null," ",null,null,null," "]
[null,null,null," ","Select hours","Workload indicator",null,null,null,null,null,null,null,null,null,"Level involved",null,null,null,null,null,null," "]
[null,null,null," ","< 1 hour",1,2,3,4,5,6,7,8,9,10," ",null,null,{"$f":"VLOOKUP($E38,R.VL_DEQResourcesInvolved,2,FALSE)","v":0},{"$f":"VLOOKUP($E38,R.VL_DEQResourcesInvolved,3,FALSE)","v":0},{"$f":"IF(S38=10,T38,VLOOKUP($E38,R.VL_DEQResourcesInvolved,4,FALSE))","v":0},"ï drop down to Select hours/Level involved"]
[null,null,null," ","< 1 hour",1,2,3,4,5,6,7,8,9,10," ",null,null,{"$f":"VLOOKUP($E39,R.VL_DEQResourcesInvolved,2,FALSE)","v":0},{"$f":"VLOOKUP($E39,R.VL_DEQResourcesInvolved,3,FALSE)","v":0},{"$f":"IF(S39=10,T39,VLOOKUP($E39,R.VL_DEQResourcesInvolved,4,FALSE))","v":0}]
[null,null,null," ","< 1 hour",1,2,3,4,5,6,7,8,9,10," ",null,null,{"$f":"VLOOKUP($E40,R.VL_DEQResourcesInvolved,2,FALSE)","v":0},{"$f":"VLOOKUP($E40,R.VL_DEQResourcesInvolved,3,FALSE)","v":0},{"$f":"IF(S40=10,T40,VLOOKUP($E40,R.VL_DEQResourcesInvolved,4,FALSE))","v":0}]
[null,null,null," ","< 1 hour",1,2,3,4,5,6,7,8,9,10," ",null,null,{"$f":"VLOOKUP($E41,R.VL_DEQResourcesInvolved,2,FALSE)","v":0},{"$f":"VLOOKUP($E41,R.VL_DEQResourcesInvolved,3,FALSE)","v":0},{"$f":"IF(S41=10,T41,VLOOKUP($E41,R.VL_DEQResourcesInvolved,4,FALSE))","v":0}]
[]
[null,null," ","Municipalities",null,null,null,null,null,null,null,null,null,null,null,null,null,null,null," "]
[null,null,null,"Development"]
[null,null,null,null,null,null,null,null,null,null,null,null,null,null,null,null,null,null," "]
[null,null,null,"Name","Select hours","Workload indicator",null,null,null,null,null,null,null,null,null,"Level involved"]
[null,null,null," ","< 1 hour",1,2,3,4,5,6,7,8,9,10," ",null,null,{"$f":"VLOOKUP($E47,R.VL_DEQResourcesInvolved,2,FALSE)","v":0},{"$f":"VLOOKUP($E47,R.VL_DEQResourcesInvolved,3,FALSE)","v":0},{"$f":"IF(S47=10,T47,VLOOKUP($E47,R.VL_DEQResourcesInvolved,4,FALSE))","v":0},"ï drop down to Select hours/Level involved"]
[null,null,null," ","< 1 hour",1,2,3,4,5,6,7,8,9,10," ",null,null,{"$f":"VLOOKUP($E48,R.VL_DEQResourcesInvolved,2,FALSE)","v":0},{"$f":"VLOOKUP($E48,R.VL_DEQResourcesInvolved,3,FALSE)","v":0},{"$f":"IF(S48=10,T48,VLOOKUP($E48,R.VL_DEQResourcesInvolved,4,FALSE))","v":0}]
[null,null,null," ","< 1 hour",1,2,3,4,5,6,7,8,9,10," ",null,null,{"$f":"VLOOKUP($E49,R.VL_DEQResourcesInvolved,2,FALSE)","v":0},{"$f":"VLOOKUP($E49,R.VL_DEQResourcesInvolved,3,FALSE)","v":0},{"$f":"IF(S49=10,T49,VLOOKUP($E49,R.VL_DEQResourcesInvolved,4,FALSE))","v":0}]
[null,null,null," ","< 1 hour",1,2,3,4,5,6,7,8,9,10," ",null,null,{"$f":"VLOOKUP($E50,R.VL_DEQResourcesInvolved,2,FALSE)","v":0},{"$f":"VLOOKUP($E50,R.VL_DEQResourcesInvolved,3,FALSE)","v":0},{"$f":"IF(S50=10,T50,VLOOKUP($E50,R.VL_DEQResourcesInvolved,4,FALSE))","v":0}]
[null,null,null,"Implementation"]
[null,null,null,null,null,null,null,null,null,null,null,null,null,null,null,null,null,null," "]
[null,null,null,"Name","Select hours","Workload indicator",null,null,null,null,null,null,null,null,null,"Level involved"]
[null,null,null," ","< 1 hour",1,2,3,4,5,6,7,8,9,10," ",null,null,{"$f":"VLOOKUP($E54,R.VL_DEQResourcesInvolved,2,FALSE)","v":0},{"$f":"VLOOKUP($E54,R.VL_DEQResourcesInvolved,3,FALSE)","v":0},{"$f":"IF(S54=10,T54,VLOOKUP($E54,R.VL_DEQResourcesInvolved,4,FALSE))","v":0},"ï drop down to Select hours/Level involved"]
[null,null,null," ","< 1 hour",1,2,3,4,5,6,7,8,9,10," ",null,null,{"$f":"VLOOKUP($E55,R.VL_DEQResourcesInvolved,2,FALSE)","v":0},{"$f":"VLOOKUP($E55,R.VL_DEQResourcesInvolved,3,FALSE)","v":0},{"$f":"IF(S55=10,T55,VLOOKUP($E55,R.VL_DEQResourcesInvolved,4,FALSE))","v":0}]
[null,null,null," ","< 1 hour",1,2,3,4,5,6,7,8,9,10," ",null,null,{"$f":"VLOOKUP($E56,R.VL_DEQResourcesInvolved,2,FALSE)","v":0},{"$f":"VLOOKUP($E56,R.VL_DEQResourcesInvolved,3,FALSE)","v":0},{"$f":"IF(S56=10,T56,VLOOKUP($E56,R.VL_DEQResourcesInvolved,4,FALSE))","v":0}]
[null,null,null," ","< 1 hour",1,2,3,4,5,6,7,8,9,10," ",null,null,{"$f":"VLOOKUP($E57,R.VL_DEQResourcesInvolved,2,FALSE)","v":0},{"$f":"VLOOKUP($E57,R.VL_DEQResourcesInvolved,3,FALSE)","v":0},{"$f":"IF(S57=10,T57,VLOOKUP($E57,R.VL_DEQResourcesInvolved,4,FALSE))","v":0}]
[]
["See map",null,null,"Counties"]
[null,null,null,"Development"]
[null,null,null,null,null,null,null,null,null,null,null,null,null,null,null,null,null,null," "]
[null,null,null,"Name","Select hours","Workload indicator",null,null,null,null,null,null,null,null,null,"Level involved"]
[null,null,null,null,"< 1 hour",1,2,3,4,5,6,7,8,9,10,null,null,null,{"$f":"VLOOKUP($E63,R.VL_DEQResourcesInvolved,2,FALSE)","v":0},{"$f":"VLOOKUP($E63,R.VL_DEQResourcesInvolved,3,FALSE)","v":0},{"$f":"IF(S63=10,T63,VLOOKUP($E63,R.VL_DEQResourcesInvolved,4,FALSE))","v":0},"ï drop down to Select hours/Level involved"]
[null,null,null," ","< 1 hour",1,2,3,4,5,6,7,8,9,10," ",null,null,{"$f":"VLOOKUP($E64,R.VL_DEQResourcesInvolved,2,FALSE)","v":0},{"$f":"VLOOKUP($E64,R.VL_DEQResourcesInvolved,3,FALSE)","v":0},{"$f":"IF(S64=10,T64,VLOOKUP($E64,R.VL_DEQResourcesInvolved,4,FALSE))","v":0}]
[null,null,null," ","< 1 hour",1,2,3,4,5,6,7,8,9,10," ",null,null,{"$f":"VLOOKUP($E65,R.VL_DEQResourcesInvolved,2,FALSE)","v":0},{"$f":"VLOOKUP($E65,R.VL_DEQResourcesInvolved,3,FALSE)","v":0},{"$f":"IF(S65=10,T65,VLOOKUP($E65,R.VL_DEQResourcesInvolved,4,FALSE))","v":0}]
[null,null,null," ","< 1 hour",1,2,3,4,5,6,7,8,9,10," ",null,null,{"$f":"VLOOKUP($E66,R.VL_DEQResourcesInvolved,2,FALSE)","v":0},{"$f":"VLOOKUP($E66,R.VL_DEQResourcesInvolved,3,FALSE)","v":0},{"$f":"IF(S66=10,T66,VLOOKUP($E66,R.VL_DEQResourcesInvolved,4,FALSE))","v":0}]
[null,null,null,"Implementation"]
[null,null,null,null,null,null,null,null,null,null,null,null,null,null,null,null,null,null," "]
[null,null,null,"Name","Select hours","Workload indicator",null,null,null,null,null,null,null,null,null,"Level involved"]
[null,null,null,null,"< 1 hour",1,2,3,4,5,6,7,8,9,10,null,null,null,{"$f":"VLOOKUP($E70,R.VL_DEQResourcesInvolved,2,FALSE)","v":0},{"$f":"VLOOKUP($E70,R.VL_DEQResourcesInvolved,3,FALSE)","v":0},{"$f":"IF(S70=10,T70,VLOOKUP($E70,R.VL_DEQResourcesInvolved,4,FALSE))","v":0},"ï drop down to Select hours/Level involved"]
[null,null,null," ","< 1 hour",1,2,3,4,5,6,7,8,9,10," ",null,null,{"$f":"VLOOKUP($E71,R.VL_DEQResourcesInvolved,2,FALSE)","v":0},{"$f":"VLOOKUP($E71,R.VL_DEQResourcesInvolved,3,FALSE)","v":0},{"$f":"IF(S71=10,T71,VLOOKUP($E71,R.VL_DEQResourcesInvolved,4,FALSE))","v":0}]
[null,null,null," ","< 1 hour",1,2,3,4,5,6,7,8,9,10," ",null,null,{"$f":"VLOOKUP($E72,R.VL_DEQResourcesInvolved,2,FALSE)","v":0},{"$f":"VLOOKUP($E72,R.VL_DEQResourcesInvolved,3,FALSE)","v":0},{"$f":"IF(S72=10,T72,VLOOKUP($E72,R.VL_DEQResourcesInvolved,4,FALSE))","v":0}]
[null,null,null," ","< 1 hour",1,2,3,4,5,6,7,8,9,10," ",null,null,{"$f":"VLOOKUP($E73,R.VL_DEQResourcesInvolved,2,FALSE)","v":0},{"$f":"VLOOKUP($E73,R.VL_DEQResourcesInvolved,3,FALSE)","v":0},{"$f":"IF(S73=10,T73,VLOOKUP($E73,R.VL_DEQResourcesInvolved,4,FALSE))","v":0}]
[]
["Go to SDAO",null," ","Special Districts",null,null,null,null,null,null,null,null,null,null,null,null,null,null,null," "]
[null,null,null,"Development"]
[null,null,null,null,null,null,null,null,null,null,null,null,null,null,null,null,null,null," "]
[null,null,null,"Name","Select hours","Workload indicator",null,null,null,null,null,null,null,null,null,"Level involved"]
[null,null,null,null,"< 1 hour",1,2,3,4,5,6,7,8,9,10,null,null,null,{"$f":"VLOOKUP($E79,R.VL_DEQResourcesInvolved,2,FALSE)","v":0},{"$f":"VLOOKUP($E79,R.VL_DEQResourcesInvolved,3,FALSE)","v":0},{"$f":"IF(S79=10,T79,VLOOKUP($E79,R.VL_DEQResourcesInvolved,4,FALSE))","v":0},"ï drop down to Select hours/Level involved"]
[null,null,null," ","< 1 hour",1,2,3,4,5,6,7,8,9,10," ",null,null,{"$f":"VLOOKUP($E80,R.VL_DEQResourcesInvolved,2,FALSE)","v":0},{"$f":"VLOOKUP($E80,R.VL_DEQResourcesInvolved,3,FALSE)","v":0},{"$f":"IF(S80=10,T80,VLOOKUP($E80,R.VL_DEQResourcesInvolved,4,FALSE))","v":0}]
[null,null,null," ","< 1 hour",1,2,3,4,5,6,7,8,9,10," ",null,null,{"$f":"VLOOKUP($E81,R.VL_DEQResourcesInvolved,2,FALSE)","v":0},{"$f":"VLOOKUP($E81,R.VL_DEQResourcesInvolved,3,FALSE)","v":0},{"$f":"IF(S81=10,T81,VLOOKUP($E81,R.VL_DEQResourcesInvolved,4,FALSE))","v":0}]
[null,null,null," ","< 1 hour",1,2,3,4,5,6,7,8,9,10," ",null,null,{"$f":"VLOOKUP($E82,R.VL_DEQResourcesInvolved,2,FALSE)","v":0},{"$f":"VLOOKUP($E82,R.VL_DEQResourcesInvolved,3,FALSE)","v":0},{"$f":"IF(S82=10,T82,VLOOKUP($E82,R.VL_DEQResourcesInvolved,4,FALSE))","v":0}]
[null,null,null,"Implementation"]
[null,null,null,null,null,null,null,null,null,null,null,null,null,null,null,null,null,null," "]
[null,null,null,"Name","Select hours","Workload indicator",null,null,null,null,null,null,null,null,null,"Level involved"]
[null,null,null,null,"< 1 hour",1,2,3,4,5,6,7,8,9,10,null,null,null,{"$f":"VLOOKUP($E86,R.VL_DEQResourcesInvolved,2,FALSE)","v":0},{"$f":"VLOOKUP($E86,R.VL_DEQResourcesInvolved,3,FALSE)","v":0},{"$f":"IF(S86=10,T86,VLOOKUP($E86,R.VL_DEQResourcesInvolved,4,FALSE))","v":0},"ï drop down to Select hours/Level involved"]
[null,null,null," ","< 1 hour",1,2,3,4,5,6,7,8,9,10," ",null,null,{"$f":"VLOOKUP($E87,R.VL_DEQResourcesInvolved,2,FALSE)","v":0},{"$f":"VLOOKUP($E87,R.VL_DEQResourcesInvolved,3,FALSE)","v":0},{"$f":"IF(S87=10,T87,VLOOKUP($E87,R.VL_DEQResourcesInvolved,4,FALSE))","v":0}]
[null,null,null," ","< 1 hour",1,2,3,4,5,6,7,8,9,10," ",null,null,{"$f":"VLOOKUP($E88,R.VL_DEQResourcesInvolved,2,FALSE)","v":0},{"$f":"VLOOKUP($E88,R.VL_DEQResourcesInvolved,3,FALSE)","v":0},{"$f":"IF(S88=10,T88,VLOOKUP($E88,R.VL_DEQResourcesInvolved,4,FALSE))","v":0}]
[null,null,null," ","< 1 hour",1,2,3,4,5,6,7,8,9,10," ",null,null,{"$f":"VLOOKUP($E89,R.VL_DEQResourcesInvolved,2,FALSE)","v":0},{"$f":"VLOOKUP($E89,R.VL_DEQResourcesInvolved,3,FALSE)","v":0},{"$f":"IF(S89=10,T89,VLOOKUP($E89,R.VL_DEQResourcesInvolved,4,FALSE))","v":0}]
[]
["on Q-net",null,null,"Tribal Government Relations"]
[null,null,null,"Development"]
[null,null,null,null,null,null,null,null,null,null,null,null,null,null,null,null,null,null," "]
[null,null,null,"Name","Select hours","Workload indicator",null,null,null,null,null,null,null,null,null,"Level involved"]
[null,null,null,null,"< 1 hour",1,2,3,4,5,6,7,8,9,10,null,null,null,{"$f":"VLOOKUP($E95,R.VL_DEQResourcesInvolved,2,FALSE)","v":0},{"$f":"VLOOKUP($E95,R.VL_DEQResourcesInvolved,3,FALSE)","v":0},{"$f":"IF(S95=10,T95,VLOOKUP($E95,R.VL_DEQResourcesInvolved,4,FALSE))","v":0},"ï drop down to Select hours/Level involved"]
[null,null,null," ","< 1 hour",1,2,3,4,5,6,7,8,9,10," ",null,null,{"$f":"VLOOKUP($E96,R.VL_DEQResourcesInvolved,2,FALSE)","v":0},{"$f":"VLOOKUP($E96,R.VL_DEQResourcesInvolved,3,FALSE)","v":0},{"$f":"IF(S96=10,T96,VLOOKUP($E96,R.VL_DEQResourcesInvolved,4,FALSE))","v":0}]
[null,null,null," ","< 1 hour",1,2,3,4,5,6,7,8,9,10," ",null,null,{"$f":"VLOOKUP($E97,R.VL_DEQResourcesInvolved,2,FALSE)","v":0},{"$f":"VLOOKUP($E97,R.VL_DEQResourcesInvolved,3,FALSE)","v":0},{"$f":"IF(S97=10,T97,VLOOKUP($E97,R.VL_DEQResourcesInvolved,4,FALSE))","v":0}]
[null,null,null," ","< 1 hour",1,2,3,4,5,6,7,8,9,10," ",null,null,{"$f":"VLOOKUP($E98,R.VL_DEQResourcesInvolved,2,FALSE)","v":0},{"$f":"VLOOKUP($E98,R.VL_DEQResourcesInvolved,3,FALSE)","v":0},{"$f":"IF(S98=10,T98,VLOOKUP($E98,R.VL_DEQResourcesInvolved,4,FALSE))","v":0}]
[null,null,null,"Implementation"]
[null,null,null,null,null,null,null,null,null,null,null,null,null,null,null,null,null,null," "]
[null,null,null,"Name","Select hours","Workload indicator",null,null,null,null,null,null,null,null,null,"Level involved"]
[null,null,null,null,"< 1 hour",1,2,3,4,5,6,7,8,9,10,null,null,null,{"$f":"VLOOKUP($E102,R.VL_DEQResourcesInvolved,2,FALSE)","v":0},{"$f":"VLOOKUP($E102,R.VL_DEQResourcesInvolved,3,FALSE)","v":0},{"$f":"IF(S102=10,T102,VLOOKUP($E102,R.VL_DEQResourcesInvolved,4,FALSE))","v":0},"ï drop down to Select hours/Level involved"]
[null,null,null," ","< 1 hour",1,2,3,4,5,6,7,8,9,10," ",null,null,{"$f":"VLOOKUP($E103,R.VL_DEQResourcesInvolved,2,FALSE)","v":0},{"$f":"VLOOKUP($E103,R.VL_DEQResourcesInvolved,3,FALSE)","v":0},{"$f":"IF(S103=10,T103,VLOOKUP($E103,R.VL_DEQResourcesInvolved,4,FALSE))","v":0}]
[null,null,null," ","< 1 hour",1,2,3,4,5,6,7,8,9,10," ",null,null,{"$f":"VLOOKUP($E104,R.VL_DEQResourcesInvolved,2,FALSE)","v":0},{"$f":"VLOOKUP($E104,R.VL_DEQResourcesInvolved,3,FALSE)","v":0},{"$f":"IF(S104=10,T104,VLOOKUP($E104,R.VL_DEQResourcesInvolved,4,FALSE))","v":0}]
[null,null,null," ","< 1 hour",1,2,3,4,5,6,7,8,9,10," ",null,null,{"$f":"VLOOKUP($E105,R.VL_DEQResourcesInvolved,2,FALSE)","v":0},{"$f":"VLOOKUP($E105,R.VL_DEQResourcesInvolved,3,FALSE)","v":0},{"$f":"IF(S105=10,T105,VLOOKUP($E105,R.VL_DEQResourcesInvolved,4,FALSE))","v":0}]
[]
[null,null,null,{"$f":"\"Please suggest process improvements to the \"&D2&\" worksheet.\"","v":"Please suggest process improvements to the Intergovernmental worksheet."}]
[]
["Go to Top"]

{"sheet":"15CustomParticipants","index":19,"n_rows":75,"n_cols":24,"rows_kept":75,"cut":false,"hidden":false,"merged":[[50,5,50,14],[59,5,59,14],[66,5,66,14],[49,3,49,15],[6,3,6,15],[26,3,26,15],[33,3,33,15],[39,4,39,15],[42,3,42,15],[43,5,43,14],[27,5,27,14],[34,5,34,14],[1,4,1,15],[2,12,2,15],[3,5,3,11],[3,12,3,15],[4,5,4,11],[4,12,4,15],[6,19,6,21],[10,3,10,15],[11,5,11,14],[17,3,17,15],[23,4,23,15],[18,5,18,14],[73,3,73,15],[55,4,55,15],[58,3,58,15],[65,3,65,15],[71,4,71,15],[72,3,72,7]]}
["⧀ Go to Content"]
["Go to Work Groups",null,15,"Custom Participants",{"$f":"R.1MediaAndLongName","v":"AQ LRAPA - Open Burning"},null,null,null,null,null,null,null,null,null,null,null,null,null,null,{"$f":"\"R.\"&$C$2&\"StaffCount\"","v":"R.15StaffCount"},{"$f":"\"R.\"&$C$2&\"LowHrs\"","v":"R.15LowHrs"},{"$f":"\"R.\"&$C$2&\"HighHrs\"","v":"R.15HighHrs"},null," "]
[null,null,null,null,null,null,null,null,null,null,null,null,"Estimated range",null,null,null,null,null,null,{"$f":"COUNTIFS(T13:T72,\">0\")","v":0},{"$f":"SUM(U13:U72)","v":0},{"$f":"SUM(V13:V72)","v":0}]
[null,null,null,"Number of staff involved",{"$f":"T3","v":0},"Hours",null,null,null,null,null,null,{"$f":"T4","v":"0"},null,null,null,null,null,null,{"$f":"IF(R.15StaffCount=0,\"0\",IF(R.15LowHrs=0,\"0-\"&TEXT(R.15HighHrs,\"#,###\"),TEXT(R.15LowHrs,\"#,###\")&\"-\"&TEXT(R.15HighHrs,\"#,###\")))","v":"0"},{"$f":"\"R.\"&$C$2&\"LowDollars\"","v":"R.15LowDollars"},{"$f":"\"R.\"&$C$2&\"HighDollars\"","v":"R.15HighDollars"}]
[null,null,null,"DEQ 2012 average hourly                                      $",{"$f":"R.AvgHrDEQCost","v":58},"Staff cost ",null,null,null,null,null,null,{"$f":"T5","v":"$0"},null,null,null,null,null,null,{"$f":"IF(R.15StaffCount=0,\"$0\",IF(R.15LowDollars=0,\"$0-\"&TEXT(R.15HighDollars,\"#,###\"),TEXT(R.15LowDollars,\"$#,###\")&\"-\"&TEXT(R.15HighDollars,\"#,###\")))","v":"$0"},{"$f":"U3*E5","v":0},{"$f":"V3*E5","v":0}]
[null,null,null,"Message"]
[null,null,null,null,null,null,null,null,null,null,null,null,null,null,null,null,null,null,null," ",null,null,null," "]
[]
[null,null," ","Enter custom role 1"]
[null,null,null,"Development"]
[]
[null,null,null,"Name","Select hours","Workload indicator",null,null,null,null,null,null,null,null,null,"Level involved"]
[null,null,null,null,"< 1 hour",1,2,3,4,5,6,7,8,9,10,null,null,null,"ï drop down to Select hours/Level involved",{"$f":"VLOOKUP($E13,R.VL_DEQResourcesInvolved,2,FALSE)","v":0},{"$f":"VLOOKUP($E13,R.VL_DEQResourcesInvolved,3,FALSE)","v":0},{"$f":"IF(T13=10,U13,VLOOKUP($E13,R.VL_DEQResourcesInvolved,4,FALSE))","v":0}]
[null,null,null," ","< 1 hour",1,2,3,4,5,6,7,8,9,10," ",null,null,null,{"$f":"VLOOKUP($E14,R.VL_DEQResourcesInvolved,2,FALSE)","v":0},{"$f":"VLOOKUP($E14,R.VL_DEQResourcesInvolved,3,FALSE)","v":0},{"$f":"IF(T14=10,U14,VLOOKUP($E14,R.VL_DEQResourcesInvolved,4,FALSE))","v":0}]
[null,null,null," ","< 1 hour",1,2,3,4,5,6,7,8,9,10," ",null,null,null,{"$f":"VLOOKUP($E15,R.VL_DEQResourcesInvolved,2,FALSE)","v":0},{"$f":"VLOOKUP($E15,R.VL_DEQResourcesInvolved,3,FALSE)","v":0},{"$f":"IF(T15=10,U15,VLOOKUP($E15,R.VL_DEQResourcesInvolved,4,FALSE))","v":0}]
[null,null,null," ","< 1 hour",1,2,3,4,5,6,7,8,9,10," ",null,null,null,{"$f":"VLOOKUP($E16,R.VL_DEQResourcesInvolved,2,FALSE)","v":0},{"$f":"VLOOKUP($E16,R.VL_DEQResourcesInvolved,3,FALSE)","v":0},{"$f":"IF(T16=10,U16,VLOOKUP($E16,R.VL_DEQResourcesInvolved,4,FALSE))","v":0}]
[null,null,null,"Implementation"]
[null,null,null,null,null,null,null,null,null,null,null,null,null,null,null,null,null,null,null," "]
[null,null,null,"Name","Select hours","Workload indicator",null,null,null,null,null,null,null,null,null,"Level involved"]
[null,null,null," ","< 1 hour",1,2,3,4,5,6,7,8,9,10," ",null,null,"ï drop down to Select hours/Level involved",{"$f":"VLOOKUP($E20,R.VL_DEQResourcesInvolved,2,FALSE)","v":0},{"$f":"VLOOKUP($E20,R.VL_DEQResourcesInvolved,3,FALSE)","v":0},{"$f":"IF(T20=10,U20,VLOOKUP($E20,R.VL_DEQResourcesInvolved,4,FALSE))","v":0}]
[null,null,null," ","< 1 hour",1,2,3,4,5,6,7,8,9,10," ",null,null,null,{"$f":"VLOOKUP($E21,R.VL_DEQResourcesInvolved,2,FALSE)","v":0},{"$f":"VLOOKUP($E21,R.VL_DEQResourcesInvolved,3,FALSE)","v":0},{"$f":"IF(T21=10,U21,VLOOKUP($E21,R.VL_DEQResourcesInvolved,4,FALSE))","v":0}]
[null,null,null," ","< 1 hour",1,2,3,4,5,6,7,8,9,10," ",null,null,null,{"$f":"VLOOKUP($E22,R.VL_DEQResourcesInvolved,2,FALSE)","v":0},{"$f":"VLOOKUP($E22,R.VL_DEQResourcesInvolved,3,FALSE)","v":0},{"$f":"IF(T22=10,U22,VLOOKUP($E22,R.VL_DEQResourcesInvolved,4,FALSE))","v":0}]
[null,null,null," ","< 1 hour",1,2,3,4,5,6,7,8,9,10," ",null,null,null,{"$f":"VLOOKUP($E23,R.VL_DEQResourcesInvolved,2,FALSE)","v":0},{"$f":"VLOOKUP($E23,R.VL_DEQResourcesInvolved,3,FALSE)","v":0},{"$f":"IF(T23=10,U23,VLOOKUP($E23,R.VL_DEQResourcesInvolved,4,FALSE))","v":0}]
[]
[null,null," ","Enter custom role 2"]
[null,null,null,"Development"]
[null,null,null,null,null,null,null,null,null,null,null,null,null,null,null,null,null,null,null," "]
[null,null,null,"Name","Select hours","Workload indicator",null,null,null,null,null,null,null,null,null,"Level involved"]
[null,null,null,null,"< 1 hour",1,2,3,4,5,6,7,8,9,10,null,null,null,"ï drop down to Select hours/Level involved",{"$f":"VLOOKUP($E29,R.VL_DEQResourcesInvolved,2,FALSE)","v":0},{"$f":"VLOOKUP($E29,R.VL_DEQResourcesInvolved,3,FALSE)","v":0},{"$f":"IF(T29=10,U29,VLOOKUP($E29,R.VL_DEQResourcesInvolved,4,FALSE))","v":0}]
[null,null,null," ","< 1 hour",1,2,3,4,5,6,7,8,9,10," ",null,null,null,{"$f":"VLOOKUP($E30,R.VL_DEQResourcesInvolved,2,FALSE)","v":0},{"$f":"VLOOKUP($E30,R.VL_DEQResourcesInvolved,3,FALSE)","v":0},{"$f":"IF(T30=10,U30,VLOOKUP($E30,R.VL_DEQResourcesInvolved,4,FALSE))","v":0}]
[null,null,null," ","< 1 hour",1,2,3,4,5,6,7,8,9,10," ",null,null,null,{"$f":"VLOOKUP($E31,R.VL_DEQResourcesInvolved,2,FALSE)","v":0},{"$f":"VLOOKUP($E31,R.VL_DEQResourcesInvolved,3,FALSE)","v":0},{"$f":"IF(T31=10,U31,VLOOKUP($E31,R.VL_DEQResourcesInvolved,4,FALSE))","v":0}]
[null,null,null," ","< 1 hour",1,2,3,4,5,6,7,8,9,10," ",null,null,null,{"$f":"VLOOKUP($E32,R.VL_DEQResourcesInvolved,2,FALSE)","v":0},{"$f":"VLOOKUP($E32,R.VL_DEQResourcesInvolved,3,FALSE)","v":0},{"$f":"IF(T32=10,U32,VLOOKUP($E32,R.VL_DEQResourcesInvolved,4,FALSE))","v":0},null," "]
[null,null,null,"Implementation",null,null,null,null,null,null,null,null,null,null,null,null,null,null,null,null,null,null,null," "]
[null,null,null,null,null,null,null,null,null,null,null,null,null,null,null,null,null,null,null," ",null,null,null," "]
[null,null,null,"Name","Select hours","Workload indicator",null,null,null,null,null,null,null,null,null,"Level involved",null,null,null,null,null,null,null," "]
[null,null,null,null,"< 1 hour",1,2,3,4,5,6,7,8,9,10,null,null,null,"ï drop down to Select hours/Level involved",{"$f":"VLOOKUP($E36,R.VL_DEQResourcesInvolved,2,FALSE)","v":0},{"$f":"VLOOKUP($E36,R.VL_DEQResourcesInvolved,3,FALSE)","v":0},{"$f":"IF(T36=10,U36,VLOOKUP($E36,R.VL_DEQResourcesInvolved,4,FALSE))","v":0}]
[null,null,null," ","< 1 hour",1,2,3,4,5,6,7,8,9,10," ",null,null,null,{"$f":"VLOOKUP($E37,R.VL_DEQResourcesInvolved,2,FALSE)","v":0},{"$f":"VLOOKUP($E37,R.VL_DEQResourcesInvolved,3,FALSE)","v":0},{"$f":"IF(T37=10,U37,VLOOKUP($E37,R.VL_DEQResourcesInvolved,4,FALSE))","v":0}]
[null,null,null," ","< 1 hour",1,2,3,4,5,6,7,8,9,10," ",null,null,null,{"$f":"VLOOKUP($E38,R.VL_DEQResourcesInvolved,2,FALSE)","v":0},{"$f":"VLOOKUP($E38,R.VL_DEQResourcesInvolved,3,FALSE)","v":0},{"$f":"IF(T38=10,U38,VLOOKUP($E38,R.VL_DEQResourcesInvolved,4,FALSE))","v":0}]
[null,null,null," ","< 1 hour",1,2,3,4,5,6,7,8,9,10," ",null,null,null,{"$f":"VLOOKUP($E39,R.VL_DEQResourcesInvolved,2,FALSE)","v":0},{"$f":"VLOOKUP($E39,R.VL_DEQResourcesInvolved,3,FALSE)","v":0},{"$f":"IF(T39=10,U39,VLOOKUP($E39,R.VL_DEQResourcesInvolved,4,FALSE))","v":0}]
[]
[null,null," ","Enter custom role 3"]
[null,null,null,"Development"]
[null,null,null,null,null,null,null,null,null,null,null,null,null,null,null,null,null,null,null," "]
[null,null,null,"Name","Select hours","Workload indicator",null,null,null,null,null,null,null,null,null,"Level involved"]
[null,null,null," ","< 1 hour",1,2,3,4,5,6,7,8,9,10," ",null,null,"ï drop down to Select hours/Level involved",{"$f":"VLOOKUP($E45,R.VL_DEQResourcesInvolved,2,FALSE)","v":0},{"$f":"VLOOKUP($E45,R.VL_DEQResourcesInvolved,3,FALSE)","v":0},{"$f":"IF(T45=10,U45,VLOOKUP($E45,R.VL_DEQResourcesInvolved,4,FALSE))","v":0}]
[null,null,null," ","< 1 hour",1,2,3,4,5,6,7,8,9,10," ",null,null,null,{"$f":"VLOOKUP($E46,R.VL_DEQResourcesInvolved,2,FALSE)","v":0},{"$f":"VLOOKUP($E46,R.VL_DEQResourcesInvolved,3,FALSE)","v":0},{"$f":"IF(T46=10,U46,VLOOKUP($E46,R.VL_DEQResourcesInvolved,4,FALSE))","v":0}]
[null,null,null," ","< 1 hour",1,2,3,4,5,6,7,8,9,10," ",null,null,null,{"$f":"VLOOKUP($E47,R.VL_DEQResourcesInvolved,2,FALSE)","v":0},{"$f":"VLOOKUP($E47,R.VL_DEQResourcesInvolved,3,FALSE)","v":0},{"$f":"IF(T47=10,U47,VLOOKUP($E47,R.VL_DEQResourcesInvolved,4,FALSE))","v":0}]
[null,null,null," ","< 1 hour",1,2,3,4,5,6,7,8,9,10," ",null,null,null,{"$f":"VLOOKUP($E48,R.VL_DEQResourcesInvolved,2,FALSE)","v":0},{"$f":"VLOOKUP($E48,R.VL_DEQResourcesInvolved,3,FALSE)","v":0},{"$f":"IF(T48=10,U48,VLOOKUP($E48,R.VL_DEQResourcesInvolved,4,FALSE))","v":0}]
[null,null,null,"Implementation"]
[null,null,null,null,null,null,null,null,null,null,null,null,null,null,null,null,null,null,null," "]
[null,null,null,"Name","Select hours","Workload indicator",null,null,null,null,null,null,null,null,null,"Level involved"]
[null,null,null," ","< 1 hour",1,2,3,4,5,6,7,8,9,10," ",null,null,"ï drop down to Select hours/Level involved",{"$f":"VLOOKUP($E52,R.VL_DEQResourcesInvolved,2,FALSE)","v":0},{"$f":"VLOOKUP($E52,R.VL_DEQResourcesInvolved,3,FALSE)","v":0},{"$f":"IF(T52=10,U52,VLOOKUP($E52,R.VL_DEQResourcesInvolved,4,FALSE))","v":0}]
[null,null,null," ","< 1 hour",1,2,3,4,5,6,7,8,9,10," ",null,null,null,{"$f":"VLOOKUP($E53,R.VL_DEQResourcesInvolved,2,FALSE)","v":0},{"$f":"VLOOKUP($E53,R.VL_DEQResourcesInvolved,3,FALSE)","v":0},{"$f":"IF(T53=10,U53,VLOOKUP($E53,R.VL_DEQResourcesInvolved,4,FALSE))","v":0}]
[null,null,null," ","< 1 hour",1,2,3,4,5,6,7,8,9,10," ",null,null,null,{"$f":"VLOOKUP($E54,R.VL_DEQResourcesInvolved,2,FALSE)","v":0},{"$f":"VLOOKUP($E54,R.VL_DEQResourcesInvolved,3,FALSE)","v":0},{"$f":"IF(T54=10,U54,VLOOKUP($E54,R.VL_DEQResourcesInvolved,4,FALSE))","v":0}]
[null,null,null," ","< 1 hour",1,2,3,4,5,6,7,8,9,10," ",null,null,null,{"$f":"VLOOKUP($E55,R.VL_DEQResourcesInvolved,2,FALSE)","v":0},{"$f":"VLOOKUP($E55,R.VL_DEQResourcesInvolved,3,FALSE)","v":0},{"$f":"IF(T55=10,U55,VLOOKUP($E55,R.VL_DEQResourcesInvolved,4,FALSE))","v":0}]
[]
[null,null," ","Enter custom role 4"]
[null,null,null,"Development"]
[null,null,null,null,null,null,null,null,null,null,null,null,null,null,null,null,null,null,null," "]
[null,null,null,"Name","Select hours","Workload indicator",null,null,null,null,null,null,null,null,null,"Level involved"]
[null,null,null,null,"< 1 hour",1,2,3,4,5,6,7,8,9,10,null,null,null,"ï drop down to Select hours/Level involved",{"$f":"VLOOKUP($E61,R.VL_DEQResourcesInvolved,2,FALSE)","v":0},{"$f":"VLOOKUP($E61,R.VL_DEQResourcesInvolved,3,FALSE)","v":0},{"$f":"IF(T61=10,U61,VLOOKUP($E61,R.VL_DEQResourcesInvolved,4,FALSE))","v":0}]
[null,null,null," ","< 1 hour",1,2,3,4,5,6,7,8,9,10," ",null,null,null,{"$f":"VLOOKUP($E62,R.VL_DEQResourcesInvolved,2,FALSE)","v":0},{"$f":"VLOOKUP($E62,R.VL_DEQResourcesInvolved,3,FALSE)","v":0},{"$f":"IF(T62=10,U62,VLOOKUP($E62,R.VL_DEQResourcesInvolved,4,FALSE))","v":0}]
[null,null,null," ","< 1 hour",1,2,3,4,5,6,7,8,9,10," ",null,null,null,{"$f":"VLOOKUP($E63,R.VL_DEQResourcesInvolved,2,FALSE)","v":0},{"$f":"VLOOKUP($E63,R.VL_DEQResourcesInvolved,3,FALSE)","v":0},{"$f":"IF(T63=10,U63,VLOOKUP($E63,R.VL_DEQResourcesInvolved,4,FALSE))","v":0}]
[null,null,null," ","< 1 hour",1,2,3,4,5,6,7,8,9,10," ",null,null,null,{"$f":"VLOOKUP($E64,R.VL_DEQResourcesInvolved,2,FALSE)","v":0},{"$f":"VLOOKUP($E64,R.VL_DEQResourcesInvolved,3,FALSE)","v":0},{"$f":"IF(T64=10,U64,VLOOKUP($E64,R.VL_DEQResourcesInvolved,4,FALSE))","v":0}]
[null,null,null,"Implementation"]
[null,null,null,null,null,null,null,null,null,null,null,null,null,null,null,null,null,null,null," "]
[null,null,null,"Name","Select hours","Workload indicator",null,null,null,null,null,null,null,null,null,"Level involved"]
[null,null,null," ","< 1 hour",1,2,3,4,5,6,7,8,9,10," ",null,null,"ï drop down to Select hours/Level involved",{"$f":"VLOOKUP($E68,R.VL_DEQResourcesInvolved,2,FALSE)","v":0},{"$f":"VLOOKUP($E68,R.VL_DEQResourcesInvolved,3,FALSE)","v":0},{"$f":"IF(T68=10,U68,VLOOKUP($E68,R.VL_DEQResourcesInvolved,4,FALSE))","v":0}]
[null,null,null," ","< 1 hour",1,2,3,4,5,6,7,8,9,10," ",null,null,null,{"$f":"VLOOKUP($E69,R.VL_DEQResourcesInvolved,2,FALSE)","v":0},{"$f":"VLOOKUP($E69,R.VL_DEQResourcesInvolved,3,FALSE)","v":0},{"$f":"IF(T69=10,U69,VLOOKUP($E69,R.VL_DEQResourcesInvolved,4,FALSE))","v":0}]
[null,null,null," ","< 1 hour",1,2,3,4,5,6,7,8,9,10," ",null,null,null,{"$f":"VLOOKUP($E70,R.VL_DEQResourcesInvolved,2,FALSE)","v":0},{"$f":"VLOOKUP($E70,R.VL_DEQResourcesInvolved,3,FALSE)","v":0},{"$f":"IF(T70=10,U70,VLOOKUP($E70,R.VL_DEQResourcesInvolved,4,FALSE))","v":0}]
[null,null,null," ","< 1 hour",1,2,3,4,5,6,7,8,9,10," ",null,null,null,{"$f":"VLOOKUP($E71,R.VL_DEQResourcesInvolved,2,FALSE)","v":0},{"$f":"VLOOKUP($E71,R.VL_DEQResourcesInvolved,3,FALSE)","v":0},{"$f":"IF(T71=10,U71,VLOOKUP($E71,R.VL_DEQResourcesInvolved,4,FALSE))","v":0}]
[]
[null,null,null,{"$f":"\"Please suggest process improvements to the \"&D2&\" worksheet.\"","v":"Please suggest process improvements to the Custom Participants worksheet."}]
[]
["Go to Top"]